Workbook

Sheet Вся профилировка (ч1)
A1: Вернуться в начало
A2: Профилированная продукция Grand Line (ЧАСТЬ 1) | AA2: дата изменения страницы прайса: | AB2: 2020-04-30
AA3: цены действительны с | AB3: 2020-04-30
A4: Наименование профиля | B4: Ширина общая / полезная, м | C4: Длина, м | D4: Ед. изм. | E4: Цена, руб./ед.изм. | W4: Наценки на заказы
E5: Design | I5: Print РФ | J5: Premium | O5: GreenCoat Pural Matt BT | P5: GreenCoat Pural BT | Q5: PurLite Matt NEW | R5: Стальной Бархат | S5: Satin Matt NEW | T5: Standart +
E6: Colority Print dp (5) | F6: Colority Print (5) | G6: Safari (6)
G7: Brown | H7: Акция: Grey, Orange | J7: Quarzit Pro Matt NEW | K7: Quarzit | L7: Quarzit lite | M7: Velur | N7: Atlas | T7: Drap | U7: Satin | W7: Наценка при заказе металлочерепицы и профнастила (а также штрипсы, отмотки и плоского листа)
A8: Защитный слой, гр/кв.м. | E8: Zn 140 | F8: Zn 140 | G8: Zn 140-200 | I8: Zn 100 | J8: ZA 265 | K8: ZA 265 | L8: ZA 265 | M8: ZA 265 | N8: ZA 265 | O8: Zn 275 | P8: Zn 275 | Q8: Zn 180 | R8: Zn 180 | S8: Zn 180 | T8: Zn 140 | U8: Zn 140
A9: Толщина металла, мм/покрытия, мкм | E9: 0,45 / 30 | F9: 0,45 / 30 | G9: 0,45 / 30 | I9: 0,45 / 25 | J9: 0,5 / 50 | K9: 0,5 / 55 | L9: 0,5 / 25 | M9: 0,5 / 35 | N9: 0,5 / 25 | O9: 0,5 / 50 | P9: 0,5 / 50 | Q9: 0,5 / 35 | R9: 0,5 / 25-30 | S9: 0,5/35 | T9: 0,45 / 25 | U9: 0,5 / 25 | W9: Объем заказа | Y9: Наценка | AA9: Срок изготовления
A10: Письменная гарантия Grand Line | E10: 20 лет | F10: 20 лет | G10: 20 лет | I10: 10 лет | J10: 50 лет | K10: 50 лет | L10: 30 лет | M10: 25 лет | N10: 25 лет | O10: 30 лет | P10: 30 лет | Q10: 30 лет | R10: 25 лет | S10: 25 лет | T10: 20 лет | U10: 20 лет | W10: менее 5 кв.м. | Y10: 0.7 | AA10: стандартный
A11: Металлочерепица, фальцевая кровля и софит металлический | W11: от 5 до 9,99 кв.м. | Y11: 0.3
A12: Kvinta plus | B12: 1,21/1,15 | C12: 0,5/6,5 | D12: кв.м | E12: - | F12: =ROUND((KvintaPl_Pt-Belaruskv)*Belarus*(1-E68),2) -> 695 | G12: =ROUND((KvintaPl_Sf-Belaruskv)*Belarus*(1-D68),2) -> 723 | H12: =ROUND((KvintaPl_Sf_a-Belaruskv)*Belarus*(1-E68),2) -> 657 | I12: - | J12: =ROUND(KvintaPl_QproMatt*Belarus*(1-J68),2) -> 812 | K12: =ROUND((KvintaPl_Q-Belaruskv)*Belarus*(1-J68),2) -> 805 | L12: =ROUND((KvintaPl_Ql-Belaruskv)*Belarus*(1-J68),2) -> 714 | M12: =ROUND((KvintaPl_Vel-Belaruskv)*Belarus*(1-J68),2) -> 690 | N12: =ROUND((KvintaPl_Atl-Belaruskv)*Belarus*(1-J68),2) -> 614 | O12: =ROUND((KvintaPl_PurMatt-Belaruskv)*Belarus*(1-O68),2) -> 895 | P12: =ROUND((KvintaPl_Pur-Belaruskv)*Belarus*(1-P68),2) -> 895 | Q12: =ROUND((KvintaPl_PurLiteMatt-Belaruskv)*Belarus*(1-Q68),2) -> 522 | R12: =ROUND((KvintaPl_StBarhat-Belaruskv)*Belarus*(1-R68),2) -> 565 | S12: =ROUND((KvintaPl_SatMatt-Belaruskv)*Belarus*(1-S68),2) -> 520 | T12: =ROUND((KvintaPl_Dr-Belaruskv)*Belarus*(1-T68),2) -> 422 | U12: =ROUND((KvintaPl_Sat-Belaruskv)*Belarus*(1-U68),2) -> 411 | W12: от 10 до 25 кв.м. | Y12: 0.15
A13: Kvinta plus 3D | B13: 1,21/1,15 | C13: 0,47/6 | D13: кв.м | E13: - | F13: =F12 -> 695 | G13: =G12 -> 723 | H13: =H12 -> 657 | I13: - | J13: =J12 -> 812 | K13: =K12 -> 805 | L13: 714 | M13: 690 | N13: 614 | O13: 895 | P13: 895 | Q13: 522 | R13: 565 | S13: 520 | T13: 422 | U13: 411 | W13: менее 25 кв.м. | Y13: нет | AA13: бессрочный
A14: Kvinta Uno | B14: 1,21/1,15 | C14: 0.72 | D14: кв.м | E14: - | F14: =ROUND(KvintaUno_Pt*Belarus*(1-E73),2) -> 695 | G14: =ROUND(KvintaUno_Sf*Belarus*(1-D73),2) -> 723 | H14: =ROUND(KvintaUno_Sf_a*Belarus*(1-E73),2) -> 657 | I14: - | J14: =ROUND(KvintaUno_QproMatt*Belarus*(1-J73),2) -> 812 | K14: =ROUND((KvintaUno_Q-BelarusUno)*Belarus*(1-J73),2) -> 805 | L14: =ROUND((KvintaUno_Ql-BelarusUno)*Belarus*(1-J73),2) -> 714 | M14: =ROUND((KvintaUno_Vel-BelarusUno)*Belarus*(1-J73),2) -> 690 | N14: =ROUND((KvintaUno_Atl-BelarusUno)*Belarus*(1-J73),2) -> 614 | O14: =ROUND((KvintaUno_PurMatt-BelarusUno)*Belarus*(1-O73),2) -> 895 | P14: =ROUND((KvintaUno_Pur-BelarusUno)*Belarus*(1-P73),2) -> 895 | Q14: =ROUND((KvintaUno_PurLiteMatt-BelarusUno)*Belarus*(1-Q73),2) -> 522 | R14: =ROUND((KvintaUno_StBarhat-BelarusUno)*Belarus*(1-R73),2) -> 565 | S14: =ROUND((KvintaUno_SatMatt-BelarusUno)*Belarus*(1-R73),2) -> 520 | T14: =ROUND((KvintaUno_Dr-BelarusUno)*Belarus*(1-T73),2) -> 422 | U14: =ROUND((KvintaUno_Sat-BelarusUno)*Belarus*(1-U73),2) -> 411
D15: шт. | F15: =ROUND(F14*(1.21*0.72),1) -> 605.5 | G15: =ROUND(G14*(1.21*0.72),1) -> 629.9 | H15: =ROUND(H14*(1.21*0.72),1) -> 572.4 | I15: - | J15: =ROUND(J14*(1.21*0.72),1) -> 707.4 | K15: 701.3 | L15: 622 | M15: 601.1 | N15: 534.9 | O15: 779.7 | P15: 779.7 | Q15: 454.8 | R15: 492.2 | S15: 453 | T15: 367.6 | U15: 358.1
A16: Kamea | B16: 1,18/1,085 | C16: 0,5/6,5 | D16: кв.м | E16: - | F16: =ROUND(Kamea_Pt*Belarus*(1-E68),2) -> 687 | G16: =ROUND(Kamea_Sf*Belarus*(1-D68),2) -> 714 | H16: =ROUND(Kamea_Sf_a*Belarus*(1-E68),2) -> 650 | I16: - | J16: =ROUND(Kamea_QproMatt*Belarus*(1-J68),2) -> 796 | K16: =ROUND(Kamea_Q*Belarus*(1-J68),2) -> 788 | L16: =ROUND(Kamea_Ql*Belarus*(1-J68),2) -> 702 | M16: =ROUND(Kamea_Vel*Belarus*(1-J68),2) -> 678 | N16: =ROUND(Kamea_Atl*Belarus*(1-J68),2) -> 605 | O16: =ROUND(Kamea_PurMatt*Belarus*(1-O68),2) -> 876 | P16: =ROUND(Kamea_Pur*Belarus*(1-P68),2) -> 876 | Q16: =ROUND(Kamea_PurLiteMatt*Belarus*(1-Q68),2) -> 517 | R16: =ROUND(Kamea_StBarhat*Belarus*(1-R68),2) -> 558 | S16: =ROUND(Kamea_SatMatt*Belarus*(1-S68),2) -> 515 | T16: =ROUND(Kamea_Dr*Belarus*(1-T68),2) -> 415 | U16: =ROUND(Kamea_Sat*Belarus*(1-U68),2) -> 405 | W16: Наценка на фальцевую кровлю:
A17: Kredo | B17: 1,19/1,125 | C17: 0,85/6,5 | D17: кв.м | E17: - | F17: =ROUND(Kredo_Pt*Belarus*(1-E68),2) -> 687 | G17: =ROUND(Kredo_Sf*Belarus*(1-D68),2) -> 714 | H17: =ROUND(Kredo_Sf_a*Belarus*(1-E68),2) -> 650 | I17: - | J17: =ROUND(Kredo_QproMatt*Belarus*(1-J68),2) -> 796 | K17: =ROUND(Kredo_Q*Belarus*(1-J68),2) -> 788 | L17: =ROUND(Kredo_Ql*Belarus*(1-J68),2) -> 702 | M17: =ROUND(Kredo_Vel*Belarus*(1-J68),2) -> 678 | N17: =ROUND(Kredo_Atl*Belarus*(1-J68),2) -> 605 | O17: =ROUND(Kredo_PurMatt*Belarus*(1-O68),2) -> 876 | P17: =ROUND(Kredo_Pur*Belarus*(1-P68),2) -> 876 | Q17: =ROUND(Kredo_PurLiteMatt*Belarus*(1-Q68),2) -> 517 | R17: =ROUND(Kredo_StBarhat*Belarus*(1-R68),2) -> 558 | S17: =ROUND(Kredo_SatMatt*Belarus*(1-S68),2) -> 515 | T17: =ROUND(Kredo_Dr*Belarus*(1-T68),2) -> 415 | U17: =ROUND(Kredo_Sat*Belarus*(1-U68),2) -> 405 | W17: Объем заказа | Z17: Наценка | AB17: Срок изготовления
A18: Classic | B18: 1,183/1,1 | C18: 0,5/6,5 | D18: кв.м | E18: - | F18: =ROUND(Classic_Pt*Belarus*(1-E68),2) -> 672 | G18: =ROUND(Classic_Sf*Belarus*(1-D68),2) -> 699 | H18: =ROUND(Classic_Sf_a*Belarus*(1-E68),2) -> 635 | I18: =ROUND(Classic_PtRF*Belarus*(1-I68),2) -> 548 | J18: =ROUND(Classic_QproMatt*Belarus*(1-J68),2) -> 781 | K18: =ROUND(Classic_Q*Belarus*(1-J68),2) -> 773 | L18: =ROUND(Classic_Ql*Belarus*(1-J68),2) -> 687 | M18: =ROUND(Classic_Vel*Belarus*(1-J68),2) -> 663 | N18: =ROUND(Classic_Atl*Belarus*(1-J68),2) -> 590 | O18: =ROUND(Classic_PurMatt*Belarus*(1-O68),2) -> 861 | P18: =ROUND(Classic_Pur*Belarus*(1-P68),2) -> 861 | Q18: =ROUND(Classic_PurLiteMatt*Belarus*(1-Q68),2) -> 502 | R18: =ROUND(Classic_StBarhat*Belarus*(1-R68),2) -> 543 | S18: =ROUND(Classic_SatMatt*Belarus*(1-S68),2) -> 500 | T18: =ROUND(Classic_Dr*Belarus*(1-T68),2) -> 400 | U18: =ROUND(Classic_Sat*Belarus*(1-U68),2) -> 390 | W18: менее 7 кв.м. | Z18: =(1000*Belarus)&" руб." -> 1000 руб. | AB18: стандартный
A19: Modern | B19: 1,183/1,1 | C19: 0,5/6,5 | D19: кв.м | E19: - | F19: - | G19: - | H19: - | I19: - | J19: - | K19: - | L19: - | M19: - | N19: - | O19: - | P19: - | Q19: - | R19: - | S19: - | T19: =ROUND(Modern_Dr*Belarus*(1-T68),2) -> 400 | U19: - | W19: от 7 до 24,99 кв.м. | Z19: 1
D20: кв.м | E20: - | F20: =ROUND(Quadro_Pt*Belarus*(1-E68),2) -> 687 | G20: =ROUND(Quadro_Sf*Belarus*(1-D68),2) -> 714 | H20: =ROUND(Quadro_Sf*Belarus*(1-E68),2) -> 714 | I20: - | J20: =ROUND(Quadro_QproMatt*Belarus*(1-J68),2) -> 796 | K20: =ROUND(Quadro_Q*Belarus*(1-J68),2) -> 788 | L20: =ROUND(Quadro_Ql*Belarus*(1-J68),2) -> 702 | M20: =ROUND(Quadro_Vel*Belarus*(1-J68),2) -> 678 | N20: =ROUND(Quadro_Atl*Belarus*(1-J68),2) -> 605 | O20: =ROUND(Quadro_PurMatt*Belarus*(1-O68),2) -> 876 | P20: =ROUND(Quadro_Pur*Belarus*(1-P68),2) -> 876 | Q20: =ROUND(Quadro_PurLiteMatt*Belarus*(1-Q68),2) -> 517 | R20: =ROUND(Quadro_StBarhat*Belarus*(1-R68),2) -> 558 | S20: =ROUND(Quadro_SatMatt*Belarus*(1-S68),2) -> 515 | T20: =ROUND(Quadro_Dr*Belarus*(1-T68),2) -> 415 | U20: =ROUND(Quadro_Sat*Belarus*(1-U68),2) -> 405
A21: Софит металлический (1) | B21: 0,357/0,325 | C21: 0,2/6 | D21: кв.м | E21: - | F21: =ROUND(Sofit_Pt*Belarus*(1-E74),2) -> 1135 | G21: =ROUND(Sofit_Sf*Belarus*(1-D74),2) -> 1290 | H21: =ROUND(Sofit_Sf_a*Belarus*(1-E74),2) -> 1173 | I21: =ROUND(Sofit_PtRF*Belarus*(1-E74),2) -> 972 | J21: =ROUND(Sofit_QproMatt*Belarus*(1-E74),2) -> 1262 | K21: =ROUND(Sofit_Q*Belarus*(1-E74),2) -> 1247 | L21: =ROUND(Sofit_Ql*Belarus*(1-E74),2) -> 1164 | M21: =ROUND(Sofit_Vel*Belarus*(1-E74),2) -> 1116 | N21: =ROUND(Sofit_Atl*Belarus*(1-E74),2) -> 1021 | O21: =ROUND(Sofit_PurMatt*Belarus*(1-F74),2) -> 1670 | P21: =ROUND(Sofit_Pur*Belarus*(1-E74),2) -> 1670 | Q21: =ROUND(Sofit_PurLiteMatt*Belarus*(1-E74),2) -> 979 | R21: =ROUND(Sofit_StBarhat*Belarus*(1-E74),2) -> 1057 | S21: =ROUND(Sofit_SatMatt*Belarus*(1-F74),2) -> 969 | T21: =ROUND(Sofit_Dr*Belarus*(1-E74),2) -> 794 | U21: =ROUND(Sofit_Sat*Belarus*(1-E74),2) -> 814 | W21: от 25 до 49,99 кв.м. | Z21: 0.2
A22: Двойной стоячий фальц / Двойной стоячий фальц Line (1) | B22: Обн.: 0,625/0,55 | C22: 1,2/9 | D22: п.м | E22: - | F22: =ROUND(F23/1*0.625,1) -> 416.3 | G22: =ROUND(G23/1*0.625,1) -> 435 | H22: =ROUND(H23/1*0.625,1) -> 398.8 | I22: - | J22: =ROUND(J23/1*0.625,1) -> 469.4 | K22: 465 | L22: 416.9 | M22: 402.5 | N22: 370.6 | O22: 513.1 | P22: 513.1 | Q22: - | R22: 335.6 | S22: 310.6 | T22: 259.4 | U22: 247.5 | W22: менее 50 кв.м. | Z22: нет | AB22: бессрочный
D23: кв.м | E23: - | F23: =ROUND((Falz2_Pt+B_UpakFalz)*Belarus*(1-E68),2) -> 666 | G23: =ROUND((Falz2_Sf+B_UpakFalz)*Belarus*(1-D68),2) -> 696 | H23: =ROUND((Falz2_Sf_a+B_UpakFalz)*Belarus*(1-E68),2) -> 638 | I23: - | J23: =ROUND((Falz2_QproMatt+B_UpakFalz)*Belarus*(1-J68),2) -> 751 | K23: =ROUND((Falz2_Q+B_UpakFalz)*Belarus*(1-J68),2) -> 744 | L23: =ROUND((Falz2_Ql+B_UpakFalz)*Belarus*(1-J68),2) -> 667 | M23: =ROUND((Falz2_Vel+B_UpakFalz)*Belarus*(1-J68),2) -> 644 | N23: =ROUND((Falz2_Atl+B_UpakFalz)*Belarus*(1-J68),2) -> 593 | O23: =ROUND((Falz2_PurMatt+B_UpakFalz)*Belarus*(1-O68),2) -> 821 | P23: =ROUND((Falz2_Pur+B_UpakFalz)*Belarus*(1-P68),2) -> 821 | Q23: - | R23: =ROUND((Falz2_StBarhat+B_UpakFalz)*Belarus*(1-R68),2) -> 537 | S23: =ROUND((Falz2_SatMatt+B_UpakFalz)*Belarus*(1-S68),2) -> 497 | T23: =ROUND((Falz2_Dr+B_UpakFalz)*Belarus*(1-T69),2) -> 415 | U23: =ROUND((Falz2_Sat+B_UpakFalz)*Belarus*(1-U69),2) -> 396
A24: Кликфальц Pro / Кликфальц Pro Line / Кликфальц Pro Gofr (1) NEW | B24: 0,517/0,470 | C24: 1,2/9 | D24: п.м | E24: - | F24: =ROUND(F25/1.209*0.625,1) -> 420.8 | G24: =ROUND(G25/1.209*0.625,1) -> 439.9 | H24: =ROUND(H25/1.209*0.625,1) -> 402.7 | I24: - | J24: =ROUND(J25/1.209*0.625,1) -> 474.6 | K24: =ROUND(K25/1.209*0.625,1) -> 469.9 | L24: 421.8 | M24: 407.4 | N24: 374.3 | O24: 518.5 | P24: 518.5 | Q24: - | R24: 339.6 | S24: 314.3 | T24: 262.1 | U24: 249.7 | W24: Наценка на металлический сайдинг:
D25: кв.м | E25: - | F25: =ROUND((KlikPro_Pt+B_UpakFalz)*Belarus*(1-E68),2) -> 814 | G25: =ROUND((KlikPro_Sf+B_UpakFalz)*Belarus*(1-E68),2) -> 851 | H25: =ROUND((KlikPro_Sf_a+B_UpakFalz)*Belarus*(1-F68),2) -> 779 | I25: - | J25: =ROUND((KlikPro_QproMatt+B_UpakFalz)*Belarus*(1-J68),2) -> 918 | K25: =ROUND((KlikPro_Q+B_UpakFalz)*Belarus*(1-J68),2) -> 909 | L25: =ROUND((KlikPro_Ql+B_UpakFalz)*Belarus*(1-J68),2) -> 816 | M25: =ROUND((KlikPro_Vel+B_UpakFalz)*Belarus*(1-J68),2) -> 788 | N25: =ROUND((KlikPro_Atl+B_UpakFalz)*Belarus*(1-J68),2) -> 724 | O25: =ROUND((KlikPro_PurMatt+B_UpakFalz)*Belarus*(1-O68),2) -> 1003 | P25: =ROUND((KlikPro_Pur+B_UpakFalz)*Belarus*(1-P68),2) -> 1003 | Q25: - | R25: =ROUND((KlikPro_StBarhat+B_UpakFalz)*Belarus*(1-R68),2) -> 657 | S25: =ROUND((KlikPro_SatMatt+B_UpakFalz)*Belarus*(1-S68),2) -> 608 | T25: =ROUND((KlikPro_Dr+B_UpakFalz)*Belarus*(1-T69),2) -> 507 | U25: =ROUND((KlikPro_Sat+B_UpakFalz)*Belarus*(1-U69),2) -> 483 | W25: Объем заказа | Z25: Наценка | AB25: Срок изготовления
A26: Кликфальц / Кликфальц Line (1) | B26: Обн.: 0,542/0,51 | C26: 1,2/9 | D26: п.м | E26: - | F26: =ROUND(F27/1.153*0.625,1) -> 416.3 | G26: =ROUND(G27/1.153*0.625,1) -> 435.3 | H26: =ROUND(H27/1.153*0.625,1) -> 398.4 | I26: - | J26: =ROUND(J27/1.153*0.625,1) -> 469.4 | K26: =ROUND(K27/1.153*0.625,1) -> 465.1 | L26: =ROUND(L27/1.153*0.625,1) -> 417.4 | M26: =ROUND(M27/1.153*0.625,1) -> 402.8 | N26: =ROUND(N27/1.153*0.625,1) -> 370.2 | O26: - | P26: - | Q26: - | R26: =ROUND(R27/1.153*0.625,1) -> 336.1 | S26: =ROUND(S27/1.153*0.625,1) -> 311.1 | T26: =ROUND(T27/1.153*0.625,1) -> 259.1 | U26: =ROUND(U27/1.153*0.625,1) -> 247.2 | W26: менее 7 кв.м. | Z26: =(1500*Belarus)&" руб." -> 1500 руб. | AB26: стандартный
D27: кв.м | E27: - | F27: =ROUND((Klik_Pt+B_UpakFalz)*Belarus*(1-E68),2) -> 768 | G27: =ROUND((Klik_Sf+B_UpakFalz)*Belarus*(1-D68),2) -> 803 | H27: =ROUND((Klik_Sf_a+B_UpakFalz)*Belarus*(1-E68),2) -> 735 | I27: - | J27: =ROUND((Klik_QproMatt+B_UpakFalz)*Belarus*(1-J68),2) -> 866 | K27: =ROUND((Klik_Q+B_UpakFalz)*Belarus*(1-J68),2) -> 858 | L27: =ROUND((Klik_Ql+B_UpakFalz)*Belarus*(1-J68),2) -> 770 | M27: =ROUND((Klik_Vel+B_UpakFalz)*Belarus*(1-J68),2) -> 743 | N27: =ROUND((Klik_Atl+B_UpakFalz)*Belarus*(1-J68),2) -> 683 | O27: - | P27: - | Q27: - | R27: =ROUND((Klik_StBarhat+B_UpakFalz)*Belarus*(1-R68),2) -> 620 | S27: =ROUND((Klik_SatMatt+B_UpakFalz)*Belarus*(1-S68),2) -> 574 | T27: =ROUND((Klik_Dr+B_UpakFalz)*Belarus*(1-T69),2) -> 478 | U27: =ROUND((Klik_Sat+B_UpakFalz)*Belarus*(1-U69),2) -> 456 | W27: от 7 до 24,99 кв.м. | Z27: 1
A28: Кликфальц Mini (1) | B28: Обн.: 0,334/0,305 | C28: 1,2/9 | D28: п.м | E28: - | F28: =ROUND(F29/1.249*0.625,1) -> 416.3 | G28: =ROUND(G29/1.249*0.625,1) -> 435.3 | H28: =ROUND(H29/1.249*0.625,1) -> 398.3 | I28: - | J28: =ROUND(J29/1.249*0.625,1) -> 469.4 | K28: =ROUND(K29/1.249*0.625,1) -> 465.4 | L28: =ROUND(L29/1.249*0.625,1) -> 417.3 | M28: =ROUND(M29/1.249*0.625,1) -> 402.8 | N28: =ROUND(N29/1.249*0.625,1) -> 370.3 | O28: - | P28: - | Q28: - | R28: =ROUND(R29/1.249*0.625,1) -> 335.8 | S28: =ROUND(S29/1.249*0.625,1) -> 310.7 | T28: =ROUND(T29/1.249*0.625,1) -> 259.2 | U28: =ROUND(U29/1.249*0.625,1) -> 247.2 | W28: менее 25 кв.м. | Z28: нет | AB28: бессрочный
D29: кв.м | E29: - | F29: =ROUND((Klik_mini_Pt+B_UpakFalz)*Belarus*(1-E68),2) -> 832 | G29: =ROUND((Klik_mini_Sf+B_UpakFalz)*Belarus*(1-D68),2) -> 870 | H29: =ROUND((Klik_mini_Sf_a+B_UpakFalz)*Belarus*(1-E68),2) -> 796 | I29: - | J29: =ROUND((Klik_mini_QproMatt+B_UpakFalz)*Belarus*(1-J68),2) -> 938 | K29: =ROUND((Klik_mini_Q+B_UpakFalz)*Belarus*(1-J68),2) -> 930 | L29: =ROUND((Klik_mini_Ql+B_UpakFalz)*Belarus*(1-J68),2) -> 834 | M29: =ROUND((Klik_mini_Vel+B_UpakFalz)*Belarus*(1-J68),2) -> 805 | N29: =ROUND((Klik_mini_Atl+B_UpakFalz)*Belarus*(1-J68),2) -> 740 | O29: - | P29: - | Q29: - | R29: =ROUND((Klik_mini_StBarhat+B_UpakFalz)*Belarus*(1-R68),2) -> 671 | S29: =ROUND((Klik_mini_SatMatt+B_UpakFalz)*Belarus*(1-S68),2) -> 621 | T29: =ROUND((Klik_mini_Dr+B_UpakFalz)*Belarus*(1-T69),2) -> 518 | U29: =ROUND((Klik_mini_Sat+B_UpakFalz)*Belarus*(1-U69),2) -> 494
A30: Профилированный лист | W30: Наценка на продукцию в цвете RAL 7016 (для всех покрытий, кроме группы Premium) и в цветах RAL 2004, RAL 1018
A31: Профнастил С8 | B31: 1,2/1,16 | C31: 0,5/8 | D31: кв.м | E31: =ROUND(PnC8_Ptdp*Belarus*(1-E68),2) -> 771 | F31: =ROUND(PnC8_Pt*Belarus*(1-E68),2) -> 639 | G31: =ROUND(PnC8_Sf*Belarus*(1-D68),2) -> 670 | H31: =ROUND(PnC8_Sf_a*Belarus*(1-E68),2) -> 609 | I31: =ROUND(PnC8_PtRF*Belarus*(1-I68),2) -> 510 | J31: =ROUND(PnC8_QproMatt*Belarus*(1-J68),2) -> 727 | K31: =ROUND(PnC8_Q*Belarus*(1-J68),2) -> 720 | L31: =ROUND(PnC8_Ql*Belarus*(1-J68),2) -> 640 | M31: =ROUND(PnC8_Vel*Belarus*(1-J68),2) -> 616 | N31: =ROUND(PnC8_Atl*Belarus*(1-J68),2) -> 562 | O31: =ROUND(PnC8_PurMatt*Belarus*(1-O68),2) -> 800 | P31: =ROUND(PnC8_Pur*Belarus*(1-P68),2) -> 800 | Q31: =ROUND(PnC8_PurLiteMatt*Belarus*(1-Q68),2) -> 468 | R31: =ROUND(PnC8_StBarhat*Belarus*(1-R68),2) -> 505 | S31: =ROUND(PnC8_SatMatt*Belarus*(1-S68),2) -> 463 | T31: =ROUND(PnC8_Dr*Belarus*(1-T70),2) -> 377 | U31: =ROUND(PnC8_Sat*Belarus*(1-U70),2) -> 357
A32: Профнастил С8 Фигурный (1) | B32: 1,2/1,16 | C32: 0,5/2 | D32: кв.м | E32: =ROUND(PnC8f_Ptdp*Belarus*(1-E68),2) -> 826 | F32: =ROUND(PnC8f_Pt*Belarus*(1-E68),2) -> 694 | G32: =ROUND(PnC8f_Sf*Belarus*(1-D68),2) -> 725 | H32: =ROUND(PnC8f_Sf_a*Belarus*(1-E68),2) -> 664 | I32: =ROUND(PnC8f_PtRF*Belarus*(1-I68),2) -> 565 | J32: =ROUND(PnC8f_QproMatt*Belarus*(1-J68),2) -> 782 | K32: =ROUND(PnC8f_Q*Belarus*(1-J68),2) -> 775 | L32: =ROUND(PnC8f_Ql*Belarus*(1-J68),2) -> 695 | M32: =ROUND(PnC8f_Vel*Belarus*(1-J68),2) -> 671 | N32: =ROUND(PnC8f_Atl*Belarus*(1-J68),2) -> 617 | O32: =ROUND(PnC8f_PurMatt*Belarus*(1-O68),2) -> 855 | P32: =ROUND(PnC8f_Pur*Belarus*(1-P68),2) -> 855 | Q32: =ROUND(PnC8f_PurLiteMatt*Belarus*(1-Q68),2) -> 523 | R32: =ROUND(PnC8f_StBarhat*Belarus*(1-R68),2) -> 560 | S32: =ROUND(PnC8f_SatMatt*Belarus*(1-S68),2) -> 518 | T32: =ROUND(PnC8f_Dr*Belarus*(1-T68),2) -> 432 | U32: =ROUND(PnC8f_Sat*Belarus*(1-U70),2) -> 412 | W32: ="профилированная продукция "&(25*Belarus)&" руб./кв.м" -> профилированная продукция 25 руб./кв.м
A33: Профнастил С10 | B33: 1,18/1,15 | C33: 0,5/8 | D33: кв.м | E33: =ROUND(PnC10_Ptdp*Belarus*(1-E68),2) -> 786 | F33: =ROUND(PnC10_Pt*Belarus*(1-E68),2) -> 652 | G33: =ROUND(PnC10_Sf*Belarus*(1-D68),2) -> 683 | H33: =ROUND(PnC10_Sf_a*Belarus*(1-E68),2) -> 621 | I33: =ROUND(PnC10_PtRF*Belarus*(1-I68),2) -> 521 | J33: =ROUND(PnC10_QproMatt*Belarus*(1-J68),2) -> 741 | K33: =ROUND(PnC10_Q*Belarus*(1-J68),2) -> 734 | L33: =ROUND(PnC10_Ql*Belarus*(1-J68),2) -> 653 | M33: =ROUND(PnC10_Vel*Belarus*(1-J68),2) -> 628 | N33: =ROUND(PnC10_Atl*Belarus*(1-J68),2) -> 574 | O33: =ROUND(PnC10_PurMatt*Belarus*(1-O68),2) -> 816 | P33: =ROUND(PnC10_Pur*Belarus*(1-P68),2) -> 816 | Q33: =ROUND(PnC10_PurLiteMatt*Belarus*(1-Q68),2) -> 478 | R33: =ROUND(PnC10_StBarhat*Belarus*(1-R68),2) -> 515 | S33: =ROUND(PnC10_SatMatt*Belarus*(1-S68),2) -> 473 | T33: =ROUND(PnC10_Dr*Belarus*(1-T70),2) -> 385 | U33: =ROUND(PnC10_Sat*Belarus*(1-U70),2) -> 365 | W33: ="штакетник "&(2.5*Belarus)&" руб./п.м" -> штакетник 2,5 руб./п.м
A34: Профнастил С10 Фигурный (1) | B34: 1,18/1,15 | C34: 1,5/3 | D34: кв.м | E34: =ROUND(PnC10f_Ptdp*Belarus*(1-E68),2) -> 841 | F34: =ROUND(PnC10f_Pt*Belarus*(1-E68),2) -> 707 | G34: =ROUND(PnC10f_Sf*Belarus*(1-D68),2) -> 738 | H34: =ROUND(PnC10f_Sf_a*Belarus*(1-E68),2) -> 676 | I34: =ROUND(PnC10f_PtRF*Belarus*(1-I68),2) -> 576 | J34: =ROUND(PnC10f_QproMatt*Belarus*(1-J68),2) -> 796 | K34: =ROUND(PnC10f_Q*Belarus*(1-J68),2) -> 789 | L34: =ROUND(PnC10f_Ql*Belarus*(1-J68),2) -> 708 | M34: =ROUND(PnC10f_Vel*Belarus*(1-J68),2) -> 683 | N34: =ROUND(PnC10f_Atl*Belarus*(1-J68),2) -> 629 | O34: =ROUND(PnC10f_PurMatt*Belarus*(1-O68),2) -> 871 | P34: =ROUND(PnC10f_Pur*Belarus*(1-P68),2) -> 871 | Q34: =ROUND(PnC10f_PurLiteMatt*Belarus*(1-Q68),2) -> 533 | R34: =ROUND(PnC10f_StBarhat*Belarus*(1-R68),2) -> 570 | S34: =ROUND(PnC10f_SatMatt*Belarus*(1-S68),2) -> 528 | T34: =ROUND(PnC10f_Dr*Belarus*(1-T70),2) -> 440 | U34: =ROUND(PnC10f_Sat*Belarus*(1-U70),2) -> 420
A35: Профнастил С20 | B35: 1,165/1,11 | C35: 0,5/8 | D35: кв.м | E35: =ROUND(PnC20_Ptdp*Belarus*(1-E68),2) -> 805 | F35: =ROUND(PnC20_Pt*Belarus*(1-E68),2) -> 667 | G35: =ROUND(PnC20_Sf*Belarus*(1-D68),2) -> 699 | H35: =ROUND(PnC20_Sf_a*Belarus*(1-E68),2) -> 635 | I35: =ROUND(PnC20_PtRF*Belarus*(1-I68),2) -> 532 | J35: =ROUND(PnC20_QproMatt*Belarus*(1-J68),2) -> 759 | K35: =ROUND(PnC20_Q*Belarus*(1-J68),2) -> 751 | L35: =ROUND(PnC20_Ql*Belarus*(1-J68),2) -> 668 | M35: =ROUND(PnC20_Vel*Belarus*(1-J68),2) -> 643 | N35: =ROUND(PnC20_Atl*Belarus*(1-J68),2) -> 586 | O35: =ROUND(PnC20_PurMatt*Belarus*(1-O68),2) -> 835 | P35: =ROUND(PnC20_Pur*Belarus*(1-P68),2) -> 835 | Q35: =ROUND(PnC20_PurLiteMatt*Belarus*(1-Q68),2) -> 488 | R35: =ROUND(PnC20_StBarhat*Belarus*(1-R68),2) -> 527 | S35: =ROUND(PnC20_SatMatt*Belarus*(1-S68),2) -> 486 | T35: =ROUND(PnC20_Dr*Belarus*(1-T70),2) -> 393 | U35: =ROUND(PnC20_Sat*Belarus*(1-U70),2) -> 373 | W35: Наценка на металлический софит
A36: Профнастил С21 | B36: Обн.: 1,040/0,990 | C36: 0,5/12 | D36: кв.м | E36: =ROUND(PnC21_Ptdp*Belarus*(1-E68),2) -> 880 | F36: =ROUND(PnC21_Pt*Belarus*(1-E68),2) -> 730 | G36: =ROUND(PnC21_Sf*Belarus*(1-D68),2) -> 765 | H36: =ROUND(PnC21_Sf_a*Belarus*(1-E68),2) -> 695 | I36: =ROUND(PnC21_PtRF*Belarus*(1-I68),2) -> 582 | J36: =ROUND(PnC21_QproMatt*Belarus*(1-J68),2) -> 830 | K36: =ROUND(PnC21_Q*Belarus*(1-J68),2) -> 822 | L36: =ROUND(PnC21_Ql*Belarus*(1-J68),2) -> 731 | M36: =ROUND(PnC21_Vel*Belarus*(1-J68),2) -> 703 | N36: =ROUND(PnC21_Atl*Belarus*(1-J68),2) -> 642 | O36: =ROUND(PnC21_PurMatt*Belarus*(1-O68),2) -> 913 | P36: =ROUND(PnC21_Pur*Belarus*(1-P68),2) -> 913 | Q36: =ROUND(PnC21_PurLiteMatt*Belarus*(1-Q68),2) -> 537 | R36: =ROUND(PnC21_StBarhat*Belarus*(1-R68),2) -> 576 | S36: =ROUND(PnC21_SatMatt*Belarus*(1-S68),2) -> 531 | T36: =ROUND(PnC21_Dr*Belarus*(1-T70),2) -> 435 | U36: =ROUND(PnC21_Sat*Belarus*(1-U70),2) -> 411 | W36: за заказ менее 25 кв.м. | AB36: 0.1
A37: Профнастил НС35 | B37: 1,06/1,0 | C37: 0,5/12 | D37: кв.м | E37: - | F37: - | G37: - | H37: - | I37: - | J37: =ROUND(PnHC35_QproMatt*Belarus*(1-J68),2) -> 829 | K37: =ROUND(PnHC35_Q*Belarus*(1-J68),2) -> 821 | L37: =ROUND(PnHC35_Ql*Belarus*(1-J68),2) -> 730 | M37: =ROUND(PnHC35_Vel*Belarus*(1-J68),2) -> 702 | N37: =ROUND(PnHC35_Atl*Belarus*(1-J68),2) -> 641 | O37: =ROUND(PnHC35_PurMatt*Belarus*(1-O68),2) -> 912 | P37: =ROUND(PnHC35_Pur*Belarus*(1-P68),2) -> 912 | Q37: =ROUND(PnHC35_PurLiteMatt*Belarus*(1-Q68),2) -> 532 | R37: =ROUND(PnHC35_StBarhat*Belarus*(1-R68),2) -> 575 | S37: =ROUND(PnHC35_SatMatt*Belarus*(1-S68),2) -> 527 | T37: =ROUND(PnHC35_Dr*Belarus*(1-T70),2) -> 429 | U37: =ROUND(PnHC35_Sat*Belarus*(1-U70),2) -> 406
A38: Профнастил Н60 | B38: Обн.: 0,915/0,855 | C38: 0,5/12 | D38: кв.м | E38: - | F38: - | G38: - | H38: - | I38: - | J38: =ROUND(PnH60_QproMatt*Belarus*(1-J68),2) -> 967 | K38: =ROUND(PnH60_Q*Belarus*(1-J68),2) -> 958 | L38: =ROUND(PnH60_Ql*Belarus*(1-J68),2) -> 851 | M38: =ROUND(PnH60_Vel*Belarus*(1-J68),2) -> 820 | N38: =ROUND(PnH60_Atl*Belarus*(1-J68),2) -> 748 | O38: =ROUND(PnH60_PurMatt*Belarus*(1-O68),2) -> 1064 | P38: =ROUND(PnH60_Pur*Belarus*(1-P68),2) -> 1064 | Q38: =ROUND(PnH60_PurLiteMatt*Belarus*(1-Q68),2) -> 620 | R38: =ROUND(PnH60_StBarhat*Belarus*(1-R68),2) -> 671 | S38: =ROUND(PnH60_SatMatt*Belarus*(1-S68),2) -> 616 | T38: - | U38: =ROUND(PnH60_Sat*Belarus*(1-U70),2) -> 475 | W38: Нанесение защитной пленки | AC38: руб./кв.м
A39: Профнастил Н75 | B39: 0,8/0,75 | C39: 0,5/12 | D39: кв.м | E39: - | F39: - | G39: - | H39: - | I39: - | J39: =PnH75_Q -> - | K39: =PnH75_Q -> - | L39: =PnH75_Ql -> - | M39: =PnH75_Vel -> - | N39: =PnH75_Atl -> - | O39: - | P39: =PnH75_Pur -> - | Q39: - | R39: - | S39: - | T39: - | U39: - | W39: Защитная пленка | AC39: =ROUND(15*Belarus,2) -> 15
A40: Штрипс, отмотка и плоский лист
A41: Штрипс для фальца (625 мм) | B41: 0,625/- | C41: 0,5/300 | D41: кв.м | E41: =ROUND(ShtripsFalz_Ptdp*Belarus*(1-E68),2) -> 781 | F41: =ROUND(ShtripsFalz_Pt*Belarus*(1-E68),2) -> 649 | G41: =ROUND(ShtripsFalz_Sf*Belarus*(1-D68),2) -> 680 | H41: =ROUND(ShtripsFalz_Sf_a*Belarus*(1-E68),2) -> 619 | I41: =ROUND(ShtripsFalz_PtRF*Belarus*(1-I68),2) -> 520 | J41: =ROUND(ShtripsFalz_QproMatt*Belarus*(1-J68),2) -> 752 | K41: =ROUND(ShtripsFalz_Q*Belarus*(1-J68),2) -> 746 | L41: =ROUND(ShtripsFalz_Ql*Belarus*(1-J68),2) -> 650 | M41: =ROUND(ShtripsFalz_Vel*Belarus*(1-J68),2) -> 626 | N41: =ROUND(ShtripsFalz_Atl*Belarus*(1-J68),2) -> 572 | O41: =ROUND(ShtripsFalz_PurMatt*Belarus*(1-O68),2) -> 839 | P41: =ROUND(ShtripsFalz_Pur*Belarus*(1-P68),2) -> 839 | Q41: =ROUND(ShtripsFalz_PurLiteMatt*Belarus*(1-Q68),2) -> 478 | R41: =ROUND(ShtripsFalz_StBarhat*Belarus*(1-R68),2) -> 515 | S41: =ROUND(ShtripsFalz_SatMatt*Belarus*(1-S68),2) -> 473 | T41: =ROUND(ShtripsFalz_Dr*Belarus*(1-T71),2) -> 394 | U41: =ROUND(ShtripsFalz_Sat*Belarus*(1-U71),2) -> 367 | W41: Услуги расчета материала: | AC41: руб.
A42: Плоский лист Штрипс (2) Отмотка (2) | B42: 1,250/- | C42: 0,5/7,9 0,5/300 8/500 | D42: кв.м | E42: =ROUND(List_Ptdp*Belarus*(1-E68),2) -> 776 | F42: =ROUND(List_Pt*Belarus*(1-E68),2) -> 644 | G42: =ROUND(List_Sf*Belarus*(1-D68),2) -> 675 | H42: =ROUND(List_Sf_a*Belarus*(1-E68),2) -> 614 | I42: =ROUND(List_PtRF*Belarus*(1-I68),2) -> 515 | J42: =ROUND(List_QproMatt*Belarus*(1-J68),2) -> 747 | K42: =ROUND(List_Q*Belarus*(1-J68),2) -> 741 | L42: =ROUND(List_Ql*Belarus*(1-J68),2) -> 645 | M42: =ROUND(List_Vel*Belarus*(1-J68),2)&" (1)" -> 621 (1) | N42: =ROUND(List_Atl*Belarus*(1-J68),2) -> 567 | O42: =ROUND(List_PurMatt*Belarus*(1-O68),2) -> 834 | P42: =ROUND(List_Pur*Belarus*(1-P68),2) -> 834 | Q42: =ROUND(List_PurLiteMatt*Belarus*(1-Q68),2) -> 473 | R42: =ROUND(List_StBarhat*Belarus*(1-R68),2) -> 510 | S42: =ROUND(List_SatMatt*Belarus*(1-S68),2) -> 468 | T42: =ROUND(List_Dr*Belarus*(1-T71),2) -> 389 | U42: =ROUND(List_Sat*Belarus*(1-U71),2) -> 362 | W42: в Розничном отделе | AC42: =(1000*Belarus) -> 1000
A43: Металлический сайдинг (3) | W43: в Дилерском отделе | AC43: =(400*Belarus) -> 400
A44: Корабельная Доска | B44: Обн.: 0,265/0,24 | C44: 0,5/6 | D44: кв.м | E44: =ROUND((S_KDoska_Ptdp+B_UpakMS)*Belarus*(1-E68),2) -> 852 | F44: =ROUND((S_KDoska_Pt+B_UpakMS)*Belarus*(1-E68),2) -> 709 | G44: =ROUND((S_KDoska_Sf+B_UpakMS)*Belarus*(1-D68),2) -> 744 | H44: =ROUND((S_KDoska_Sf_a+B_UpakMS)*Belarus*(1-E68),2) -> 676 | I44: =ROUND((S_KDoska_PtRF+B_UpakMS)*Belarus*(1-I68),2) -> 578 | J44: =ROUND((S_KDoska_QproMatt+B_UpakMS)*Belarus*(1-J68),2) -> 855 | K44: =ROUND((S_KDoska_Q+B_UpakMS)*Belarus*(1-J68),2) -> 847 | L44: =ROUND((S_KDoska_Ql+B_UpakMS)*Belarus*(1-J68),2) -> 711 | M44: =ROUND((S_KDoska_Vel+B_UpakMS)*Belarus*(1-J68),2) -> 684 | N44: =ROUND((S_KDoska_Atl+B_UpakMS)*Belarus*(1-J68),2) -> 628 | O44: =ROUND((S_KDoska_PurMatt+B_UpakMS)*Belarus*(1-O68),2) -> 886 | P44: =ROUND((S_KDoska_Pur+B_UpakMS)*Belarus*(1-P68),2) -> 886 | Q44: =ROUND((S_KDoska_PurLiteMatt+B_UpakMS)*Belarus*(1-Q68),2) -> 530 | R44: =ROUND((S_KDoska_StBarhat+B_UpakMS)*Belarus*(1-R68),2) -> 570 | S44: =ROUND((S_KDoska_SatMatt+B_UpakMS)*Belarus*(1-S68),2) -> 572 | T44: =ROUND((S_KDoska_Dr+B_UpakMS)*Belarus*(1-T72),2) -> 464 | U44: =ROUND((S_KDoska_Sat+B_UpakMS)*Belarus*(1-U72),2) -> 445
A45: Вертикаль (3) | B45: 0,2/0,176 | C45: 0,5/6 | D45: кв.м | E45: =ROUND((S_Vertikal_Ptdp+B_UpakMS)*Belarus*(1-E68),2) -> 918 | F45: =ROUND((S_Vertikal_Pt+B_UpakMS)*Belarus*(1-E68),2) -> 767 | G45: =ROUND((S_Vertikal_Sf+B_UpakMS)*Belarus*(1-D68),2) -> 802 | H45: =ROUND((S_Vertikal_Sf_a+B_UpakMS)*Belarus*(1-E68),2) -> 729 | I45: =ROUND((S_Vertikal_PtRF+B_UpakMS)*Belarus*(1-I68),2) -> 626 | J45: =ROUND((S_Vertikal_QproMatt+B_UpakMS)*Belarus*(1-J68),2) -> 938 | K45: =ROUND((S_Vertikal_Q+B_UpakMS)*Belarus*(1-J68),2) -> 914 | L45: =ROUND((S_Vertikal_Ql+B_UpakMS)*Belarus*(1-J68),2) -> 769 | M45: =ROUND((S_Vertikal_Vel+B_UpakMS)*Belarus*(1-J68),2) -> 741 | N45: =ROUND((S_Vertikal_Atl+B_UpakMS)*Belarus*(1-J68),2) -> 680 | O45: =ROUND((S_Vertikal_PurMatt+B_UpakMS)*Belarus*(1-O68),2) -> 955 | P45: =ROUND((S_Vertikal_Pur+B_UpakMS)*Belarus*(1-P68),2) -> 955 | Q45: =ROUND((S_Vertikal_PurLiteMatt+B_UpakMS)*Belarus*(1-Q68),2) -> 573 | R45: =ROUND((S_Vertikal_StBarhat+B_UpakMS)*Belarus*(1-R68),2) -> 618 | S45: =ROUND((S_Vertikal_SatMatt+B_UpakMS)*Belarus*(1-S68),2) -> 607 | T45: =ROUND((S_Vertikal_Dr+B_UpakMS)*Belarus*(1-T72),2) -> 522 | U45: =ROUND((S_Vertikal_Sat+B_UpakMS)*Belarus*(1-U72),2) -> 484 | W45: Сопутствующие товары
A46: ЭкоБрус/Gofr (5) | B46: 0,345/0,32 | C46: 0,5/6 | D46: кв.м | E46: =ROUND((S_EBrus_Ptdp+B_UpakMS)*Belarus*(1-E68),2) -> 872 | F46: =ROUND((S_EBrus_Pt+B_UpakMS)*Belarus*(1-E68),2) -> 725 | G46: =ROUND((S_EBrus_Sf+B_UpakMS)*Belarus*(1-D68),2) -> 762 | H46: =ROUND((S_EBrus_Sf_a+B_UpakMS)*Belarus*(1-E68),2) -> 693 | I46: =ROUND((S_EBrus_PtRF+B_UpakMS)*Belarus*(1-I68),2) -> 592 | J46: =ROUND((S_EBrus_QproMatt+B_UpakMS)*Belarus*(1-J68),2) -> 867 | K46: =ROUND((S_EBrus_Q+B_UpakMS)*Belarus*(1-J68),2) -> 859 | L46: - | M46: =ROUND((S_EBrus_Vel+B_UpakMS)*Belarus*(1-J68),2) -> 701 | N46: =ROUND((S_EBrus_Atl+B_UpakMS)*Belarus*(1-J69),2) -> 643 | O46: =ROUND((S_EBrus_PurMatt+B_UpakMS)*Belarus*(1-O68),2) -> 905 | P46: =ROUND((S_EBrus_Pur+B_UpakMS)*Belarus*(1-P68),2) -> 905 | Q46: =ROUND((S_EBrus_PurLiteMatt+B_UpakMS)*Belarus*(1-Q68),2) -> 543 | R46: =ROUND((S_EBrus_StBarhat+B_UpakMS)*Belarus*(1-R68),2) -> 581 | S46: =ROUND((S_EBrus_SatMatt+B_UpakMS)*Belarus*(1-S68),2) -> 581 | T46: =ROUND((S_EBrus_Dr+B_UpakMS)*Belarus*(1-T72),2) -> 475 | U46: =ROUND((S_EBrus_Sat+B_UpakMS)*Belarus*(1-U72),2) -> 462 | W46: DRIPSTOP (антиконденсатное покрытие для профнастила НС35, Р60). Коэфф. расчета Dripstop на кв.м.: НС35 - 1,132, Н60 - 1,330) | AB46: 183 руб./кв.м.
A47: Блок-хаус New (5) | B47: Обн: 0,361/0,334 | C47: 0,5/6 | D47: кв.м | E47: =ROUND((S_BHausNew_Ptdp+B_UpakMS)*Belarus*(1-E68),2) -> 872 | F47: =ROUND(S_BHausNew_Pt*Belarus*(1-E68),2) -> 725 | G47: =ROUND((S_BHausNew_Sf+B_UpakMS)*Belarus*(1-D68),2) -> 762 | H47: =ROUND((S_BHausNew_Sf_a+B_UpakMS)*Belarus*(1-E68),2) -> 693 | I47: =ROUND((S_BHausNew_PtRF+B_UpakMS)*Belarus*(1-I68),2) -> 592 | J47: =ROUND((S_BHausNew_QproMatt+B_UpakMS)*Belarus*(1-J68),2) -> 867 | K47: =ROUND((S_BHausNew_Q+B_UpakMS)*Belarus*(1-J68),2) -> 859 | L47: =ROUND((S_BHausNew_Ql+B_UpakMS)*Belarus*(1-J68),2) -> 726 | M47: =ROUND((S_BHausNew_Vel+B_UpakMS)*Belarus*(1-J68),2) -> 701 | N47: =ROUND((S_BHausNew_Atl+B_UpakMS)*Belarus*(1-J68),2) -> 643 | O47: =ROUND((S_BHausNew_PurMatt+B_UpakMS)*Belarus*(1-O68),2) -> 905 | P47: =ROUND((S_BHausNew_Pur+B_UpakMS)*Belarus*(1-P68),2) -> 905 | Q47: =ROUND((S_BHausNew_PurLiteMatt+B_UpakMS)*Belarus*(1-Q68),2) -> 543 | R47: =ROUND((S_BHausNew_StBarhat+B_UpakMS)*Belarus*(1-R68),2) -> 581 | S47: - | T47: =ROUND((S_BHausNew_Dr+B_UpakMS)*Belarus*(1-T72),2) -> 475 | U47: =ROUND((S_BHausNew_Sat+B_UpakMS)*Belarus*(1-U72),2) -> 462
A48: Металлический штакетник, Цена, руб/ед. изм.
A49: П/М-образный | B49: 0,1/- | C49: 0,5/3 | D49: п.м | E49: =ROUND(Shtaket_MP_Ptdp*Belarus*(1-E75),2) -> 122 | F49: =ROUND(Shtaket_MP_Pt*Belarus*(1-E75),2) -> 94 | G49: =ROUND(Shtaket_MP_Sf*Belarus*(1-D75),2) -> 120 | H49: =ROUND(Shtaket_MP_Sf_a*Belarus*(1-E75),2) -> 109 | I49: =ROUND(Shtaket_MP_PtRF*Belarus*(1-E75),2) -> 83 | J49: =ROUND(Shtaket_MP_QproMatt*Belarus*(1-E75),2) -> 125 | K49: =ROUND(Shtaket_MP_Q*Belarus*(1-E75),2) -> 123 | L49: =ROUND(Shtaket_MP_Ql*Belarus*(1-E75),2) -> 120 | M49: =ROUND(Shtaket_MP_Vel*Belarus*(1-E75),2) -> 115 | N49: =ROUND(Shtaket_MP_Atl*Belarus*(1-E75),2) -> 101 | O49: =ROUND(Shtaket_MP_PurMatt*Belarus*(1-F75),2) -> 151 | P49: =ROUND(Shtaket_MP_Pur*Belarus*(1-E75),2) -> 151 | Q49: =ROUND(Shtaket_MP_PurLiteMatt*Belarus*(1-E75),2) -> 104 | R49: =ROUND(Shtaket_MP_StBarhat*Belarus*(1-E75),2) -> 103 | S49: =ROUND(Shtaket_MP_SatMatt*Belarus*(1-F75),2) -> 94 | T49: =ROUND(Shtaket_MP_Dr*Belarus*(1-E75),2) -> 79 | U49: =ROUND(Shtaket_MP_Sat*Belarus*(1-E75),2) -> 67 | W49: DRIPSTOP (на заказы < 50 кв.м. не наносится)
A50: П/М-образный Фигурный | B50: 0,1/- | C50: 0,5/3 | D50: п.м | E50: =ROUND(Shtaket_MPf_Ptdp*Belarus*(1-E75),2) -> 126 | F50: =ROUND(Shtaket_MPf_Pt*Belarus*(1-E75),2) -> 98 | G50: =ROUND(Shtaket_MPf_Sf*Belarus*(1-D75),2) -> 124 | H50: =ROUND(Shtaket_MPf_Sf_a*Belarus*(1-E75),2) -> 113 | I50: =ROUND(Shtaket_MPf_PtRF*Belarus*(1-E75),2) -> 87 | J50: =ROUND(Shtaket_MPf_QproMatt*Belarus*(1-E75),2) -> 130 | K50: =ROUND(Shtaket_MPf_Q*Belarus*(1-E75),2) -> 128 | L50: =ROUND(Shtaket_MPf_Ql*Belarus*(1-E75),2) -> 125 | M50: =ROUND(Shtaket_MPf_Vel*Belarus*(1-E75),2) -> 120 | N50: =ROUND(Shtaket_MPf_Atl*Belarus*(1-E75),2) -> 106 | O50: =ROUND(Shtaket_MPf_PurMatt*Belarus*(1-F75),2) -> 155 | P50: =ROUND(Shtaket_MPf_Pur*Belarus*(1-E75),2) -> 155 | Q50: =ROUND(Shtaket_MPf_PurLiteMatt*Belarus*(1-E75),2) -> 108 | R50: =ROUND(Shtaket_MPf_StBarhat*Belarus*(1-E75),2) -> 107 | S50: =ROUND(Shtaket_MPf_SatMatt*Belarus*(1-F75),2) -> 98 | T50: =ROUND(Shtaket_MPf_Dr*Belarus*(1-E75),2) -> 83 | U50: =ROUND(Shtaket_MPf_Sat*Belarus*(1-E75),2) -> 71
A51: Twin | B51: 0,1/- | C51: 0,5/3 | D51: п.м | E51: =ROUND(Shtaket_Tw_Ptdp*Belarus*(1-E76),2) -> 127 | F51: =ROUND(Shtaket_Tw_Pt*Belarus*(1-E76),2) -> 99 | G51: =ROUND(Shtaket_Tw_Sf*Belarus*(1-E76),2) -> 125 | H51: =ROUND(Shtaket_Tw_Sf_a*Belarus*(1-E76),2) -> 114 | I51: =ROUND(Shtaket_Tw_PtRF*Belarus*(1-E76),2) -> 88 | J51: - | K51: - | L51: - | M51: - | N51: - | O51: - | P51: - | Q51: - | R51: - | S51: - | T51: =ROUND(Shtaket_Tw_Dr*Belarus*(1-E76),2) -> 84 | U51: -
A52: Twin Фигурный | B52: 0,1/- | C52: 0,5/3 | D52: п.м | E52: =ROUND(Shtaket_Twf_Ptdp*Belarus*(1-E76),2) -> 131 | F52: =ROUND(Shtaket_Twf_Pt*Belarus*(1-E76),2) -> 103 | G52: =ROUND(Shtaket_Twf_Sf*Belarus*(1-E76),2) -> 129 | H52: =ROUND(Shtaket_Twf_Sf_a*Belarus*(1-E76),2) -> 118 | I52: =ROUND(Shtaket_Twf_PtRF*Belarus*(1-E76),2) -> 92 | J52: - | K52: - | L52: - | M52: - | N52: - | O52: - | P52: - | Q52: - | R52: - | S52: - | T52: =ROUND(Shtaket_Twf_Dr*Belarus*(1-E76),2) -> 88 | U52: -
A53: Полукруглый NEW | B53: 0,131 / - | C53: 0,5/2,5 | D53: п.м | E53: =ROUND(Shtaket_Pk_Ptdp*Belarus*(1-E76),2) -> 137 | F53: =ROUND(Shtaket_Pk_Pt*Belarus*(1-E76),2) -> 108 | G53: =ROUND(Shtaket_Pk_Sf*Belarus*(1-E76),2) -> 134 | H53: =ROUND(Shtaket_Pk_Sf_a*Belarus*(1-E76),2) -> 123 | I53: =ROUND(Shtaket_Pk_PtRF*Belarus*(1-E76),2) -> 97 | J53: =ROUND(Shtaket_Pk_QproMatt*Belarus*(1-E76),2) -> 146 | K53: =ROUND(Shtaket_Pk_Q*Belarus*(1-E76),2) -> 144 | L53: =ROUND(Shtaket_Pk_Ql*Belarus*(1-E76),2) -> 141 | M53: =ROUND(Shtaket_Pk_Vel*Belarus*(1-E76),2) -> 138 | N53: =ROUND(Shtaket_Pk_Atl*Belarus*(1-E76),2) -> 122 | O53: =ROUND(Shtaket_Pk_PurMatt*Belarus*(1-E76),2) -> 170 | P53: =ROUND(Shtaket_Pk_Pur*Belarus*(1-E76),2) -> 170 | Q53: =ROUND(Shtaket_Pk_PurLiteMatt*Belarus*(1-E76),2) -> 123 | R53: =ROUND(Shtaket_Pk_StBarhat*Belarus*(1-E76),2) -> 122 | S53: =ROUND(Shtaket_Pk_SatMatt*Belarus*(1-E76),2) -> 112 | T53: =ROUND(Shtaket_Pk_Dr*Belarus*(1-E76),2) -> 93 | U53: =ROUND(Shtaket_Pk_Sat*Belarus*(1-E76),2) -> 81
A54: Полукруглый Фигурный NEW | B54: 0,131 / - | C54: 0,5/2,5 | D54: п.м | E54: =ROUND(Shtaket_Pkf_Ptdp*Belarus*(1-E76),2) -> 141 | F54: =ROUND(Shtaket_Pkf_Pt*Belarus*(1-E76),2) -> 112 | G54: =ROUND(Shtaket_Pkf_Sf*Belarus*(1-D76),2) -> 138 | H54: =ROUND(Shtaket_Pkf_Sf_a*Belarus*(1-E76),2) -> 127 | I54: =ROUND(Shtaket_Pkf_PtRF*Belarus*(1-E76),2) -> 101 | J54: =ROUND(Shtaket_Pkf_QproMatt*Belarus*(1-E76),2) -> 150 | K54: =ROUND(Shtaket_Pkf_Q*Belarus*(1-E76),2) -> 148 | L54: =ROUND(Shtaket_Pkf_Ql*Belarus*(1-E76),2) -> 145 | M54: =ROUND(Shtaket_Pkf_Vel*Belarus*(1-E76),2) -> 141 | N54: =ROUND(Shtaket_Pkf_Atl*Belarus*(1-E76),2) -> 126 | O54: =ROUND(Shtaket_Pkf_PurMatt*Belarus*(1-E76),2) -> 174 | P54: =ROUND(Shtaket_Pkf_Pur*Belarus*(1-E76),2) -> 174 | Q54: =ROUND(Shtaket_Pkf_PurLiteMatt*Belarus*(1-E76),2) -> 127 | R54: =ROUND(Shtaket_Pkf_StBarhat*Belarus*(1-E76),2) -> 126 | S54: =ROUND(Shtaket_Pkf_SatMatt*Belarus*(1-E76),2) -> 116 | T54: =ROUND(Shtaket_Pkf_Dr*Belarus*(1-E76),2) -> 97 | U54: =ROUND(Shtaket_Pkf_Sat*Belarus*(1-E76),2) -> 85
A55: Круглый | B55: 0,128 / - | C55: 0,5/3,5 | D55: п.м | E55: =ROUND(Shtaket_Kr_Ptdp*Belarus*(1-E77),2)&" руб. в покрытии Colority Print 0,45 двс" -> 137 руб. в покрытии Colority Print 0,45 двс | J55: - | K55: - | L55: - | M55: =ROUND(Shtaket_Kr_Vel*Belarus*(1-E77),2) -> 138 | N55: - | O55: - | P55: - | Q55: - | R55: - | S55: - | T55: - | U55: -
A56: Круглый Фигурный | B56: 0,128 / - | C56: 0,5/3,5 | D56: п.м | E56: =ROUND(Shtaket_Krf_Ptdp*Belarus*(1-E77),2)&" руб. в покрытии Colority Print 0,45 двс" -> 141 руб. в покрытии Colority Print 0,45 двс | J56: - | K56: - | L56: - | M56: =ROUND(Shtaket_Krf_Vel*Belarus*(1-E77),2) -> 141 | N56: - | O56: - | P56: - | Q56: - | R56: - | S56: - | T56: - | U56: -
A57: Прямоугольный | B57: 0,118 / - | C57: 0,5/3,5 | D57: п.м | E57: =ROUND(Shtaket_Pr_Ptdp*Belarus*(1-E77),2)&" руб. в покрытии Colority Print 0,45 двс" -> 137 руб. в покрытии Colority Print 0,45 двс | J57: - | K57: - | L57: - | M57: =ROUND(Shtaket_Pr_Vel*Belarus*(1-E77),2) -> 138 | N57: - | O57: - | P57: - | Q57: - | R57: - | S57: - | T57: - | U57: -
A58: Прямоугольный Фигурный | B58: 0,118 / - | C58: 0,5/3,5 | D58: п.м | E58: =ROUND(Shtaket_Prf_Ptdp*Belarus*(1-E77),2)&" руб. в покрытии Colority Print 0,45 двс" -> 141 руб. в покрытии Colority Print 0,45 двс | J58: - | K58: - | L58: - | M58: =ROUND(Shtaket_Prf_Vel*Belarus*(1-E77),2) -> 141 | N58: - | O58: - | P58: - | Q58: - | R58: - | S58: - | T58: - | U58: -
A60: Сокращения: Обн. - производство Обнинск (Верховье); СПБ - производство Санкт-Петербург (Гатчина); НН - производство Нижний Новгород (Дружный); Врн - производство Воронеж (Масловская промзона)
A61: Внимание! Все примечания смотрите на отдельной странице (вся профилировка_примечания).
A66: Ваша скидка | E66: Design | I66: Print РФ | J66: Premium | O66: PURAL МАTТ | P66: PURAL | Q66: PurLite Matt | R66: Стальной Бархат | S66: Satin Matt | T66: Drap | U66: Satin
A68: Металлочерепица | E68: 0 | I68: 0 | J68: 0 | O68: 0 | P68: 0 | Q68: 0 | R68: 0 | S68: 0 | T68: 0 | U68: 0
A69: Фальцевая кровля | T69: 0 | U69: 0
A70: Профнастил | T70: 0 | U70: 0
A71: Плоский лист/отмотка/штрипс | T71: 0 | U71: 0
A72: Металлический сайдинг | T72: 0 | U72: 0
A73: Металлочерепица Kvinta Uno | E73: 0 | I73: 0 | J73: 0 | O73: 0 | P73: 0 | Q73: 0 | R73: 0 | S73: 0 | T73: 0 | U73: 0
A74: Софит | E74: 0
A75: Штакетник М/П | E75: 0
A76: Штакетник Twin, Полукруглый | E76: 0
A77: Штакетник Круглый/Прямоугольн. | E77: 0
A97: 2020-04-27 | B97: Цена: техническая корректировка подкладочных ковров Katepal (1.6) Новинка: профилированная продукция и штакетник в покрытии 0.4 ПЭ двс (Вся проф-ка ч2, 1.1, 5.1) Ассортимент: коррекция акционного ассортимента модульных ограждений (5.5) Иное: скорректированы примечания на страницах Вся проф-ка (ч1, ч.2), Профилировка (Примечания)

Sheet Вся профилировка (ч2)
A1: Вернуться в начало
A2: Профилированная продукция Grand Line (ЧАСТЬ 2) | AC2: дата изменения страницы прайса: | AD2: 2020-04-30
AC3: цены действительны с | AD3: 2020-04-27
A4: Наименование профиля | B4: Ширина общая / полезная, м | C4: Длина, м | D4: Ед. изм. | E4: Цена, руб./ед.изм. | Y4: Наценки на заказы
E5: PE 0,45 двс | F5: PE 0,4 двс NEW | G5: PE | K5: PE Matt | L5: Дачный | P5: Цинк
L6: PE Дачный пр-во | M6: PE Дачный склад (7) | N6: Дачный Print (склад) (7) | O6: Дачный Print Twincolor (склад) (7) | P6: Zn | Y6: Наценка при заказе металлочерепицы и профнастила (а также штрипсы, отмотки и плоского листа)
A7: Защитный слой, гр/кв.м. | E7: Zn 140 | F7: Zn 60-100 | G7: Zn 100 | J7: Zn 60-100 | P7: Zn 80-140 | U7: Zn 100-140
A8: Толщина металла, мм/покрытия, мкм | E8: 0,45 / 25 | F8: 0.4 | G8: 0.8 | H8: 0.7 | I8: 0,45 (4) | J8: 0.4 | K8: 0.4 | L8: 0.35 | P8: 0.35 | Q8: 0.4 | R8: 0.45 | S8: 0.5 | T8: 0.55 | U8: 0.7 | V8: 0.8 | W8: 0.9 | Y8: Объем заказа | AA8: Наценка | AC8: Срок изготовления
A9: Письменная гарантия Grand Line | E9: 10 лет | F9: 2 года | G9: 10 лет | H9: 10 лет | I9: 10 лет | J9: 2 года | K9: 2 года | L9: 1 год | M9: 1 год | N9: 1 год | O9: 1 год | P9: 6 месяцев | U9: 6 месяцев | Y9: менее 5 кв.м. | AA9: 0.7 | AC9: стандартный
A10: Металлочерепица, фальцевая кровля и софит металлический | Y10: от 5 до 9,99 кв.м. | AA10: 0.3
A11: Kvinta plus | B11: 1,21/1,15 | C11: 0,5/6,5 | D11: кв.м | E11: - | F11: - | G11: - | H11: - | I11: =ROUND((KvintaPl_Pe045-Belaruskv)*Belarus*(1-I67),2) -> 370 | J11: - | K11: - | L11: - | M11: - | N11: - | O11: - | P11: - | Q11: - | R11: - | S11: - | T11: - | U11: - | V11: - | W11: - | Y11: от 10 до 25 кв.м. | AA11: 0.15
A12: Kvinta plus 3D | B12: 1,21/1,15 | C12: 0,47/6 | D12: кв.м | E12: - | F12: - | G12: - | H12: - | I12: =I11 -> 370 | J12: - | K12: - | L12: - | M12: - | N12: - | O12: - | P12: - | Q12: - | R12: - | S12: - | T12: - | U12: - | V12: - | W12: - | Y12: менее 25 кв.м. | AA12: нет | AC12: бессрочный
A13: Kvinta Uno | B13: 1,21/1,15 | C13: 0.72 | D13: кв.м | E13: - | F13: - | G13: - | H13: - | I13: =ROUND((KvintaUno_Pe045-Belaruskv)*Belarus*(1-I72),2) -> 370 | J13: - | K13: - | L13: - | M13: - | N13: - | O13: - | P13: - | Q13: - | R13: - | S13: - | T13: - | U13: - | V13: - | W13: -
D14: шт. | I14: =ROUND(I13*(1.21*0.72),1) -> 322.3 | K14: - | N14: - | O14: -
A15: Kamea | B15: 1,18/1,085 | C15: 0,5/6,5 | D15: кв.м | E15: - | F15: - | G15: - | H15: - | I15: =ROUND(Kamea_Pe045*Belarus*(1-I67),2) -> 366 | J15: - | K15: - | L15: - | M15: - | N15: - | O15: - | P15: - | Q15: - | R15: - | S15: - | T15: - | U15: - | V15: - | W15: - | Y15: Наценка на фальцевую кровлю:
A16: Kredo | B16: 1,19/1,125 | C16: 0,85/6,5 | D16: кв.м | E16: - | F16: - | G16: - | H16: - | I16: =ROUND(Kredo_Pe045*Belarus*(1-I67),2) -> 366 | J16: - | K16: - | L16: - | M16: - | N16: - | O16: - | P16: - | Q16: - | R16: - | S16: - | T16: - | U16: - | V16: - | W16: - | Y16: Объем заказа | AB16: Наценка | AD16: Срок изготовления
A17: Classic | B17: 1,183/1,1 | C17: 0,5/6,5 | D17: кв.м | E17: - | F17: - | G17: - | H17: - | I17: =ROUND(Classic_Pe045*Belarus*(1-I67),2) -> 351 | J17: =ROUND(Classic_Pe04*Belarus*(1-J67),2) -> 273 | K17: =ROUND(Classic_PeMatt04*Belarus*(1-J67),2) -> 401 | L17: - | M17: - | N17: - | O17: - | P17: - | Q17: - | S17: - | T17: - | U17: - | V17: - | W17: - | Y17: менее 7 кв.м. | AB17: =(1000*Belarus)&" руб." -> 1000 руб. | AD17: стандартный
A18: Modern | B18: 1,183/1,1 | C18: 0,5/6,5 | D18: кв.м | E18: - | F18: - | G18: - | H18: - | I18: =ROUND(Modern_Pe045*Belarus*(1-I67),2) -> 351 | J18: =ROUND(Modern_Pe04*Belarus*(1-J67),2) -> 273 | K18: =ROUND(Modern_PeMatt04*Belarus*(1-J67),2) -> 401 | L18: - | M18: - | N18: - | P18: - | Q18: - | R18: - | S18: - | T18: - | U18: - | V18: - | W18: - | Y18: от 7 до 24,99 кв.м. | AB18: 1
E19: - | G19: - | H19: - | I19: =ROUND(Quadro_Pe045*Belarus*(1-I67),2) -> 366 | J19: =ROUND(Quadro_Pe04*Belarus*(1-J67),2) -> 288 | K19: =ROUND(Quadro_PeMatt04*Belarus*(1-K67),2) -> 416 | L19: - | M19: - | P19: - | Q19: - | R19: - | S19: - | T19: - | U19: - | V19: - | W19: -
A20: Софит металлический (1) | B20: 0,357/0,325 | C20: 0,2/6 | D20: кв.м | E20: - | F20: - | G20: - | H20: - | I20: =ROUND(Sofit_Pe045*Belarus*(1-E73),2) -> 671 | J20: - | K20: - | L20: - | M20: - | N20: - | O20: - | P20: - | Q20: - | R20: - | S20: - | T20: - | U20: - | V20: - | W20: - | Y20: от 25 до 49,99 кв.м. | AB20: 0.2
A21: Двойной стоячий фальц / Двойной стоячий фальц Line (1) | B21: Обн.: 0,625/0,55 | C21: 1,2/9 | D21: п.м | E21: - | F21: - | G21: - | H21: =ROUND(H22/1*0.625,1) -> 308.8 | I21: =ROUND(I22/1*0.625,1) -> 229.4 | J21: - | K21: - | L21: - | M21: - | N21: - | O21: - | P21: - | Q21: - | R21: - | S21: - | T21: =ROUND(T22/1*0.625,1) -> 216.3 | U21: =ROUND(U22/1*0.625,1) -> 253.1 | Y21: менее 50 кв.м. | AB21: нет | AD21: бессрочный
D22: кв.м | E22: - | F22: - | G22: - | H22: =ROUND((Falz2_Pe07+B_UpakFalz)*Belarus*(1-H68),2) -> 494 | I22: =ROUND((Falz2_Pe045+B_UpakFalz)*Belarus*(1-I68),2) -> 367 | J22: - | K22: - | L22: - | M22: - | O22: - | P22: - | Q22: - | R22: - | S22: - | T22: =ROUND((Falz2_Zn055+B_UpakFalz)*Belarus*(1-T68),2) -> 346 | U22: =ROUND((Falz2_Zn07+B_UpakFalz)*Belarus*(1-U68),2) -> 405 | V22: - | W22: -
A23: Кликфальц Pro / Кликфальц Pro Line / Кликфальц Pro Gofr (1) NEW | B23: 0,517/0,470 | C23: 1,2/9 | D23: п.м | E23: - | F23: - | G23: - | H23: - | I23: =ROUND(I24/1.209*0.625,1) -> 231.6 | J23: - | K23: - | L23: - | M23: - | N23: - | O23: - | P23: - | Q23: - | R23: =ROUND(R24/1.209*0.625,1) -> 185.6 | S23: =ROUND(S24/1.209*0.625,1) -> 194.9 | T23: =ROUND(T24/1.209*0.625,1) -> 218.7 | U23: - | V23: - | W23: - | Y23: Наценка на металлический сайдинг:
D24: кв.м | E24: - | F24: - | G24: - | H24: - | I24: =ROUND((KlikPro_Pe045+B_UpakFalz)*Belarus*(1-I68),2) -> 448 | J24: - | K24: - | L24: - | M24: - | N24: - | O24: - | P24: - | Q24: - | R24: =ROUND((KlikPro_Zn045+B_UpakFalz)*Belarus*(1-R68),2) -> 359 | S24: =ROUND((KlikPro_Zn05+B_UpakFalz)*Belarus*(1-S68),2) -> 377 | T24: =ROUND((KlikPro_Zn055+B_UpakFalz)*Belarus*(1-T68),2) -> 423 | U24: - | V24: - | W24: - | Y24: Объем заказа | AB24: Наценка | AD24: Срок изготовления
A25: Кликфальц / Кликфальц Line (1) | B25: Обн.: 0,542/0,51 | C25: 1,2/9 | D25: п.м | E25: - | F25: - | G25: - | H25: =ROUND(H26/1.153*0.625,1) -> 308.4 | I25: =ROUND(I26/1.153*0.625,1) -> 229.3 | J25: - | K25: - | L25: - | M25: - | N25: - | O25: - | P25: - | Q25: - | R25: - | S25: - | T25: =ROUND(T26/1.153*0.625,1) -> 216.3 | U25: =ROUND(U26/1.153*0.625,1) -> 253.1 | V25: - | W25: - | Y25: менее 7 кв.м. | AB25: =(1500*Belarus)&" руб." -> 1500 руб. | AD25: стандартный
D26: кв.м | E26: - | F26: - | G26: - | H26: =ROUND((Klik_Pe07+B_UpakFalz)*Belarus*(1-H68),2) -> 569 | I26: =ROUND((Klik_Pe045+B_UpakFalz)*Belarus*(1-I68),2) -> 423 | J26: - | K26: - | L26: - | M26: - | N26: - | O26: - | P26: - | Q26: - | R26: - | S26: - | T26: =ROUND((Klik_Zn055+B_UpakFalz)*Belarus*(1-T68),2) -> 399 | U26: =ROUND((Klik_Zn07+B_UpakFalz)*Belarus*(1-U68),2) -> 467 | V26: - | W26: - | Y26: от 7 до 24,99 кв.м. | AB26: 1
A27: Кликфальц Mini (1) | B27: Обн.: 0,334/0,305 | C27: 1,2/9 | D27: п.м | E27: - | F27: - | G27: - | H27: =ROUND(H28/1.249*0.625,1) -> 308.7 | I27: =ROUND(I28/1.249*0.625,1) -> 229.2 | J27: - | K27: - | L27: - | M27: - | N27: - | O27: - | P27: - | Q27: - | R27: - | S27: - | T27: =ROUND(T28/1.249*0.625,1) -> 216.2 | U27: =ROUND(U28/1.249*0.625,1) -> 253.2 | V27: - | W27: - | Y27: менее 25 кв.м. | AB27: нет | AD27: бессрочный
D28: кв.м | E28: - | F28: - | G28: - | H28: =ROUND((Klik_mini_Pe07+B_UpakFalz)*Belarus*(1-H68),2) -> 617 | I28: =ROUND((Klik_mini_Pe045+B_UpakFalz)*Belarus*(1-I68),2) -> 458 | J28: - | K28: - | L28: - | M28: - | N28: - | O28: - | P28: - | Q28: - | R28: - | S28: - | T28: =ROUND((Klik_mini_Zn055+B_UpakFalz)*Belarus*(1-T68),2) -> 432 | U28: =ROUND((Klik_mini_Zn07+B_UpakFalz)*Belarus*(1-U68),2) -> 506 | V28: - | W28: -
A29: Профилированный лист | Y29: Наценка на продукцию в цвете RAL 7016 (для всех покрытий, кроме группы Premium) и в цветах RAL 2004, RAL 1018
A30: Профнастил С8 | B30: 1,2/1,16 | C30: 0,5/8 | D30: кв.м | E30: =ROUND(PnC8_PEdp*Belarus*(1-E69),2) -> 353 | F30: =ROUND(PnC8_Pe04dp*Belarus*(1-F69),2) -> 334 | G30: - | H30: - | I30: =ROUND(PnC8_Pe045*Belarus*(1-I69),2) -> 327 | J30: =ROUND(PnC8_Pe04*Belarus*(1-J69),2) -> 252 | K30: =ROUND(PnC8_PeMatt04*Belarus*(1-J69),2) -> 373 | L30: =ROUND(PnC8_dachPr*Belarus*(1-L69),2) -> 237 | M30: =ROUND(PnC8_dachSk*Belarus*(1-M69),2) -> 225 | N30: =ROUND(PnC8_dachPr_k*Belarus*(1-N69),2) -> 320 | O30: =ROUND(PnC8_dachPr_tw*Belarus*(1-O69),2) -> 310 | P30: =ROUND(PnC8_Zn035*Belarus*(1-P69),2) -> 206 | Q30: =ROUND(PnC8_Zn04*Belarus*(1-Q69),2) -> 232 | R30: =ROUND(PnC8_Zn045*Belarus*(1-R69),2) -> 251 | S30: =ROUND(PnC8_Zn05*Belarus*(1-S69),2) -> 266 | T30: =ROUND(PnC8_Zn055*Belarus*(1-T69),2) -> 305 | U30: - | V30: - | W30: -
A31: Профнастил С8 Фигурный (1) | B31: 1,2/1,16 | C31: 0,5/2 | D31: кв.м | E31: =ROUND(PnC8f_PEdp*Belarus*(1-E69),2) -> 408 | F31: =ROUND(PnC8f_Pe04dp*Belarus*(1-F69),2) -> 389 | G31: - | H31: - | I31: =ROUND(PnC8f_Pe045*Belarus*(1-I69),2) -> 382 | J31: =ROUND(PnC8f_Pe04*Belarus*(1-J69),2) -> 307 | K31: =ROUND(PnC8f_PeMatt04*Belarus*(1-J69),2) -> 428 | L31: - | M31: - | N31: - | O31: - | P31: - | Q31: - | R31: =ROUND(PnC8f_Zn045*Belarus*(1-R69),2) -> 306 | S31: =ROUND(PnC8f_Zn05*Belarus*(1-S69),2) -> 321 | T31: - | U31: - | V31: - | W31: - | Y31: ="профилированная продукция "&(25*Belarus)&" руб./кв.м" -> профилированная продукция 25 руб./кв.м
A32: Профнастил С10 | B32: 1,18/1,15 | C32: 0,5/8 | D32: кв.м | E32: =ROUND(PnC10_PEdp*Belarus*(1-E69),2) -> 361 | F32: =ROUND(PnC10_Pe04dp*Belarus*(1-F69),2) -> 342 | G32: - | H32: =ROUND(PnC10_Pe07*Belarus*(1-H69),2) -> 469 | I32: =ROUND(PnC10_Pe045*Belarus*(1-I69),2) -> 335 | J32: =ROUND(PnC10_Pe04*Belarus*(1-J69),2) -> 258 | K32: =ROUND(PnC10_PeMatt04*Belarus*(1-J69),2) -> 381 | L32: =ROUND(PnC10_dachPr*Belarus*(1-L69),2) -> 243 | M32: - | N32: - | O32: - | P32: =ROUND(PnC10_Zn035*Belarus*(1-P69),2) -> 211 | Q32: =ROUND(PnC10_Zn04*Belarus*(1-Q69),2) -> 238 | R32: =ROUND(PnC10_Zn045*Belarus*(1-R69),2) -> 257 | S32: =ROUND(PnC10_Zn05*Belarus*(1-S69),2) -> 273 | T32: =ROUND(PnC10_Zn055*Belarus*(1-T69),2) -> 312 | U32: =ROUND(PnC10_Zn07*Belarus*(1-U69),2) -> 375 | V32: - | W32: - | Y32: ="штакетник "&(2.5*Belarus)&" руб./п.м" -> штакетник 2,5 руб./п.м
A33: Профнастил С10 Фигурный (1) | B33: 1,18/1,15 | C33: 1,5/3 | D33: кв.м | E33: =ROUND(PnC10f_PEdp*Belarus*(1-E69),2) -> 416 | F33: =ROUND(PnC10f_Pe04dp*Belarus*(1-F69),2) -> 397 | G33: - | H33: - | I33: =ROUND(PnC10f_Pe045*Belarus*(1-I69),2) -> 390 | J33: - | K33: =ROUND(PnC10f_PeMatt04*Belarus*(1-J69),2) -> 436 | L33: - | M33: - | N33: - | O33: - | P33: - | Q33: - | R33: =ROUND(PnC10f_Zn045*Belarus*(1-R69),2) -> 312 | S33: =ROUND(PnC10f_Zn05*Belarus*(1-S69),2) -> 328 | T33: - | U33: - | V33: - | W33: -
A34: Профнастил С20 | B34: 1,165/1,11 | C34: 0,5/8 | D34: кв.м | E34: =ROUND(PnC20_PEdp*Belarus*(1-E69),2) -> 371 | F34: =ROUND(PnC20_Pe04dp*Belarus*(1-F69),2) -> 349 | G34: - | H34: =ROUND(PnC20_Pe07*Belarus*(1-H69),2) -> 499 | I34: =ROUND(PnC20_Pe045*Belarus*(1-I69),2) -> 341 | J34: =ROUND(PnC20_Pe04*Belarus*(1-J69),2) -> 263 | K34: =ROUND(PnC20_PeMatt04*Belarus*(1-J69),2) -> 389 | L34: =ROUND(PnC20_dachPr*Belarus*(1-L69),2) -> 247 | M34: =ROUND(PnC20_dachSk*Belarus*(1-M69),2) -> 233 | N34: - | O34: - | P34: =ROUND(PnC20_Zn035*Belarus*(1-P69),2) -> 215 | Q34: =ROUND(PnC20_Zn04*Belarus*(1-Q69),2) -> 242 | R34: =ROUND(PnC20_Zn045*Belarus*(1-R69),2) -> 262 | S34: =ROUND(PnC20_Zn05*Belarus*(1-S69),2) -> 278 | T34: =ROUND(PnC20_Zn055*Belarus*(1-T69),2) -> 318 | U34: =ROUND(PnC20_Zn07*Belarus*(1-U69),2) -> 383 | V34: - | W34: - | Y34: Наценка на металлический софит
A35: Профнастил С21 | B35: Обн.: 1,040/0,99 | C35: 0,5/12 | D35: кв.м | E35: =ROUND(PnC21_PEdp*Belarus*(1-E69),2) -> 403 | F35: =ROUND(PnC21_Pe04dp*Belarus*(1-F69),2) -> 381 | G35: - | H35: =ROUND(PnC21_Pe07*Belarus*(1-H69),2) -> 547 | I35: =ROUND(PnC21_Pe045*Belarus*(1-I69),2) -> 377 | J35: =ROUND(PnC21_Pe04*Belarus*(1-J69),2) -> 288 | K35: =ROUND(PnC21_PeMatt04*Belarus*(1-J69),2) -> 426 | L35: - | M35: - | N35: - | O35: - | P35: - | Q35: =ROUND(PnC21_Zn04*Belarus*(1-Q69),2) -> 265 | R35: =ROUND(PnC21_Zn045*Belarus*(1-R69),2) -> 287 | S35: =ROUND(PnC21_Zn05*Belarus*(1-S69),2) -> 304 | T35: =ROUND(PnC21_Zn055*Belarus*(1-T69),2) -> 348 | U35: =ROUND(PnC21_Zn07*Belarus*(1-U69),2) -> 419 | V35: - | W35: - | Y35: за заказ менее 25 кв.м. | AD35: 0.1
A36: Профнастил НС35 | B36: 1,06/1,0 | C36: 0,5/12 | D36: кв.м | E36: - | F36: - | G36: =ROUND(PnHC35_Pe08*Belarus*(1-G69),2) -> 628 | H36: =ROUND(PnHC35_Pe07*Belarus*(1-H69),2) -> 540 | I36: - | J36: - | K36: - | L36: - | M36: - | N36: - | O36: - | P36: - | Q36: - | R36: - | S36: =ROUND(PnHC35_Zn05*Belarus*(1-S69),2) -> 300 | T36: =ROUND(PnHC35_Zn055*Belarus*(1-T69),2) -> 344 | U36: =ROUND(PnHC35_Zn07*Belarus*(1-U69),2) -> 416 | V36: =ROUND(PnHC35_Zn08*Belarus*(1-V69),2) -> 482 | W36: -
A37: Профнастил Н60 | B37: Обн.: 0,915/0,855 | C37: 0,5/12 | D37: кв.м | E37: - | F37: - | G37: =ROUND(PnH60_Pe08*Belarus*(1-G69),2) -> 738 | H37: =ROUND(PnH60_Pe07*Belarus*(1-H69),2) -> 634 | I37: - | J37: - | K37: - | L37: - | M37: - | N37: - | O37: - | P37: - | Q37: - | R37: - | S37: =ROUND(PnH60_Zn05*Belarus*(1-S69),2) -> 354 | T37: =ROUND(PnH60_Zn055*Belarus*(1-T69),2) -> 393 | U37: =ROUND(PnH60_Zn07*Belarus*(1-U69),2) -> 475 | V37: =ROUND(PnH60_Zn08*Belarus*(1-V69),2) -> 550 | W37: =ROUND(PnH60_Zn09*Belarus*(1-W69),2) -> 613 | Y37: Нанесение защитной пленки | AE37: руб./кв.м
A38: Профнастил Н75 | B38: 0,8/0,75 | C38: 0,5/12 | D38: кв.м | E38: - | F38: - | G38: =ROUND(PnH75_Pe08*Belarus*(1-G69),2) -> 834 | H38: =ROUND(PnH75_Pe07*Belarus*(1-H69),2) -> 717 | I38: - | J38: - | K38: - | L38: - | M38: - | N38: - | O38: - | P38: - | Q38: - | R38: - | S38: - | T38: - | U38: =ROUND(PnH75_Zn07*Belarus*(1-U69),2) -> 536 | V38: =ROUND(PnH75_Zn08*Belarus*(1-V69),2) -> 621 | W38: =ROUND(PnH75_Zn09*Belarus*(1-W69),2) -> 691 | Y38: Защитная пленка | AE38: =ROUND(15*Belarus,2) -> 15
A39: Штрипс, отмотка и плоский лист
A40: Штрипс для фальца (625 мм) | B40: 0,625/- | C40: 0,5/300 | D40: кв.м | E40: =ROUND(ShtripsFalz_PEdp*Belarus*(1-E70),2) -> 353 | F40: =ROUND(ShtripsFalz_Pe04dp*Belarus*(1-F70),2) -> 334 | G40: =ROUND(ShtripsFalz_Pe08*Belarus*(1-G70),2) -> 531 | H40: =ROUND(ShtripsFalz_Pe07*Belarus*(1-H70),2) -> 459 | I40: =ROUND(ShtripsFalz_Pe045*Belarus*(1-I70),2) -> 327 | J40: =ROUND(ShtripsFalz_Pe04*Belarus*(1-J70),2) -> 252 | K40: =ROUND(ShtripsFalz_PeMatt04*Belarus*(1-J70),2) -> 373 | L40: - | M40: - | N40: - | O40: - | P40: =ROUND(ShtripsFalz_Zn035*Belarus*(1-P70),2) -> 199 | Q40: =ROUND(ShtripsFalz_Zn04*Belarus*(1-Q70),2) -> 223 | R40: =ROUND(ShtripsFalz_Zn045*Belarus*(1-R70),2) -> 241 | S40: =ROUND(ShtripsFalz_Zn05*Belarus*(1-S70),2) -> 255 | T40: =ROUND(ShtripsFalz_Zn055*Belarus*(1-T70),2) -> 292 | U40: =ROUND(ShtripsFalz_Zn07*Belarus*(1-U70),2) -> 352 | V40: =ROUND(ShtripsFalz_Zn08*Belarus*(1-V70),2) -> 408 | W40: =ROUND(ShtripsFalz_Zn09*Belarus*(1-W70),2) -> 455 | Y40: Услуги расчета материала: | AE40: руб.
A41: Плоский лист Штрипс (2) Отмотка (2) | B41: 1,250/- | C41: 0,5/7,9 0,5/300 8/500 | D41: кв.м | E41: =ROUND(List_PEdp*Belarus*(1-E70),2) -> 353 | F41: =ROUND(List_Pe04dp*Belarus*(1-F70),2) -> 334 | G41: =ROUND(List_Pe08*Belarus*(1-G70),2) -> 531 | H41: =ROUND(List_Pe07*Belarus*(1-H70),2) -> 459 | I41: =ROUND(List_Pe045*Belarus*(1-I70),2) -> 327 | J41: =ROUND(List_Pe04*Belarus*(1-J70),2) -> 252 | K41: =ROUND(List_PeMatt04*Belarus*(1-J70),2) -> 373 | L41: =ROUND(List_dachPr*Belarus*(1-L70),2) -> 237 | M41: - | N41: - | O41: - | P41: =ROUND(List_Zn035*Belarus*(1-P70),2) -> 199 | Q41: =ROUND(List_Zn04*Belarus*(1-Q70),2) -> 223 | R41: =ROUND(List_Zn045*Belarus*(1-R70),2) -> 241 | S41: =ROUND(List_Zn05*Belarus*(1-S70),2) -> 255 | T41: =ROUND(List_Zn055*Belarus*(1-T70),2) -> 292 | U41: =ROUND(List_Zn07*Belarus*(1-U70),2) -> 352 | V41: =ROUND(List_Zn08*Belarus*(1-V70),2) -> 408 | W41: =ROUND(List_Zn09*Belarus*(1-W70),2) -> 455 | Y41: в Розничном отделе | AE41: =(1000*Belarus) -> 1000
A42: Металлический сайдинг (3) | Y42: в Дилерском отделе | AE42: =(400*Belarus) -> 400
A43: Корабельная Доска | B43: Обн.: 0,265/0,24 | C43: 0,5/6 | D43: кв.м | E43: - | F43: - | G43: - | H43: - | I43: =ROUND((S_KDoska_Pe045+B_UpakMS)*Belarus*(1-I71),2) -> 405 | J43: - | K43: - | L43: - | M43: - | N43: - | O43: - | P43: - | Q43: - | R43: - | S43: - | T43: - | U43: - | V43: - | W43: -
A44: Вертикаль (3) | B44: 0,2/0,176 | C44: 0,5/6 | D44: кв.м | E44: - | F44: - | G44: - | H44: - | I44: =ROUND((S_Vertikal_Pe045+B_UpakMS)*Belarus*(1-I71),2) -> 437 | J44: - | K44: - | L44: - | M44: - | N44: - | O44: - | P44: - | Q44: - | R44: - | S44: - | T44: - | U44: - | V44: - | W44: - | Y44: Сопутствующие товары
A45: ЭкоБрус/Gofr (5) | B45: 0,345/0,32 | C45: 0,5/6 | D45: кв.м | E45: - | F45: - | G45: - | H45: - | I45: =ROUND((S_EBrus_Pe045+B_UpakMS)*Belarus*(1-I71),2) -> 418 | J45: - | K45: - | L45: - | M45: - | N45: - | O45: - | P45: - | Q45: - | R45: - | S45: - | T45: - | U45: - | V45: - | W45: - | Y45: DRIPSTOP (антиконденсатное покрытие для профнастила НС35, Р60). Коэфф. расчета Dripstop на кв.м.: НС35 - 1,132, Н60 - 1,330) | AD45: 183 руб./кв.м.
A46: Блок-хаус New (5) | B46: Обн: 0,361/0,334 | C46: 0,5/6 | D46: кв.м | E46: - | F46: - | G46: - | H46: - | I46: =ROUND((S_BHausNew_Pe045+B_UpakMS)*Belarus*(1-I71),2) -> 418 | J46: - | K46: - | L46: - | M46: - | N46: - | O46: - | P46: - | Q46: - | R46: - | S46: - | T46: - | U46: - | V46: - | W46: -
A47: Металлический штакетник, Цена, руб/ед. изм.
A48: П/М-образный | B48: 0,1/- | C48: 0,5/3 | D48: п.м | E48: =ROUND(Shtaket_MP_PEdp*Belarus*(1-E74),2) -> 64 | F48: =ROUND(Shtaket_MP_Pe04dp*Belarus*(1-F74),2) -> 59 | G48: - | H48: - | I48: =ROUND(Shtaket_MP_Pe045*Belarus*(1-E74),2) -> 57 | J48: =ROUND(Shtaket_MP_Pe04*Belarus*(1-E74),2) -> 48 | K48: =ROUND(Shtaket_MP_PeMatt04*Belarus*(1-E74),2) -> 78 | L48: - | M48: - | N48: - | O48: - | P48: - | Q48: - | R48: - | S48: - | T48: - | U48: - | V48: - | W48: - | Y48: DRIPSTOP (на заказы < 50 кв.м. не наносится)
A49: П/М-образный Фигурный | B49: 0,1/- | C49: 0,5/3 | D49: п.м | E49: =ROUND(Shtaket_MPf_PEdp*Belarus*(1-E74),2) -> 68 | F49: =ROUND(Shtaket_MPf_Pe04dp*Belarus*(1-F74),2) -> 63 | G49: - | H49: - | I49: =ROUND(Shtaket_MPf_Pe045*Belarus*(1-E74),2) -> 61 | J49: =ROUND(Shtaket_MPf_Pe04*Belarus*(1-E74),2) -> 52 | K49: =ROUND(Shtaket_MPf_PeMatt04*Belarus*(1-E74),2) -> 82 | L49: - | M49: - | N49: - | O49: - | P49: - | Q49: - | R49: - | S49: - | T49: - | U49: - | V49: - | W49: -
A50: Twin | B50: 0,1/- | C50: 0,5/3 | D50: п.м | E50: =ROUND(Shtaket_Tw_PEdp*Belarus*(1-E75),2) -> 69 | F50: =ROUND(Shtaket_Tw_Pe04dp*Belarus*(1-F75),2) -> 64 | G50: - | H50: - | I50: =ROUND(Shtaket_Tw_Pe045*Belarus*(1-E75),2) -> 62 | J50: - | K50: - | L50: - | M50: - | N50: - | O50: - | P50: - | Q50: - | R50: - | S50: - | T50: - | U50: - | V50: - | W50: -
A51: Twin Фигурный | B51: 0,1/- | C51: 0,5/3 | D51: п.м | E51: =ROUND(Shtaket_Twf_PEdp*Belarus*(1-E75),2) -> 73 | F51: =ROUND(Shtaket_Twf_Pe04dp*Belarus*(1-F75),2) -> 68 | G51: - | H51: - | I51: =ROUND(Shtaket_Twf_Pe045*Belarus*(1-E75),2) -> 66 | J51: - | K51: - | L51: - | M51: - | N51: - | O51: - | P51: - | Q51: - | R51: - | S51: - | T51: - | U51: - | V51: - | W51: -
A52: Полукруглый NEW | B52: 0,131 / - | C52: 0,5/2,5 | D52: п.м | E52: =ROUND(Shtaket_Pk_PEdp*Belarus*(1-E75),2) -> 77 | F52: =ROUND(Shtaket_Pk_Pe04dp*Belarus*(1-F75),2) -> 69 | G52: - | H52: - | I52: =ROUND(Shtaket_Pk_Pe045*Belarus*(1-E75),2) -> 70 | J52: =ROUND(Shtaket_Pk_Pe04*Belarus*(1-E75),2) -> 62 | K52: =ROUND(Shtaket_Pk_PeMatt04*Belarus*(1-E75),2) -> 92 | L52: - | M52: - | P52: - | Q52: - | R52: - | S52: - | T52: - | U52: - | V52: - | W52: -
A53: Полукруглый Фигурный NEW | B53: 0,131 / - | C53: 0,5/2,5 | D53: п.м | E53: =ROUND(Shtaket_Pkf_PEdp*Belarus*(1-E75),2) -> 81 | F53: =ROUND(Shtaket_Pkf_Pe04dp*Belarus*(1-F75),2) -> 73 | G53: - | H53: - | I53: =ROUND(Shtaket_Pkf_Pe045*Belarus*(1-E75),2) -> 73 | J53: =ROUND(Shtaket_Pkf_Pe04*Belarus*(1-E75),2) -> 64 | K53: =ROUND(Shtaket_Pk_PeMatt04*Belarus*(1-E75),2) -> 92 | L53: - | M53: - | P53: - | Q53: - | R53: - | S53: - | T53: - | U53: - | V53: - | W53: -
A54: Круглый | B54: 0,128 / - | C54: 0,5/3,5 | D54: п.м | E54: =ROUND(Shtaket_Kr_PEdp*Belarus*(1-E76),2) -> 77 | F54: - | G54: - | H54: - | I54: =ROUND(Shtaket_Kr_Pe045*Belarus*(1-E76),2) -> 70 | J54: =ROUND(Shtaket_Kr_Pe04*Belarus*(1-E76),2) -> 62 | K54: - | L54: - | M54: - | N54: - | O54: - | P54: - | Q54: - | R54: - | S54: - | T54: - | U54: - | V54: - | W54: -
A55: Круглый Фигурный | B55: 0,128 / - | C55: 0,5/3,5 | D55: п.м | E55: =ROUND(Shtaket_Krf_PEdp*Belarus*(1-E76),2) -> 81 | F55: - | G55: - | H55: - | I55: =ROUND(Shtaket_Krf_Pe045*Belarus*(1-E76),2) -> 73 | J55: =ROUND(Shtaket_Krf_Pe04*Belarus*(1-E76),2) -> 64 | K55: - | L55: - | M55: - | N55: - | O55: - | P55: - | Q55: - | R55: - | S55: - | T55: - | U55: - | V55: - | W55: -
A56: Прямоугольный | B56: 0,118 / - | C56: 0,5/3,5 | D56: п.м | E56: =ROUND(Shtaket_Pr_PEdp*Belarus*(1-E76),2) -> 77 | F56: - | G56: - | H56: - | I56: =ROUND(Shtaket_Pr_Pe045*Belarus*(1-E76),2) -> 70 | J56: =ROUND(Shtaket_Pr_Pe04*Belarus*(1-E76),2) -> 62 | K56: - | L56: - | M56: - | N56: - | O56: - | P56: - | Q56: - | R56: - | S56: - | T56: - | U56: - | V56: - | W56: -
A57: Прямоугольный Фигурный | B57: 0,118 / - | C57: 0,5/3,5 | D57: п.м | E57: =ROUND(Shtaket_Prf_PEdp*Belarus*(1-E76),2) -> 81 | F57: - | G57: - | H57: - | I57: =ROUND(Shtaket_Prf_Pe045*Belarus*(1-E76),2) -> 73 | J57: =ROUND(Shtaket_Prf_Pe04*Belarus*(1-E76),2) -> 64 | K57: - | L57: - | M57: - | N57: - | O57: - | P57: - | Q57: - | R57: - | S57: - | T57: - | U57: - | V57: - | W57: -
A59: Сокращения: Обн. - производство Обнинск (Верховье); СПБ - производство Санкт-Петербург (Гатчина); НН - производство Нижний Новгород (Дружный); Врн - производство Воронеж (Масловская промзона)
A60: Внимание! Все примечания смотрите на отдельной странице (вся профилировка_примечания).
A65: Ваша скидка | E65: PE двс | F65: PE 0.4 двс | G65: PE 0,8 | H65: PE 0,7 | I65: PE 0,45 | J65: PE 0,4 | K65: PE Matt 0,4 | P65: Цинк
L66: PE производство | M66: PE склад | N66: PE Print | O66: PE Print | P66: 0.35 | Q66: 0.4 | R66: 0.45 | S66: 0.5 | T66: 0.55 | U66: 0.7 | V66: 0.8 | W66: 0.9
A67: Металлочерепица | E67: - | F67: - | G67: - | H67: 0 | I67: 0 | J67: 0 | L67: 0 | M67: - | P67: - | Q67: 0 | R67: 0 | S67: - | T67: 0 | U67: 0 | V67: 0 | W67: 0
A68: Фальцевая кровля | E68: - | F68: - | G68: - | H68: 0 | I68: 0 | J68: - | L68: - | M68: - | P68: - | Q68: - | R68: 0 | S68: 0 | T68: 0 | U68: 0 | V68: - | W68: -
A69: Профнастил | E69: 0 | F69: 0 | G69: 0 | H69: 0 | I69: 0 | J69: 0 | L69: 0 | M69: 0 | N69: 0 | O69: 0 | P69: 0 | Q69: 0 | R69: 0 | S69: 0 | T69: 0 | U69: 0 | V69: 0 | W69: 0
A70: Плоский лист/отмотка/штрипс | E70: 0 | F70: 0 | G70: 0 | H70: 0 | I70: 0 | J70: 0 | L70: 0 | M70: 0 | P70: 0 | Q70: 0 | R70: 0 | S70: 0 | T70: 0 | U70: 0 | V70: 0 | W70: 0
A71: Металлический сайдинг | E71: - | G71: - | H71: - | I71: 0 | J71: - | L71: - | M71: - | P71: - | Q71: - | R71: - | S71: - | T71: - | U71: - | V71: - | W71: -
A72: Металлочерепица Kvinta Uno | E72: - | F72: - | G72: - | H72: - | I72: 0 | J72: - | L72: - | M72: - | P72: - | Q72: - | R72: - | S72: - | T72: - | U72: - | V72: - | W72: -
A73: Софит | E73: 0 | M73: - | P73: - | Q73: - | R73: - | S73: - | T73: - | U73: - | V73: - | W73: -
A74: Штакетник М/П | E74: 0 | M74: - | P74: - | Q74: - | R74: - | S74: - | T74: - | U74: - | V74: - | W74: -
A75: Штакетник Twin, Полукруглый | E75: 0 | M75: - | P75: - | Q75: - | R75: - | S75: - | T75: - | U75: - | V75: - | W75: -
A76: Штакетник Круглый/Прямоугольн. | E76: 0 | M76: - | P76: - | Q76: - | R76: - | S76: - | T76: - | U76: - | V76: - | W76: -
A97: 2020-04-27 | B97: Цена: техническая корректировка подкладочных ковров Katepal (1.6) Новинка: профилированная продукция и штакетник в покрытии 0.4 ПЭ двс (Вся проф-ка ч2, 1.1, 5.1) Ассортимент: коррекция акционного ассортимента модульных ограждений (5.5) Иное: скорректированы примечания на страницах Вся проф-ка (ч1, ч.2), Профилировка (Примечания)

Sheet Вся профилировка (Примечания)
A1: Вернуться в начало
A2: Профилированная продукция Grand Line (ПРИМЕЧАНИЯ) | G2: дата изменения страницы прайса: | H2: 2020-04-29
A4: ="(1) пл.лист в покрытии Velur изготавливается в защитной пленке - цена указана без учета стоимости пленки, т.е. к цене прайса нужно прибавить "&(15*Belarus)&" руб. за пленку. Фальц (в полимерных покрытиях); фигурный профнастил; мет. cофит изготавливаются в защитной пленке - для них цена прайса указана с учетом стоимости нанесения пленки. На картины фальца пленка наносится только в районе замков." -> (1) пл.лист в покрытии Velur изготавливается в защитной пленке - цена указана без учета стоимости пленки, т.е. к цене прайса нужно прибавить 15 руб. за пленку. Фальц (в полимерных покрытиях); фигурный профнастил; мет. cофит изготавливаются в защитной пленке - для них цена прайса указана с учетом стоимости нанесения пленки. На картины фальца пленка наносится только в районе замков.
A5: (2) штрипс длиной менее 4,0 м изготавливается только в пленке. Максимальная длина отмотки в покрытиях Design и Premium 50м.
A6: (3) металлический сайдинг изготавливается без пленки, кроме сайдинга Вертикаль (он производится только в пленке, цена в прайсе указана с учетом пленки). Изготовление мет.сайдинга в пленке возможно только с наценкой за пленку. На сайдинг Блок-хаус и Блок-хаус New нанесение пленки невозможно.
A7: ="(4) Продукция в цвете RAL 7016 (для всех покрытий, кроме группы Premium) и в цветах RAL 2004, RAL 1018 в покрытии PE 0,45 (кроме доборных элементов) на "&(25*Belarus)&" рублей за кв.м дороже продукции в остальных цветах; "&"наценка на штакетник "&(2.5*Belarus)&" рубля за п.м " -> (4) Продукция в цвете RAL 7016 (для всех покрытий, кроме группы Premium) и в цветах RAL 2004, RAL 1018 в покрытии PE 0,45 (кроме доборных элементов) на 25 рублей за кв.м дороже продукции в остальных цветах; наценка на штакетник 2,5 рубля за п.м
A8: (5) На изделиях в покрытии Colority Print на больших поверхностях возможна видимая повторяемость рисунка. Внимание! При монтаже металлического сайдинга в покрытии Colority Print для минимизации возможного появления видимой повторяемости рисунка и разнооттеночности рекомендуем использовать панели одинаковой длины из разных упаковок. Подробности уточняйте в офисе продаж.
A9: (6) Цвет обратной стороны покрытия Safari Grey не совпадает с цветом лицевой стороны, светлый серый (примерно RAL 7005)
A10: (7) Дачный PE (склад): ПН С8 поддерживается в наличии в цветах RAL 3005 (2 метра), 6005 (1,5 и 2 метра), 8017 (1,7 и 2 метра). Возможна поставка ПН С8, ПН С20А, ПН С20В в покрытии Дачный PE (склад) под конкретный заказ, необходимой длины в цветах RAL 3005, 6005, 8017, 5005, 9003 при заказе от 100 листов одного цвета и размера. Возможность и сроки поставки уточняйте у менеджеров. Дачный Print (склад): ПН С8 поддерживается в цвете "Камуфляж" (2 метра). Дачный Print Twincolor (склад): ПН С8 поддерживается в цветах Antique Wood и Golden Wood (2 метра).
A11: Стоимость двойного стоячего фальца рассчитывается исходя из ширины 625 мм (ширины заготовки). Полная ширина готового изделия 563 мм.
A12: Без пленки изготавливаются: все виды МЧ во всех покрытиях; штакетники М/П-образные, Круглый, Прямоугольный (в т.ч. фигурные) во всех покрытиях
A13: Металлический штакетник М-образны, П-образный, Twin, Полукруглый в каждом покрытии, цвете и типоразмере (с шагом 1 см) изготавливаются только в количестве, кратном 10-ти шт.
A14: Металлический штакетник Круглый и Прямоугольный изготавливаются от 10 шт одного вида и покрытия шагом 1см в PE 0,4 (RAL 3005, RAL 6005, RAL 8017), PE 0,45 (RR32, RAL 8017, 6005, 5005,3005), PE dp 0,45 (RAL8017, 6005, 3005), Print dp 0,45 (Antique Wood, Golden Wood), Velur (RR32, RAL 8017, 7024). Возможно изготовление Круглого и Прямоугольного штакетниках в других цветах и покрытиях при заказе от 1000 м.п. в размер с шагом 1 см
A15: DRIPSTOP - антиконденсатное покрытие для профнастилов - указан коэффициент расчета на 1 кв.м. (НС35=1,132; Н60=1,33; Н75=1,5)
A16: Для Беларуси и Прибалтийских стран в цену металлического сайдинга и фальца включена стоимость упаковки.
A17: Вся продукция изготавливается из металла по ГОСТ 52246-2016 и ГОСТ 34180-2018
A18: Все виды МЧ во всех покрытиях изготавливаются без пленки. Стоимость металлочерепицы рассчитывается по общей ширине листа.
A19: Сокращения: Обн. - производство Обнинск (Верховье); СПБ - производство Санкт-Петербург (Гатчина); НН - производство Нижний Новгород (Дружный); Врн - производство Воронеж (Масловская промзона)
A23: Таблица соответствия цветов обратки цветным покрытиям | E23: Таблица рекомендуемых цветов саморезов
A24: Палитра цветов покрытий Colority Print, Safari, Velur | C24: Цвет обратки цветов покрытий | E24: Палитра цветов покрытий Colority Print, Safari, Velur | G24: рекомендуемые цвета саморезов RAL
A25: Antique Wood | B25: Античное дерево | C25: светло-коричневая | E25: Antique Wood | F25: Античное дерево | G25: 8017, 8019, темный дуб
A26: Brown | B26: Браун | C26: темно-коричневый | E26: Brown | F26: Браун | G26: 8017
A27: Cherry Wood | B27: Бразильская вишня | C27: сигнально-коричневая | E27: Cherry Wood | F27: Бразильская вишня | G27: 3009, 8017
A28: Choco Wood | B28: Шоколадное дерево | C28: орехово-коричневая | E28: Choco Wood | F28: Шоколадное дерево | G28: 8011, темный дуб
A29: Coffee Wood | B29: Кофейное дерево | C29: серо-коричневая | E29: Coffee Wood | F29: Кофейное дерево | G29: 8019
A30: Cuprum steel | B30: Медь | C30: бежево-коричневая | E30: Cuprum steel | F30: Медь | G30: 8004, 8017
A31: Fine Stone | B31: Камень | C31: серая | E31: Fine Stone | F31: Камень | G31: 7005, 7024
A32: Golden Wood | B32: Золотое дерево | C32: коричневая охра | E32: Golden Wood | F32: Золотое дерево | G32: 8017, орех, золотой дуб
A33: Gray | B33: Грей | C33: серый | E33: Gray | F33: Грей | G33: 7024
A34: Honey Wood | B34: Медовое дерево | C34: бежевая | E34: Honey Wood | F34: Медовое дерево | G34: 1011, медовое дерево
A35: King Stone | B35: Королевский камень | C35: галечный серый | E35: King Stone | F35: Королевский камень | G35: 8017
A36: Milky Wood | B36: Молочное дерево | C36: светло-бежевая | E36: Milky Wood | F36: Молочное дерево | G36: 1015
A37: Nutwood | B37: Орех | C37: коричневая охра | E37: Nutwood | F37: Орех | G37: 8004, орех
A38: Orange | B38: Оранжевый | C38: терракота | E38: Orange | F38: Оранжевый | G38: 8004, 8017
A39: Rowan | B39: Рябина | C39: терракота | E39: Rowan | F39: Рябина | G39: 8004
A40: Sand Stone | B40: Камень песчаник | C40: охра | E40: Sand Stone | F40: Камень песчаник | G40: 8017, 8019
A41: White Wood | B41: Беленое дерево | C41: серо-бежевая | E41: White Wood | F41: Беленое дерево | G41: 1015, беленый дуб
E42: Палитра цветов покрытий Стальной Бархат, Green Coat Pural, Green Coat Pural Matt | G42: рекомендуемые цвета саморезов RAL
E43: RAL 7024 (Стальной Бархат) | F43: мокрый асфальт | G43: 7016
E44: RR 23 (Green Coat Pural, Green Coat Pural Matt) | F44: темно-серый | G44: 7024
A97: 2020-04-27 | B97: Цена: техническая корректировка подкладочных ковров Katepal (1.6) Новинка: профилированная продукция и штакетник в покрытии 0.4 ПЭ двс (Вся проф-ка ч2, 1.1, 5.1) Ассортимент: коррекция акционного ассортимента модульных ограждений (5.5) Иное: скорректированы примечания на страницах Вся проф-ка (ч1, ч.2), Профилировка (Примечания)

Sheet 1_1_КРОВЛЯ
A1: Вернуться в начало
A2: 1.1. Кровельные материалы и комплектующие | AG2: дата изменения страницы прайса: | AH2: 2020-04-30
AG3: цены действительны с | AH3: 2020-04-30
A4: Наименование профиля | B4: Ширина профиля общаяя / полезная, мм | C4: Длина min/max, м | D4: Ед. изм. | E4: Цена, руб./ед.изм.
E5: Design | I5: Print РФ | J5: Premium | O5: GreenCoat Pural Matt BT | Q5: GreenCoat Pural BT | S5: PurLite Matt NEW | T5: Стальной Бархат | V5: Satin Matt NEW | W5: Standart + | AA5: PE 0,45 двс | AB5: PE 0,4 двс NEW | AC5: PE | AH5: PE Matt | AI5: Дачный
E6: Colority Print dp (3) | F6: Colority Print (3) | G6: Safari (4)
G7: Brown | H7: Акция: Grey, Orange | J7: Quarzit Pro Matt NEW | K7: Quarzit | L7: Quarzit lite | M7: Velur | N7: Atlas | W7: Drap | Y7: Satin | AI7: PE производство
A8: Защитный слой, гр/кв.м. | E8: Zn 140 | F8: Zn140 | G8: Zn 140-200 | I8: Zn 100 | J8: ZA 265 | K8: ZA 265 | L8: ZA 265 | M8: ZA 265 | N8: ZA 265 | O8: Zn 275 | Q8: Zn 275 | S8: Zn 180 | T8: Zn 180 | V8: Zn 180 | W8: Zn 140 | Y8: Zn 140 | AA8: Zn 140 | AB8: Zn 60-100 | AC8: Zn 100 | AG8: Zn 60-100
A9: Толщина металла, мм / покрытия, мкм | E9: 0,45/30 | F9: 0,45/30 | G9: 0,45/30 | I9: 0,45 / 25 | J9: 0,5 / 50 | K9: 0,5/55 | L9: 0,5/25 | M9: 0,5/35 | N9: 0,5/25 | O9: 0,5/50 | Q9: 0,5/50 | S9: 0,5 / 35 | T9: 0,5/25-30 | V9: 0,5/35 | W9: 0,45/25 | Y9: 0,5/25 | AA9: 0,45/25 | AB9: 0.4 | AC9: 0.8 | AD9: 0.7 | AE9: 0.45 | AG9: 0.4 | AH9: 0.4
A10: Гарантия | E10: 20 лет | F10: 20 лет | G10: 20 лет | I10: 10 лет | J10: 50 лет | K10: 50 лет | L10: 30 лет | M10: 25 лет | N10: 25 лет | O10: 30 лет | Q10: 30 лет | S10: 30 лет | T10: 25 лет | V10: 25 лет | W10: 20 лет | Y10: 20 лет | AA10: 10 лет | AB10: 2 года | AC10: 10 лет | AD10: 10 лет | AE10: 10 лет | AG10: 2 года | AH10: 2 года | AI10: 2 года
A11: Металлочерепица, фальцевая кровля и софит металлический
A12: Металлочерепица Kvinta plus | B12: 1210/1150 | C12: 0,5/6,5 | D12: кв.м | E12: - | F12: =ROUND((KvintaPl_Pt-Belaruskv)*Belarus*(1-E70),2) -> 695 | G12: =ROUND((KvintaPl_Sf-Belaruskv)*Belarus*(1-D70),2) -> 723 | H12: =ROUND((KvintaPl_Sf_a-Belaruskv)*Belarus*(1-E70),2) -> 657 | I12: - | J12: =ROUND((KvintaPl_QproMatt-Belaruskv)*Belarus*(1-J70),2) -> 812 | K12: =ROUND((KvintaPl_Q-Belaruskv)*Belarus*(1-J70),2) -> 805 | L12: =ROUND((KvintaPl_Ql-Belaruskv)*Belarus*(1-J70),2) -> 714 | M12: =ROUND((KvintaPl_Vel-Belaruskv)*Belarus*(1-J70),2) -> 690 | N12: =ROUND((KvintaPl_Atl-Belaruskv)*Belarus*(1-J70),2) -> 614 | O12: =ROUND((KvintaPl_PurMatt-Belaruskv)*Belarus*(1-O70),2) -> 895 | P12: ="наценка "&(25*Belarus)&" руб./кв.м на цвет RAL 7016" -> наценка 25 руб./кв.м на цвет RAL 7016 | Q12: =ROUND((KvintaPl_Pur-Belaruskv)*Belarus*(1-Q70),2) -> 895 | R12: ="наценка "&(25*Belarus)&" руб./кв.м на цвет RAL 7016" -> наценка 25 руб./кв.м на цвет RAL 7016 | S12: =ROUND((KvintaPl_PurLiteMatt-Belaruskv)*Belarus*(1-S70),2) -> 522 | T12: =ROUND((KvintaPl_StBarhat-Belaruskv)*Belarus*(1-T70),2) -> 565 | U12: ="наценка "&(25*Belarus)&" руб./кв.м на цвет RAL 7016" -> наценка 25 руб./кв.м на цвет RAL 7016 | V12: =ROUND((KvintaPl_SatMatt-Belaruskv)*Belarus*(1-V70),2) -> 520 | W12: =ROUND((KvintaPl_Dr-Belaruskv)*Belarus*(1-W70),2) -> 422 | X12: ="наценка "&(25*Belarus)&" руб./кв.м на цвет RAL 7016" -> наценка 25 руб./кв.м на цвет RAL 7016 | Y12: =ROUND((KvintaPl_Sat-Belaruskv)*Belarus*(1-Y70),2) -> 411 | Z12: ="наценка "&(25*Belarus)&" руб./кв.м на цвет RAL 7016" -> наценка 25 руб./кв.м на цвет RAL 7016 | AA12: - | AB12: - | AC12: - | AD12: - | AE12: =ROUND((KvintaPl_Pe045-Belaruskv)*Belarus*(1-AE70),2) -> 370 | AF12: ="наценка "&(25*Belarus)&"руб./кв.м на цвета RAL2004, RAL1018" -> наценка 25руб./кв.м на цвета RAL2004, RAL1018 | AG12: - | AH12: - | AI12: -
A13: Металлочерепица Kvinta plus 3D | B13: 1210/1150 | C13: 0,47/6 | D13: кв.м | E13: - | F13: =F12 -> 695 | G13: =G12 -> 723 | H13: =H12 -> 657 | I13: - | J13: =J12 -> 812 | K13: 805 | L13: 714 | M13: 690 | N13: 614 | O13: 895 | Q13: =Q12 -> 895 | S13: =S12 -> 522 | T13: =T12 -> 565 | V13: =V12 -> 520 | W13: =W12 -> 422 | Y13: =Y12 -> 411 | AA13: - | AB13: - | AC13: - | AD13: - | AE13: =AE12 -> 370 | AG13: - | AH13: - | AI13: -
A14: Металлочерепица Kvinta Uno | B14: 1210/1150 | C14: 0.72 | D14: кв.м | E14: - | F14: =ROUND((KvintaUno_Pt-BelarusUno)*Belarus*(1-E74),2) -> 695 | G14: =ROUND((KvintaUno_Sf-BelarusUno)*Belarus*(1-D74),2) -> 723 | H14: =ROUND((KvintaUno_Sf_a-BelarusUno)*Belarus*(1-E74),2) -> 657 | I14: - | J14: =ROUND((KvintaUno_QproMatt-BelarusUno)*Belarus*(1-J74),2) -> 812 | K14: =ROUND((KvintaUno_Q-BelarusUno)*Belarus*(1-J74),2) -> 805 | L14: =ROUND((KvintaUno_Ql-BelarusUno)*Belarus*(1-J74),2) -> 714 | M14: =ROUND((KvintaUno_Vel-BelarusUno)*Belarus*(1-J74),2) -> 690 | N14: =ROUND((KvintaUno_Atl-BelarusUno)*Belarus*(1-J74),2) -> 614 | O14: =ROUND((KvintaUno_PurMatt-BelarusUno)*Belarus*(1-O74),2) -> 895 | Q14: =ROUND((KvintaUno_Pur-BelarusUno)*Belarus*(1-Q74),2) -> 895 | S14: =ROUND((KvintaUno_PurLiteMatt-BelarusUno)*Belarus*(1-S74),2) -> 522 | T14: =ROUND((KvintaUno_StBarhat-BelarusUno)*Belarus*(1-T74),2) -> 565 | V14: =ROUND((KvintaUno_SatMatt-BelarusUno)*Belarus*(1-V74),2) -> 520 | W14: =ROUND((KvintaUno_Dr-BelarusUno)*Belarus*(1-W74),2) -> 422 | Y14: =ROUND((KvintaUno_Sat-BelarusUno)*Belarus*(1-Y74),2) -> 411 | AA14: - | AB14: - | AC14: - | AD14: - | AE14: =ROUND((KvintaUno_Pe045-BelarusUno)*Belarus*(1-AE74),2) -> 370 | AG14: - | AH14: - | AI14: -
D15: шт. | F15: =ROUND(F14*(1.21*0.72),1) -> 605.5 | G15: =ROUND(G14*(1.21*0.72),1) -> 629.9 | H15: =ROUND(H14*(1.21*0.72),1) -> 572.4 | J15: =ROUND(J14*(1.21*0.72),1) -> 707.4 | K15: 701.3 | L15: =ROUND(L14*(1.21*0.72),1) -> 622 | M15: 601.1 | N15: 534.9 | O15: 779.7 | Q15: =ROUND(Q14*(1.21*0.72),1) -> 779.7 | S15: =ROUND(S14*(1.21*0.72),1) -> 454.8 | T15: =ROUND(T14*(1.21*0.72),1) -> 492.2 | V15: =ROUND(V14*(1.21*0.72),1) -> 453 | W15: =ROUND(W14*(1.21*0.72),1) -> 367.6 | Y15: =ROUND(Y14*(1.21*0.72),1) -> 358.1 | AE15: =ROUND(AE14*(1.21*0.72),1) -> 322.3
A16: Металлочерепица Kamea | B16: 1180/1085 | C16: 0,5/6,5 | D16: кв.м | E16: - | F16: =ROUND(Kamea_Pt*Belarus*(1-E70),2) -> 687 | G16: =ROUND(Kamea_Sf*Belarus*(1-D70),2) -> 714 | H16: =ROUND(Kamea_Sf_a*Belarus*(1-E70),2) -> 650 | I16: - | J16: =ROUND(Kamea_QproMatt*Belarus*(1-J70),2) -> 796 | K16: =ROUND(Kamea_Q*Belarus*(1-J70),2) -> 788 | L16: =ROUND(Kamea_Ql*Belarus*(1-J70),2) -> 702 | M16: =ROUND(Kamea_Vel*Belarus*(1-J70),2) -> 678 | N16: =ROUND(Kamea_Atl*Belarus*(1-J70),2) -> 605 | O16: =ROUND(Kamea_PurMatt*Belarus*(1-O70),2) -> 876 | Q16: =ROUND(Kamea_Pur*Belarus*(1-Q70),2) -> 876 | S16: =ROUND(Kamea_PurLiteMatt*Belarus*(1-S70),2) -> 517 | T16: =ROUND(Kamea_StBarhat*Belarus*(1-T70),2) -> 558 | V16: =ROUND(Kamea_SatMatt*Belarus*(1-V70),2) -> 515 | W16: =ROUND(Kamea_Dr*Belarus*(1-W70),2) -> 415 | Y16: =ROUND(Kamea_Sat*Belarus*(1-Y70),2) -> 405 | AA16: - | AB16: - | AC16: - | AD16: - | AE16: =ROUND(Kamea_Pe045*Belarus*(1-AE70),2) -> 366 | AG16: - | AH16: - | AI16: -
A17: Металлочерепица Kredo | B17: 1190/1125 | C17: 0,85/6,5 | D17: кв.м | E17: - | F17: =ROUND(Kredo_Pt*Belarus*(1-E70),2) -> 687 | G17: =ROUND(Kredo_Sf*Belarus*(1-D70),2) -> 714 | H17: =ROUND(Kredo_Sf_a*Belarus*(1-E70),2) -> 650 | I17: - | J17: =ROUND(Kredo_QproMatt*Belarus*(1-J70),2) -> 796 | K17: =ROUND(Kredo_Q*Belarus*(1-J70),2) -> 788 | L17: =ROUND(Kredo_Ql*Belarus*(1-J70),2) -> 702 | M17: =ROUND(Kredo_Vel*Belarus*(1-J70),2) -> 678 | N17: =ROUND(Kredo_Atl*Belarus*(1-J70),2) -> 605 | O17: =ROUND(Kredo_PurMatt*Belarus*(1-O70),2) -> 876 | Q17: =ROUND(Kredo_Pur*Belarus*(1-Q70),2) -> 876 | S17: =ROUND(Kredo_PurLiteMatt*Belarus*(1-S70),2) -> 517 | T17: =ROUND(Kredo_StBarhat*Belarus*(1-T70),2) -> 558 | V17: =ROUND(Kredo_SatMatt*Belarus*(1-V70),2) -> 515 | W17: =ROUND(Kredo_Dr*Belarus*(1-W70),2) -> 415 | Y17: =ROUND(Kredo_Sat*Belarus*(1-Y70),2) -> 405 | AA17: - | AB17: - | AC17: - | AD17: - | AE17: =ROUND(Kredo_Pe045*Belarus*(1-AE70),2) -> 366 | AG17: - | AH17: - | AI17: -
A18: Металлочерепица Classic | B18: 1183/1100 | C18: 0,5/6,5 | D18: кв.м | E18: - | F18: =ROUND(Classic_Pt*Belarus*(1-E70),2) -> 672 | G18: =ROUND(Classic_Sf*Belarus*(1-D70),2) -> 699 | H18: =ROUND(Classic_Sf_a*Belarus*(1-E70),2) -> 635 | I18: =ROUND(Classic_PtRF*Belarus*(1-I70),2) -> 548 | J18: =ROUND(Classic_QproMatt*Belarus*(1-J70),2) -> 781 | K18: =ROUND(Classic_Q*Belarus*(1-J70),2) -> 773 | L18: =ROUND(Classic_Ql*Belarus*(1-J70),2) -> 687 | M18: =ROUND(Classic_Vel*Belarus*(1-J70),2) -> 663 | N18: =ROUND(Classic_Atl*Belarus*(1-J70),2) -> 590 | O18: =ROUND(Classic_PurMatt*Belarus*(1-O70),2) -> 861 | Q18: =ROUND(Classic_Pur*Belarus*(1-Q70),2) -> 861 | S18: =ROUND(Classic_PurLiteMatt*Belarus*(1-S70),2) -> 502 | T18: =ROUND(Classic_StBarhat*Belarus*(1-T70),2) -> 543 | V18: =ROUND(Classic_SatMatt*Belarus*(1-V70),2) -> 500 | W18: =ROUND(Classic_Dr*Belarus*(1-W70),2) -> 400 | Y18: =ROUND(Classic_Sat*Belarus*(1-Y70),2) -> 390 | AA18: - | AB18: - | AC18: - | AD18: - | AE18: =ROUND(Classic_Pe045*Belarus*(1-AE70),2) -> 351 | AG18: =ROUND(Classic_Pe04*Belarus*(1-AG70),2) -> 273 | AH18: =ROUND(Classic_PeMatt04*Belarus*(1-AH70),2) -> 401 | AI18: -
A19: Металлочерепица Modern | B19: 1183/1100 | C19: 0,5/6,5 | D19: кв.м | E19: - | F19: - | G19: - | H19: - | I19: - | J19: - | K19: - | L19: - | M19: - | N19: - | O19: - | Q19: - | S19: - | T19: - | V19: - | W19: =ROUND(Modern_Dr*Belarus*(1-W70),2) -> 400 | Y19: - | AA19: - | AB19: - | AC19: - | AD19: - | AE19: =ROUND(Modern_Pe045*Belarus*(1-AE70),2) -> 351 | AG19: =ROUND(Modern_Pe04*Belarus*(1-AG70),2) -> 273 | AH19: =ROUND(Modern_PeMatt04*Belarus*(1-AH70),2) -> 401 | AI19: -
E20: - | F20: =ROUND(Quadro_Pt*Belarus*(1-E70),2) -> 687 | G20: =ROUND(Quadro_Sf*Belarus*(1-D70),2) -> 714 | H20: =ROUND(Quadro_Sf*Belarus*(1-E70),2) -> 714 | I20: - | J20: =ROUND(Quadro_QproMatt*Belarus*(1-J70),2) -> 796 | K20: =ROUND(Quadro_Q*Belarus*(1-J70),2) -> 788 | L20: =ROUND(Quadro_Ql*Belarus*(1-J70),2) -> 702 | M20: =ROUND(Quadro_Vel*Belarus*(1-J70),2) -> 678 | N20: =ROUND(Quadro_Atl*Belarus*(1-J70),2) -> 605 | O20: =ROUND(Quadro_PurMatt*Belarus*(1-O70),2) -> 876 | Q20: =ROUND(Quadro_Pur*Belarus*(1-Q70),2) -> 876 | S20: =ROUND(Quadro_PurLiteMatt*Belarus*(1-S70),2) -> 517 | T20: =ROUND(Quadro_StBarhat*Belarus*(1-T70),2) -> 558 | V20: =ROUND(Quadro_SatMatt*Belarus*(1-V70),2) -> 515 | W20: =ROUND(Quadro_Dr*Belarus*(1-W70),2) -> 415 | Y20: =ROUND(Quadro_Sat*Belarus*(1-Y70),2) -> 405 | AA20: - | AB20: - | AC20: - | AD20: - | AE20: =ROUND(Quadro_Pe045*Belarus*(1-AE70),2) -> 366 | AG20: =ROUND(Quadro_Pe04*Belarus*(1-AG70),2) -> 288 | AH20: =ROUND(Quadro_PeMatt04*Belarus*(1-AH70),2) -> 416 | AI20: -
A21: Софит металлический (1) | B21: 357/325 | C21: 0,2/6 | D21: кв.м | E21: - | F21: =ROUND(Sofit_Pt*Belarus*(1-E75),2) -> 1135 | G21: =ROUND(Sofit_Sf*Belarus*(1-D75),2) -> 1290 | H21: =ROUND(Sofit_Sf_a*Belarus*(1-E75),2) -> 1173 | I21: =ROUND(Sofit_PtRF*Belarus*(1-I70),2) -> 972 | J21: =ROUND(Sofit_QproMatt*Belarus*(1-E75),2) -> 1262 | K21: =ROUND(Sofit_Q*Belarus*(1-E75),2) -> 1247 | L21: =ROUND(Sofit_Ql*Belarus*(1-E75),2) -> 1164 | M21: =ROUND(Sofit_Vel*Belarus*(1-E75),2) -> 1116 | N21: =ROUND(Sofit_Atl*Belarus*(1-E75),2) -> 1021 | O21: =ROUND(Sofit_PurMatt*Belarus*(1-E75),2) -> 1670 | Q21: =ROUND(Sofit_Pur*Belarus*(1-E75),2) -> 1670 | S21: =ROUND(Sofit_PurLiteMatt*Belarus*(1-E75),2) -> 979 | T21: =ROUND(Sofit_StBarhat*Belarus*(1-E75),2) -> 1057 | V21: =ROUND(Sofit_SatMatt*Belarus*(1-E75),2) -> 969 | W21: =ROUND(Sofit_Dr*Belarus*(1-E75),2) -> 794 | Y21: =ROUND(Sofit_Sat*Belarus*(1-E75),2) -> 814 | AA21: - | AB21: - | AC21: - | AD21: - | AE21: =ROUND(Sofit_Pe045*Belarus*(1-E75),2) -> 671 | AG21: - | AH21: - | AI21: -
A22: Двойной стоячий фальц / Двойной стоячий фальц Line (1) | B22: Обн.: 625/550 | C22: 1,2/9 | D22: п.м | E22: - | F22: =ROUND(F23/1*0.625,1) -> 416.3 | G22: =ROUND(G23/1*0.625,1) -> 435 | H22: =ROUND(H23/1*0.625,1) -> 398.8 | I22: - | J22: =ROUND(J23/1*0.625,1) -> 469.4 | K22: =ROUND(K23/1*0.625,1) -> 465 | L22: 416.9 | M22: 402.5 | N22: 370.6 | O22: 513.1 | Q22: 513.1 | S22: - | T22: 335.6 | V22: 310.6 | W22: 259.4 | Y22: 247.5 | AA22: - | AB22: - | AC22: - | AD22: =ROUND(AD23/1*0.625,1) -> 308.8 | AE22: =ROUND(AE23/1*0.625,1) -> 229.4 | AG22: - | AH22: - | AI22: -
D23: кв.м | E23: - | F23: =ROUND((Falz2_Pt+B_UpakFalz)*Belarus*(1-E70),2) -> 666 | G23: =ROUND((Falz2_Sf+B_UpakFalz)*Belarus*(1-D70),2) -> 696 | H23: =ROUND((Falz2_Sf_a+B_UpakFalz)*Belarus*(1-E70),2) -> 638 | I23: - | J23: =ROUND((Falz2_QproMatt+B_UpakFalz)*Belarus*(1-J70),2) -> 751 | K23: =ROUND((Falz2_Q+B_UpakFalz)*Belarus*(1-J70),2) -> 744 | L23: =ROUND((Falz2_Ql+B_UpakFalz)*Belarus*(1-J70),2) -> 667 | M23: =ROUND((Falz2_Vel+B_UpakFalz)*Belarus*(1-J70),2) -> 644 | N23: =ROUND((Falz2_Atl+B_UpakFalz)*Belarus*(1-J70),2) -> 593 | O23: =ROUND(Falz2_PurMatt*Belarus*(1-O70),2) -> 821 | Q23: =ROUND(Falz2_Pur*Belarus*(1-Q70),2) -> 821 | S23: - | T23: =ROUND((Falz2_StBarhat+B_UpakFalz)*Belarus*(1-T70),2) -> 537 | V23: =ROUND((Falz2_SatMatt+B_UpakFalz)*Belarus*(1-V70),2) -> 497 | W23: =ROUND((Falz2_Dr+B_UpakFalz)*Belarus*(1-W71),2) -> 415 | Y23: =ROUND((Falz2_Sat+B_UpakFalz)*Belarus*(1-Y71),2) -> 396 | AA23: - | AB23: - | AC23: - | AD23: =ROUND((Falz2_Pe07+B_UpakFalz)*Belarus*(1-AD71),2) -> 494 | AE23: =ROUND((Falz2_Pe045+B_UpakFalz)*Belarus*(1-AE71),2) -> 367 | AH23: - | AI23: -
A24: Кликфальц Pro / Кликфальц Pro Line / Кликфальц Pro Gofr (1) NEW | B24: 0,517/0,470 | C24: 1,2/9 | D24: п.м | E24: - | F24: =ROUND(F25/1.209*0.625,1) -> 420.8 | G24: =ROUND(G25/1.209*0.625,1) -> 439.9 | H24: =ROUND(H25/1.209*0.625,1) -> 402.7 | I24: - | J24: =ROUND(J25/1.209*0.625,1) -> 474.6 | K24: =ROUND(K25/1.209*0.625,1) -> 469.9 | L24: 421.8 | M24: 407.4 | N24: 374.3 | O24: 518.5 | Q24: 518.5 | S24: - | T24: 339.6 | V24: 314.3 | W24: 262.1 | Y24: 249.7 | AA24: - | AB24: - | AC24: - | AD24: - | AE24: =ROUND(AE25/1.209*0.625,1) -> 231.6 | AG24: - | AH24: - | AI24: -
D25: кв.м | E25: - | F25: =ROUND((KlikPro_Pt+B_UpakFalz)*Belarus*(1-E70),2) -> 814 | G25: =ROUND((KlikPro_Sf+B_UpakFalz)*Belarus*(1-D70),2) -> 851 | H25: =ROUND((KlikPro_Sf_a+B_UpakFalz)*Belarus*(1-E70),2) -> 779 | I25: - | J25: =ROUND((KlikPro_QproMatt+B_UpakFalz)*Belarus*(1-J70),2) -> 918 | K25: =ROUND((KlikPro_Q+B_UpakFalz)*Belarus*(1-J70),2) -> 909 | L25: =ROUND((KlikPro_Ql+B_UpakFalz)*Belarus*(1-J70),2) -> 816 | M25: =ROUND((KlikPro_Vel+B_UpakFalz)*Belarus*(1-J70),2) -> 788 | N25: =ROUND((KlikPro_Atl+B_UpakFalz)*Belarus*(1-J70),2) -> 724 | O25: =ROUND(KlikPro_PurMatt*Belarus*(1-O70),2) -> 1003 | Q25: =ROUND(KlikPro_Pur*Belarus*(1-Q70),2) -> 1003 | S25: - | T25: =ROUND((KlikPro_StBarhat+B_UpakFalz)*Belarus*(1-T70),2) -> 657 | V25: =ROUND((KlikPro_SatMatt+B_UpakFalz)*Belarus*(1-V70),2) -> 608 | W25: =ROUND((KlikPro_Dr+B_UpakFalz)*Belarus*(1-W71),2) -> 507 | Y25: =ROUND((KlikPro_Sat+B_UpakFalz)*Belarus*(1-Y71),2) -> 483 | AA25: - | AB25: - | AC25: - | AD25: - | AE25: =ROUND((KlikPro_Pe045+B_UpakFalz)*Belarus*(1-AE71),2) -> 448 | AG25: - | AH25: - | AI25: -
A26: Кликфальц / Кликфальц Line (1) | B26: Обн.: 542/510 | C26: 1,2/9 | D26: п.м | E26: - | F26: =ROUND(F27/1.153*0.625,1) -> 416.3 | G26: =ROUND(G27/1.153*0.625,1) -> 435.3 | H26: =ROUND(H27/1.153*0.625,1) -> 398.4 | I26: - | J26: =ROUND(J27/1.153*0.625,1) -> 469.4 | K26: =ROUND(K27/1.153*0.625,1) -> 465.1 | L26: =ROUND(L27/1.153*0.625,1) -> 417.4 | M26: =ROUND(M27/1.153*0.625,1) -> 402.8 | N26: =ROUND(N27/1.153*0.625,1) -> 370.2 | O26: - | Q26: - | S26: - | T26: =ROUND(T27/1.153*0.625,1) -> 336.1 | V26: =ROUND(V27/1.153*0.625,1) -> 311.1 | W26: =ROUND(W27/1.153*0.625,1) -> 259.1 | Y26: =ROUND(Y27/1.153*0.625,1) -> 247.2 | AA26: - | AB26: - | AC26: - | AD26: =ROUND(AD27/1.153*0.625,1) -> 308.4 | AE26: =ROUND(AE27/1.153*0.625,1) -> 229.3 | AG26: - | AH26: - | AI26: -
D27: кв.м | E27: - | F27: =ROUND((Klik_Pt+B_UpakFalz)*Belarus*(1-E70),2) -> 768 | G27: =ROUND((Klik_Sf+B_UpakFalz)*Belarus*(1-D70),2) -> 803 | H27: =ROUND((Klik_Sf_a+B_UpakFalz)*Belarus*(1-E70),2) -> 735 | I27: - | J27: =ROUND((Klik_QproMatt+B_UpakFalz)*Belarus*(1-J70),2) -> 866 | K27: =ROUND((Klik_Q+B_UpakFalz)*Belarus*(1-J70),2) -> 858 | L27: =ROUND((Klik_Ql+B_UpakFalz)*Belarus*(1-J70),2) -> 770 | M27: =ROUND((Klik_Vel+B_UpakFalz)*Belarus*(1-J70),2) -> 743 | N27: =ROUND((Klik_Atl+B_UpakFalz)*Belarus*(1-J70),2) -> 683 | O27: - | Q27: - | S27: - | T27: =ROUND((Klik_StBarhat+B_UpakFalz)*Belarus*(1-T70),2) -> 620 | V27: =ROUND((Klik_SatMatt+B_UpakFalz)*Belarus*(1-V70),2) -> 574 | W27: =ROUND((Klik_Dr+B_UpakFalz)*Belarus*(1-W71),2) -> 478 | Y27: =ROUND((Klik_Sat+B_UpakFalz)*Belarus*(1-Y71),2) -> 456 | AA27: - | AB27: - | AC27: - | AD27: =ROUND((Klik_Pe07+B_UpakFalz)*Belarus*(1-AD71),2) -> 569 | AE27: =ROUND((Klik_Pe045+B_UpakFalz)*Belarus*(1-AE71),2) -> 423 | AG27: - | AH27: - | AI27: -
A28: Кликфальц Mini (1) | B28: Обн.: 334/305 | C28: 1,2/9 | D28: п.м | E28: - | F28: =ROUND(F29/1.249*0.625,1) -> 416.3 | G28: =ROUND(G29/1.249*0.625,1) -> 435.3 | H28: =ROUND(H29/1.249*0.625,1) -> 398.3 | I28: - | J28: =ROUND(J29/1.249*0.625,1) -> 469.4 | K28: =ROUND(K29/1.249*0.625,1) -> 465.4 | L28: =ROUND(L29/1.249*0.625,1) -> 417.3 | M28: =ROUND(M29/1.249*0.625,1) -> 402.8 | N28: =ROUND(N29/1.249*0.625,1) -> 370.3 | O28: - | Q28: - | S28: - | T28: =ROUND(T29/1.249*0.625,1) -> 335.8 | V28: =ROUND(V29/1.249*0.625,1) -> 310.7 | W28: =ROUND(W29/1.249*0.625,1) -> 259.2 | Y28: =ROUND(Y29/1.249*0.625,1) -> 247.2 | AA28: - | AB28: - | AC28: - | AD28: =ROUND(AD29/1.249*0.625,1) -> 308.7 | AE28: =ROUND(AE29/1.249*0.625,1) -> 229.2 | AG28: - | AH28: - | AI28: -
D29: кв.м | E29: - | F29: =ROUND((Klik_mini_Pt+B_UpakFalz)*Belarus*(1-E70),2) -> 832 | G29: =ROUND((Klik_mini_Sf+B_UpakFalz)*Belarus*(1-D70),2) -> 870 | H29: =ROUND((Klik_mini_Sf_a+B_UpakFalz)*Belarus*(1-E70),2) -> 796 | I29: - | J29: =ROUND((Klik_mini_QproMatt+B_UpakFalz)*Belarus*(1-J70),2) -> 938 | K29: =ROUND((Klik_mini_Q+B_UpakFalz)*Belarus*(1-J70),2) -> 930 | L29: =ROUND((Klik_mini_Ql+B_UpakFalz)*Belarus*(1-J70),2) -> 834 | M29: =ROUND((Klik_mini_Vel+B_UpakFalz)*Belarus*(1-J70),2) -> 805 | N29: =ROUND((Klik_mini_Atl+B_UpakFalz)*Belarus*(1-J70),2) -> 740 | O29: - | Q29: - | S29: - | T29: =ROUND((Klik_mini_StBarhat+B_UpakFalz)*Belarus*(1-T70),2) -> 671 | V29: =ROUND((Klik_mini_SatMatt+B_UpakFalz)*Belarus*(1-V70),2) -> 621 | W29: =ROUND((Klik_mini_Dr+B_UpakFalz)*Belarus*(1-W71),2) -> 518 | Y29: =ROUND((Klik_mini_Sat+B_UpakFalz)*Belarus*(1-Y71),2) -> 494 | AA29: - | AB29: - | AC29: - | AD29: =ROUND((Klik_mini_Pe07+B_UpakFalz)*Belarus*(1-AD71),2) -> 617 | AE29: =ROUND((Klik_mini_Pe045+B_UpakFalz)*Belarus*(1-AE71),2) -> 458 | AG29: - | AH29: - | AI29: -
A30: Профилированный лист
A31: Профнастил С10 | B31: 1180/1150 | C31: 0,5/8 | D31: кв.м | E31: =ROUND(PnC10_Ptdp*Belarus*(1-E70),2) -> 786 | F31: =ROUND(PnC10_Pt*Belarus*(1-E70),2) -> 652 | G31: =ROUND(PnC10_Sf*Belarus*(1-D70),2) -> 683 | H31: =ROUND(PnC10_Sf_a*Belarus*(1-E70),2) -> 621 | I31: =ROUND(PnC10_PtRF*Belarus*(1-I70),2) -> 521 | J31: =ROUND(PnC10_QproMatt*Belarus*(1-J70),2) -> 741 | K31: =ROUND(PnC10_Q*Belarus*(1-J70),2) -> 734 | L31: =ROUND(PnC10_Ql*Belarus*(1-J70),2) -> 653 | M31: =ROUND(PnC10_Vel*Belarus*(1-J70),2) -> 628 | N31: =ROUND(PnC10_Atl*Belarus*(1-J70),2) -> 574 | O31: =ROUND(PnC10_PurMatt*Belarus*(1-O70),2) -> 816 | Q31: =ROUND(PnC10_Pur*Belarus*(1-Q70),2) -> 816 | S31: =ROUND(PnC10_PurLiteMatt*Belarus*(1-S70),2) -> 478 | T31: =ROUND(PnC10_StBarhat*Belarus*(1-T70),2) -> 515 | V31: =ROUND(PnC10_SatMatt*Belarus*(1-V70),2) -> 473 | W31: =ROUND(PnC10_Dr*Belarus*(1-W72),2) -> 385 | Y31: =ROUND(PnC10_Sat*Belarus*(1-Y72),2) -> 365 | AA31: =ROUND(PnC10_PEdp*Belarus*(1-AA72),2) -> 361 | AB31: =ROUND(PnC10_Pe04dp*Belarus*(1-AB72),2) -> 342 | AC31: - | AD31: =ROUND(PnC10_Pe07*Belarus*(1-AD72),2) -> 469 | AE31: =ROUND(PnC10_Pe045*Belarus*(1-AE72),2) -> 335 | AG31: =ROUND(PnC10_Pe04*Belarus*(1-AG72),2) -> 258 | AH31: =ROUND(PnC10_PeMatt04*Belarus*(1-AH72),2) -> 381 | AI31: =ROUND(PnC10_dachPr*Belarus*(1-AI72),2) -> 243
A32: Профнастил С20 | B32: 1165/1110 | C32: 0,5/8 | D32: кв.м | E32: =ROUND(PnC20_Ptdp*Belarus*(1-E70),2) -> 805 | F32: =ROUND(PnC20_Pt*Belarus*(1-E70),2) -> 667 | G32: =ROUND(PnC20_Sf*Belarus*(1-D70),2) -> 699 | H32: =ROUND(PnC20_Sf_a*Belarus*(1-E70),2) -> 635 | I32: =ROUND(PnC20_PtRF*Belarus*(1-I70),2) -> 532 | J32: =ROUND(PnC20_QproMatt*Belarus*(1-J70),2) -> 759 | K32: =ROUND(PnC20_Q*Belarus*(1-J70),2) -> 751 | L32: =ROUND(PnC20_Ql*Belarus*(1-J70),2) -> 668 | M32: =ROUND(PnC20_Vel*Belarus*(1-J70),2) -> 643 | N32: =ROUND(PnC20_Atl*Belarus*(1-J70),2) -> 586 | O32: =ROUND(PnC20_PurMatt*Belarus*(1-O70),2) -> 835 | Q32: =ROUND(PnC20_Pur*Belarus*(1-Q70),2) -> 835 | S32: =ROUND(PnC20_PurLiteMatt*Belarus*(1-S70),2) -> 488 | T32: =ROUND(PnC20_StBarhat*Belarus*(1-T70),2) -> 527 | V32: =ROUND(PnC20_SatMatt*Belarus*(1-V70),2) -> 486 | W32: =ROUND(PnC20_Dr*Belarus*(1-W72),2) -> 393 | Y32: =ROUND(PnC20_Sat*Belarus*(1-Y72),2) -> 373 | AA32: =ROUND(PnC20_PEdp*Belarus*(1-AA72),2) -> 371 | AB32: =ROUND(PnC20_Pe04dp*Belarus*(1-AB72),2) -> 349 | AC32: - | AD32: =ROUND(PnC20_Pe07*Belarus*(1-AD72),2) -> 499 | AE32: =ROUND(PnC20_Pe045*Belarus*(1-AE72),2) -> 341 | AG32: =ROUND(PnC20_Pe04*Belarus*(1-AG72),2) -> 263 | AH32: =ROUND(PnC20_PeMatt04*Belarus*(1-AH72),2) -> 389 | AI32: =ROUND(PnC20_dachPr*Belarus*(1-AI72),2) -> 247
A33: Профнастил С21 | B33: Обн.: 1,040/0,990 | C33: 0,5/12 | D33: кв.м | E33: =ROUND(PnC21_Ptdp*Belarus*(1-E70),2) -> 880 | F33: =ROUND(PnC21_Pt*Belarus*(1-E70),2) -> 730 | G33: =ROUND(PnC21_Sf*Belarus*(1-D70),2) -> 765 | H33: =ROUND(PnC21_Sf_a*Belarus*(1-E70),2) -> 695 | I33: =ROUND(PnC21_PtRF*Belarus*(1-I70),2) -> 582 | J33: =ROUND(PnC21_QproMatt*Belarus*(1-J70),2) -> 830 | K33: =ROUND(PnC21_Q*Belarus*(1-J70),2) -> 822 | L33: =ROUND(PnC21_Ql*Belarus*(1-J70),2) -> 731 | M33: =ROUND(PnC21_Vel*Belarus*(1-J70),2) -> 703 | N33: =ROUND(PnC21_Atl*Belarus*(1-J70),2) -> 642 | O33: =ROUND(PnC21_PurMatt*Belarus*(1-O70),2) -> 913 | Q33: =ROUND(PnC21_Pur*Belarus*(1-Q70),2) -> 913 | S33: =ROUND(PnC21_PurLiteMatt*Belarus*(1-S70),2) -> 537 | T33: =ROUND(PnC21_StBarhat*Belarus*(1-T70),2) -> 576 | V33: =ROUND(PnC21_SatMatt*Belarus*(1-V70),2) -> 531 | W33: =ROUND(PnC21_Dr*Belarus*(1-W72),2) -> 435 | Y33: =ROUND(PnC21_Sat*Belarus*(1-Y72),2) -> 411 | AA33: =ROUND(PnC21_PEdp*Belarus*(1-AA72),2) -> 403 | AB33: =ROUND(PnC21_Pe04dp*Belarus*(1-AB72),2) -> 381 | AC33: - | AD33: =ROUND(PnC21_Pe07*Belarus*(1-AD72),2) -> 547 | AE33: =ROUND(PnC21_Pe045*Belarus*(1-AE72),2) -> 377 | AG33: =ROUND(PnC21_Pe04*Belarus*(1-AG72),2) -> 288 | AH33: =ROUND(PnC21_PeMatt04*Belarus*(1-AH72),2) -> 426 | AI33: -
A34: Профнастил НС35 | B34: 1060/1000 | C34: 0,5/12 | D34: кв.м | E34: - | F34: - | G34: - | H34: - | I34: - | J34: =ROUND(PnHC35_QproMatt*Belarus*(1-J70),2) -> 829 | K34: =ROUND(PnHC35_Q*Belarus*(1-J70),2) -> 821 | L34: =ROUND(PnHC35_Ql*Belarus*(1-J70),2) -> 730 | M34: =ROUND(PnHC35_Vel*Belarus*(1-J70),2) -> 702 | N34: =ROUND(PnHC35_Atl*Belarus*(1-J70),2) -> 641 | O34: =ROUND(PnHC35_PurMatt*Belarus*(1-O70),2) -> 912 | Q34: =ROUND(PnHC35_Pur*Belarus*(1-Q70),2) -> 912 | S34: =ROUND(PnHC35_PurLiteMatt*Belarus*(1-S70),2) -> 532 | T34: =ROUND(PnHC35_StBarhat*Belarus*(1-T70),2) -> 575 | V34: =ROUND(PnHC35_SatMatt*Belarus*(1-V70),2) -> 527 | W34: - | Y34: =ROUND(PnHC35_Sat*Belarus*(1-Y72),2) -> 406 | AA34: - | AB34: - | AC34: =ROUND(PnHC35_Pe08*Belarus*(1-AC72),2) -> 628 | AD34: =ROUND(PnHC35_Pe07*Belarus*(1-AD72),2) -> 540 | AE34: - | AG34: - | AH34: - | AI34: -
A35: Штрипс, отмотка и плоский лист
A36: Штрипс для фальца (625 мм) | B36: 625/- | C36: 0,5/300 | D36: кв.м | E36: =ROUND(ShtripsFalz_Ptdp*Belarus*(1-E70),2) -> 781 | F36: =ROUND(ShtripsFalz_Pt*Belarus*(1-E70),2) -> 649 | G36: =ROUND(ShtripsFalz_Sf*Belarus*(1-D70),2) -> 680 | H36: =ROUND(ShtripsFalz_Sf_a*Belarus*(1-E70),2) -> 619 | I36: =ROUND(ShtripsFalz_PtRF*Belarus*(1-I70),2) -> 520 | J36: =ROUND(ShtripsFalz_QproMatt*Belarus*(1-J70),2) -> 752 | K36: =ROUND(ShtripsFalz_Q*Belarus*(1-J70),2) -> 746 | L36: =ROUND(ShtripsFalz_Ql*Belarus*(1-J70),2) -> 650 | M36: =ROUND(ShtripsFalz_Vel*Belarus*(1-J70),2) -> 626 | N36: =ROUND(ShtripsFalz_Atl*Belarus*(1-J70),2) -> 572 | O36: =ROUND(ShtripsFalz_PurMatt*Belarus*(1-O70),2) -> 839 | Q36: =ROUND(ShtripsFalz_Pur*Belarus*(1-Q70),2) -> 839 | S36: =ROUND(ShtripsFalz_PurLiteMatt*Belarus*(1-S70),2) -> 478 | T36: =ROUND(ShtripsFalz_StBarhat*Belarus*(1-T70),2) -> 515 | V36: =ROUND(ShtripsFalz_SatMatt*Belarus*(1-V70),2) -> 473 | W36: =ROUND(ShtripsFalz_Dr*Belarus*(1-W73),2) -> 394 | Y36: =ROUND(ShtripsFalz_Sat*Belarus*(1-Y73),2) -> 367 | AA36: =ROUND(ShtripsFalz_PEdp*Belarus*(1-AA73),2) -> 353 | AB36: =ROUND(ShtripsFalz_Pe04dp*Belarus*(1-AB73),2) -> 334 | AC36: =ROUND(ShtripsFalz_Pe08*Belarus*(1-AC73),2) -> 531 | AD36: =ROUND(ShtripsFalz_Pe07*Belarus*(1-AD73),2) -> 459 | AE36: =ROUND(ShtripsFalz_Pe045*Belarus*(1-AE73),2) -> 327 | AG36: =ROUND(ShtripsFalz_Pe04*Belarus*(1-AG73),2) -> 252 | AH36: =ROUND(ShtripsFalz_PeMatt04*Belarus*(1-AH73),2) -> 373 | AI36: -
A37: Плоский лист Штрипс (2) Отмотка (2) | B37: 1250 / <=1250мм | C37: 0,5/7,99 - 0,5/300 - 8/500 | D37: кв.м | E37: =ROUND(List_Ptdp*Belarus*(1-E70),2) -> 776 | F37: =ROUND(List_Pt*Belarus*(1-E70),2) -> 644 | G37: =ROUND(List_Sf*Belarus*(1-D70),2) -> 675 | H37: =ROUND(List_Sf_a*Belarus*(1-E70),2) -> 614 | I37: =ROUND(List_PtRF*Belarus*(1-I70),2) -> 515 | J37: =ROUND(List_QproMatt*Belarus*(1-J70),2) -> 747 | K37: =ROUND(List_Q*Belarus*(1-J70),2) -> 741 | L37: =ROUND(List_Ql*Belarus*(1-J70),2) -> 645 | M37: =ROUND(List_Vel*Belarus*(1-J70),2)&" (1)" -> 621 (1) | N37: =ROUND(List_Atl*Belarus*(1-J70),2) -> 567 | O37: =ROUND(List_PurMatt*Belarus*(1-O70),2) -> 834 | Q37: =ROUND(List_Pur*Belarus*(1-Q70),2) -> 834 | S37: =ROUND(List_PurLiteMatt*Belarus*(1-S70),2) -> 473 | T37: =ROUND(List_StBarhat*Belarus*(1-T70),2) -> 510 | V37: =ROUND(List_SatMatt*Belarus*(1-V70),2) -> 468 | W37: =ROUND(List_Dr*Belarus*(1-W73),2) -> 389 | Y37: =ROUND(List_Sat*Belarus*(1-Y73),2) -> 362 | AA37: =ROUND(List_PEdp*Belarus*(1-AA73),2) -> 353 | AB37: =ROUND(List_Pe04dp*Belarus*(1-AB73),2) -> 334 | AC37: =ROUND(List_Pe08*Belarus*(1-AC73),2) -> 531 | AD37: =ROUND(List_Pe07*Belarus*(1-AD73),2) -> 459 | AE37: =ROUND(List_Pe045*Belarus*(1-AE73),2) -> 327 | AG37: =ROUND(List_Pe04*Belarus*(1-AG73),2) -> 252 | AH37: =ROUND(List_PeMatt04*Belarus*(1-AH73),2) -> 373 | AI37: =ROUND(List_dachPr*Belarus*(1-AI73),2) -> 237
A41: Примечания | M41: Наценки на фальц: | AA41: Наценка при заказе металлочерепицы, профнастила, штрипса, отмотки и плоского листа
A42: ="(1) пл.лист в покрытии Velur изготавливается в защитной пленке - цена указана без учета стоимости пленки, т.е. к цене прайса нужно прибавить "&(15*Belarus)&" руб. за пленку. На картины фальца пленка наносится только в районе замков." -> (1) пл.лист в покрытии Velur изготавливается в защитной пленке - цена указана без учета стоимости пленки, т.е. к цене прайса нужно прибавить 15 руб. за пленку. На картины фальца пленка наносится только в районе замков. | M42: Объем заказа | Q42: Наценка | U42: Срок изготовления
M43: за заказ менее 7 кв.м. | Q43: =ROUND(1000*Belarus,2)&" руб." -> 1000 руб. | U43: стандартный | AA43: Объем заказа | AE43: Наценка | AG43: Срок изготовления
A44: Фальц (в полимерных покрытиях); фигурный профнастил; мет. cофит изготавливаются в защитной пленке - для них цена прайса указана с учетом стоимости нанесения пленки. Стоимость двойного стоячего фальца рассчитывается исходя из ширины 625 мм (ширины заготовки). Полная ширина готового изделия 563 мм. | M44: за заказ от 7 до 24,99 кв.м. | Q44: наценка 100% | AA44: за заказ менее 5 кв.м. | AE44: наценка 70% | AG44: стандартный
M45: за заказ от 25 до 49,99 кв.м. | Q45: наценка 20% | AA45: за заказ от 5 до 9,99 кв.м. | AE45: наценка 30%
A46: (2) штрипс длиной менее 4,0 м изготавливается только в пленке. Максимальная длина отмотки в покрытиях Design и Premium 50м | M46: за заказ до 50 кв.м. | Q46: нет | U46: бессрочный | AA46: за заказ от 10 до 25 кв.м. | AE46: наценка 15%
A47: (3) На изделиях в покрытии Colority Print на больших поверхностях возможна видимая повторяемость рисунка. Внимание! При монтаже металлического сайдинга в покрытии Colority Print для минимизации возможного появления видимой повторяемости рисунка и разнооттеночности рекомендуем использовать панели одинаковой длины из разных упаковок. Подробности уточняйте в офисе продаж. | AA47: за заказ менее 25 кв.м. | AE47: нет | AG47: бессрочный
M48: Наценка на продукцию в цвете RAL 7016 (для всех покрытий, кроме группы Premium) и в цветах RAL 2004, RAL 1018
M49: ="Продукция (кроме доборных элементов) на "&(25*Belarus)&" рублей/кв.м дороже продукции в остальных цветах" -> Продукция (кроме доборных элементов) на 25 рублей/кв.м дороже продукции в остальных цветах
A50: (4) Цвет обратной стороны покрытия Safari Grey не совпадает с цветом лицевой стороны, светлый серый (примерно RAL 7005)
A51: Остатки при нарезке штрипса выставляются в счет. | M51: Услуги расчета материала (деньги возвращаются при размещении заказа): | AC51: Наценка на металлический софит
A52: Все виды МЧ во всех покрытиях изготавливаются без пленки. Стоимость металлочерепицы рассчитывается по общей ширине листа. | M52: Услуга расчета материала в Розничном отделе | U52: =ROUND(1000*Belarus,2)&" руб." -> 1000 руб. | AC52: за заказ менее 25 кв.м. | AF52: 0.1
A53: Для Беларуси и Прибалтийских стран в цену металлического сайдинга и фальца включена стоимость упаковки. | M53: Услуга расчета материала в Дилерском отделе | U53: =ROUND(400*Belarus,2)&" руб." -> 400 руб.
A54: Вся продукция изготавливается из металла по ГОСТ 52246-2016 и ГОСТ 34180-2018
A55: Сокращения: Обн. - производство Обнинск (Верховье); СПБ - производство Санкт-Петербург (Гатчина); НН - производство Нижний Новгород (Дружный); Врн - производство Воронеж (Масловская промзона) | M55: Нанесение защитной пленки
M56: Защитная пленка | U56: =ROUND(15*Belarus,2)&" руб./кв.м" -> 15 руб./кв.м
A68: Ваша скидка | E68: Design | I68: Print РФ | J68: Premium | O68: PURAL МАTТ | Q68: PURAL | S68: PurLite Matt | T68: Стальной Бархат | V68: Satin Matt | W68: Drap | Y68: Satin | AA68: PE 0.45 двс | AB68: PE 0.4 двс | AC68: PE 0,8 | AD68: PE 0,7 | AE68: PE 0,45 | AG68: PE 0,4 | AH68: PE Matt 0,4 | AI68: Дачный
AI69: PE производство
A70: Металлочерепица | E70: 0 | I70: 0 | J70: 0 | O70: 0 | Q70: 0 | S70: 0 | T70: 0 | V70: 0 | W70: 0 | Y70: 0 | AA70: - | AB70: - | AC70: - | AD70: - | AE70: 0 | AG70: 0 | AH70: 0 | AI70: 0
A71: Фальцевая кровля | W71: 0 | Y71: 0 | AA71: - | AB71: - | AC71: - | AD71: 0 | AE71: 0 | AG71: 0 | AH71: 0 | AI71: 0
A72: Профнастил | W72: 0 | Y72: 0 | AA72: 0 | AB72: 0 | AC72: 0 | AD72: 0 | AE72: 0 | AG72: 0 | AH72: 0 | AI72: 0
A73: Плоский лист/отмотка/штрипс | W73: 0 | Y73: 0 | AA73: 0 | AB73: 0 | AC73: 0 | AD73: 0 | AE73: 0 | AG73: 0 | AH73: 0 | AI73: 0
A74: Металлочерепица Kvinta Uno | E74: 0 | I74: 0 | J74: 0 | O74: 0 | Q74: 0 | S74: 0 | T74: 0 | V74: 0 | W74: 0 | Y74: 0 | AA74: - | AB74: - | AC74: - | AD74: - | AE74: 0 | AG74: - | AH74: - | AI74: -
A75: Софит | E75: 0
A97: 2020-04-27 | B97: Цена: техническая корректировка подкладочных ковров Katepal (1.6) Новинка: профилированная продукция и штакетник в покрытии 0.4 ПЭ двс (Вся проф-ка ч2, 1.1, 5.1) Ассортимент: коррекция акционного ассортимента модульных ограждений (5.5) Иное: скорректированы примечания на страницах Вся проф-ка (ч1, ч.2), Профилировка (Примечания)

Sheet Цены (hidden)
B2: ОСНОВНОЙ | C2: Colority Print dp | E2: Colority Print | G2: Safari - БРАУН | I2: Safari - ДРУГИЕ цвета | K2: Print РФ | M2: Quarzit Pro Matt | O2: Quarzit | Q2: Quarzit lite | S2: Velur | U2: Atlas | W2: GreenCoat Pural Matt | Y2: GreenCoat Pural | AA2: PurLite Matt | AC2: Стальной Бархат | AE2: Satin Matt | AG2: Drap | AI2: Satin | AK2: PE 0, 45 двс | AM2: PE 0, 4 двс | AO2: PE | AW2: PE MATT | AY2: Дачный PE производство | BA2: Дачный PE склад | BC2: Дачный Print (Camuflage) | BE2: Дачный Print (Twincolor) | BG2: Цинк
AO3: 0.8 | AQ3: 0.7 | AS3: 0.45 | AU3: 0.4 | AW3: 0,4 matt | BG3: 0.35 | BI3: 0.4 | BK3: 0.45 | BM3: 0.5 | BO3: 0.55 | BQ3: 0.7 | BS3: 0.8 | BU3: 0.9
B4: Kvinta plus | C4: KvintaPl_Ptdp | D4: - | E4: KvintaPl_Pt | F4: 695 | G4: KvintaPl_Sf | H4: 723 | I4: KvintaPl_Sf_a | J4: 657 | L4: - | M4: KvintaPl_QproMatt | N4: 812 | O4: KvintaPl_Q | P4: 805 | Q4: KvintaPl_Ql | R4: 714 | S4: KvintaPl_Vel | T4: 690 | U4: KvintaPl_Atl | V4: 614 | W4: KvintaPl_PurMatt | X4: 895 | Y4: KvintaPl_Pur | Z4: 895 | AA4: KvintaPl_PurLiteMatt | AB4: 522 | AC4: KvintaPl_StBarhat | AD4: 565 | AE4: KvintaPl_SatMatt | AF4: 520 | AG4: KvintaPl_Dr | AH4: 422 | AI4: KvintaPl_Sat | AJ4: 411 | AK4: KvintaPl_PEdp | AL4: - | AM4: KvintaPl_Pe04dp | AN4: - | AO4: KvintaPl_Pe08 | AP4: - | AQ4: KvintaPl_Pe07 | AR4: - | AS4: KvintaPl_Pe045 | AT4: 370 | AU4: KvintaPl_Pe04 | AV4: - | AW4: KvintaPl_PeMatt04 | AX4: - | AY4: KvintaPl_dachPr | AZ4: - | BA4: KvintaPl_dachSk | BC4: KvintaPl_dachPr_k | BE4: KvintaPl_dachPr_tw
B5: Kvinta UNO | C5: KvintaUno_Ptdp | D5: - | E5: KvintaUno_Pt | F5: 695 | G5: KvintaUno_Sf | H5: 723 | I5: KvintaUno_Sf_a | J5: 657 | L5: - | M5: KvintaUno_QproMatt | N5: 812 | O5: KvintaUno_Q | P5: 805 | Q5: KvintaUno_Ql | R5: 714 | S5: KvintaUno_Vel | T5: 690 | U5: KvintaUno_Atl | V5: 614 | W5: KvintaUno_PurMatt | X5: 895 | Y5: KvintaUno_Pur | Z5: 895 | AA5: KvintaUno_PurLiteMatt | AB5: 522 | AC5: KvintaUno_StBarhat | AD5: 565 | AE5: KvintaUno_SatMatt | AF5: 520 | AG5: KvintaUno_Dr | AH5: 422 | AI5: KvintaUno_Sat | AJ5: 411 | AK5: - | AL5: - | AM5: - | AN5: - | AO5: - | AQ5: - | AS5: KvintaUno_Pe045 | AT5: 370 | AU5: - | AV5: - | AW5: KvintaUno_PeMatt04 | AX5: - | AY5: - | AZ5: - | BA5: - | BC5: - | BE5: -
B6: Kamea | C6: Kamea_Ptdp | D6: - | E6: Kamea_Pt | F6: 687 | G6: Kamea_Sf | H6: 714 | I6: Kamea_Sf_a | J6: 650 | L6: - | M6: Kamea_QproMatt | N6: 796 | O6: Kamea_Q | P6: 788 | Q6: Kamea_Ql | R6: 702 | S6: Kamea_Vel | T6: 678 | U6: Kamea_Atl | V6: 605 | W6: Kamea_PurMatt | X6: 876 | Y6: Kamea_Pur | Z6: 876 | AA6: Kamea_PurLiteMatt | AB6: 517 | AC6: Kamea_StBarhat | AD6: 558 | AE6: Kamea_SatMatt | AF6: 515 | AG6: Kamea_Dr | AH6: 415 | AI6: Kamea_Sat | AJ6: 405 | AK6: Kamea_PEdp | AL6: - | AM6: Kamea_Pe04dp | AN6: - | AO6: Kamea_Pe08 | AP6: - | AQ6: Kamea_Pe07 | AR6: - | AS6: Kamea_Pe045 | AT6: 366 | AU6: Kamea_Pe04 | AV6: - | AW6: Kamea_PeMatt04 | AX6: - | AY6: Kamea_dachPr | AZ6: - | BA6: Kamea_dachSk | BC6: Kamea_dachPr_k | BE6: Kamea_dachPr_tw
B7: Kredo | C7: Kredo_Ptdp | D7: - | E7: Kredo_Pt | F7: 687 | G7: Kredo_Sf | H7: 714 | I7: Kredo_Sf_a | J7: 650 | L7: - | M7: Kredo_QproMatt | N7: 796 | O7: Kredo_Q | P7: 788 | Q7: Kredo_Ql | R7: 702 | S7: Kredo_Vel | T7: 678 | U7: Kredo_Atl | V7: 605 | W7: Kredo_PurMatt | X7: 876 | Y7: Kredo_Pur | Z7: 876 | AA7: Kredo_PurLiteMatt | AB7: 517 | AC7: Kredo_StBarhat | AD7: 558 | AE7: Kredo_SatMatt | AF7: 515 | AG7: Kredo_Dr | AH7: 415 | AI7: Kredo_Sat | AJ7: 405 | AK7: Kredo_PEdp | AL7: - | AM7: Kredo_Pe04dp | AN7: - | AO7: Kredo_Pe08 | AP7: - | AQ7: Kredo_Pe07 | AR7: - | AS7: Kredo_Pe045 | AT7: 366 | AU7: Kredo_Pe04 | AV7: - | AW7: Kredo_PeMatt04 | AX7: - | AY7: Kredo_dachPr | AZ7: - | BA7: Kredo_dachSk | BC7: Kredo_dachPr_k | BE7: Kredo_dachPr_tw
B8: Classic | C8: Classic_Ptdp | D8: - | E8: Classic_Pt | F8: 672 | G8: Classic_Sf | H8: 699 | I8: Classic_Sf_a | J8: 635 | K8: Classic_PtRF | L8: 548 | M8: Classic_QproMatt | N8: 781 | O8: Classic_Q | P8: 773 | Q8: Classic_Ql | R8: 687 | S8: Classic_Vel | T8: 663 | U8: Classic_Atl | V8: 590 | W8: Classic_PurMatt | X8: 861 | Y8: Classic_Pur | Z8: 861 | AA8: Classic_PurLiteMatt | AB8: 502 | AC8: Classic_StBarhat | AD8: 543 | AE8: Classic_SatMatt | AF8: 500 | AG8: Classic_Dr | AH8: 400 | AI8: Classic_Sat | AJ8: 390 | AK8: Classic_PEdp | AL8: - | AM8: Classic_Pe04dp | AN8: - | AO8: Classic_Pe08 | AP8: - | AQ8: Classic_Pe07 | AR8: - | AS8: Classic_Pe045 | AT8: 351 | AU8: Classic_Pe04 | AV8: 273 | AW8: Classic_PeMatt04 | AX8: 401 | AY8: Classic_dachPr | AZ8: - | BA8: Classic_dachSk | BC8: Classic_dachPr_k | BE8: Classic_dachPr_tw
B9: Modern | C9: Modern_Ptdp | D9: - | E9: Modern_Pt | F9: - | G9: Modern_Sf | H9: - | I9: Modern_Sf_a | J9: - | L9: - | M9: Modern_QproMatt | N9: - | O9: Modern_Q | P9: - | Q9: Modern_Ql | R9: - | S9: Modern_Vel | T9: - | U9: Modern_Atl | V9: - | W9: Modern_PurMatt | X9: - | Y9: Modern_Pur | Z9: - | AA9: Modern_PurLiteMatt | AB9: - | AC9: Modern_StBarhat | AD9: 543 | AE9: Modern_SatMatt | AF9: - | AG9: Modern_Dr | AH9: 400 | AI9: Modern_Sat | AJ9: - | AK9: Modern_PEdp | AL9: - | AM9: Modern_Pe04dp | AN9: - | AO9: Modern_Pe08 | AP9: - | AQ9: Modern_Pe07 | AR9: - | AS9: Modern_Pe045 | AT9: 351 | AU9: Modern_Pe04 | AV9: 273 | AW9: Modern_PeMatt04 | AX9: 401 | AY9: Modern_dachPr | AZ9: - | BA9: Modern_dachSk | BC9: Modern_dachPr_k | BE9: Modern_dachPr_tw
B10: Quadro Profi | C10: Quadro_Ptdp | D10: - | E10: Quadro_Pt | F10: 687 | G10: Quadro_Sf | H10: 714 | I10: Quadro_Sf_a | J10: 650 | L10: - | M10: Quadro_QproMatt | N10: 796 | O10: Quadro_Q | P10: 788 | Q10: Quadro_Ql | R10: 702 | S10: Quadro_Vel | T10: 678 | U10: Quadro_Atl | V10: 605 | W10: Quadro_PurMatt | X10: 876 | Y10: Quadro_Pur | Z10: 876 | AA10: Quadro_PurLiteMatt | AB10: 517 | AC10: Quadro_StBarhat | AD10: 558 | AE10: Quadro_SatMatt | AF10: 515 | AG10: Quadro_Dr | AH10: 415 | AI10: Quadro_Sat | AJ10: 405 | AK10: Quadro_PEdp | AL10: - | AM10: Quadro_Pe04dp | AN10: - | AO10: Quadro_Pe08 | AQ10: Quadro_Pe07 | AS10: Quadro_Pe045 | AT10: 366 | AU10: Quadro_Pe04 | AV10: 288 | AW10: Quadro_PeMatt04 | AX10: 416 | AY10: Quadro_dachPr | AZ10: - | BA10: Quadro_dachSk | BC10: Quadro_dachPr_k | BE10: Quadro_dachPr_tw
B11: Софит металлический | C11: Sofit_Ptdp | D11: - | E11: Sofit_Pt | F11: 1135 | G11: Sofit_Sf | H11: 1290 | I11: Sofit_Sf_a | J11: 1173 | K11: Sofit_PtRF | L11: 972 | M11: Sofit_QproMatt | N11: 1262 | O11: Sofit_Q | P11: 1247 | Q11: Sofit_Ql | R11: 1164 | S11: Sofit_Vel | T11: 1116 | U11: Sofit_Atl | V11: 1021 | W11: Sofit_PurMatt | X11: 1670 | Y11: Sofit_Pur | Z11: 1670 | AA11: Sofit_PurLiteMatt | AB11: 979 | AC11: Sofit_StBarhat | AD11: 1057 | AE11: Sofit_SatMatt | AF11: 969 | AG11: Sofit_Dr | AH11: 794 | AI11: Sofit_Sat | AJ11: 814 | AK11: Sofit_PEdp | AL11: - | AM11: Sofit_Pe04dp | AN11: - | AO11: Sofit_Pe08 | AP11: - | AQ11: Sofit_Pe07 | AR11: - | AS11: Sofit_Pe045 | AT11: 671 | AU11: Sofit_Pe04 | AV11: - | AW11: Sofit_PeMatt04 | AX11: - | AY11: Sofit_dachPr | AZ11: - | BA11: Sofit_dachSk | BC11: Sofit_dachPr_k | BE11: Sofit_dachPr_tw
B12: Двойной стоячий фальц/Profi | C12: Falz2_Ptdp | D12: - | E12: Falz2_Pt | F12: 666 | G12: Falz2_Sf | H12: 696 | I12: Falz2_Sf_a | J12: 638 | L12: - | M12: Falz2_QproMatt | N12: 751 | O12: Falz2_Q | P12: 744 | Q12: Falz2_Ql | R12: 667 | S12: Falz2_Vel | T12: 644 | U12: Falz2_Atl | V12: 593 | W12: Falz2_PurMatt | X12: 821 | Y12: Falz2_Pur | Z12: 821 | AA12: Falz2_PurLiteMatt | AB12: 502 | AC12: Falz2_StBarhat | AD12: 537 | AE12: Falz2_SatMatt | AF12: 497 | AG12: Falz2_Dr | AH12: 415 | AI12: Falz2_Sat | AJ12: 396 | AK12: Falz2_PEdp | AL12: - | AM12: Falz2_Pe04dp | AN12: - | AO12: Falz2_Pe08 | AP12: - | AQ12: Falz2_Pe07 | AR12: 494 | AS12: Falz2_Pe045 | AT12: 367 | AU12: Falz2_Pe04 | AV12: - | AW12: Falz2_PeMatt04 | AX12: - | AY12: Falz2_dachPr | AZ12: - | BA12: Falz2_dachSk | BC12: Falz2_dachPr_k | BE12: Falz2_dachPr_tw | BG12: Falz2_Zn035 | BI12: Falz2_Zn04 | BK12: Falz2_Zn045 | BL12: 294 | BM12: Falz2_Zn05 | BN12: 308 | BO12: Falz2_Zn055 | BP12: 346 | BQ12: Falz2_Zn07 | BR12: 405 | BS12: Falz2_Zn08 | BU12: Falz2_Zn09
B13: Кликфальц Pro/Line/Gofr | C13: KlikPro_Ptdp | E13: KlikPro_Pt | F13: 814 | G13: KlikPro_Sf | H13: 851 | I13: KlikPro_Sf_a | J13: 779 | K13: KlikPro_PtRF | M13: KlikPro_QproMatt | N13: 918 | O13: KlikPro_Q | P13: 909 | Q13: KlikPro_Ql | R13: 816 | S13: KlikPro_Vel | T13: 788 | U13: KlikPro_Atl | V13: 724 | W13: KlikPro_PurMatt | X13: 1003 | Y13: KlikPro_Pur | Z13: 1003 | AA13: KlikPro_PurLiteMatt | AB13: 614 | AC13: KlikPro_StBarhat | AD13: 657 | AE13: KlikPro_SatMatt | AF13: 608 | AG13: KlikPro_Dr | AH13: 507 | AI13: KlikPro_Sat | AJ13: 483 | AK13: KlikPro_PEdp | AL13: - | AM13: KlikPro_Pe04dp | AO13: KlikPro_Pe08 | AQ13: KlikPro_Pe07 | AS13: KlikPro_Pe045 | AT13: 448 | AU13: KlikPro_Pe04 | AW13: KlikPro_PeMatt04 | BG13: KlikPro_Zn035 | BI13: KlikPro_Zn04 | BK13: KlikPro_Zn045 | BL13: 359 | BM13: KlikPro_Zn05 | BN13: 377 | BO13: KlikPro_Zn055 | BP13: 423 | BQ13: KlikPro_Zn07 | BS13: KlikPro_Zn08 | BU13: KlikPro_Zn09
B14: Кликфальц/Profi | C14: Klik_Ptdp | D14: - | E14: Klik_Pt | F14: 768 | G14: Klik_Sf | H14: 803 | I14: Klik_Sf_a | J14: 735 | L14: - | M14: Klik_QproMatt | N14: 866 | O14: Klik_Q | P14: 858 | Q14: Klik_Ql | R14: 770 | S14: Klik_Vel | T14: 743 | U14: Klik_Atl | V14: 683 | W14: Klik_PurMatt | X14: - | Y14: Klik_Pur | Z14: - | AA14: Klik_PurLiteMatt | AB14: 579 | AC14: Klik_StBarhat | AD14: 620 | AE14: Klik_SatMatt | AF14: 574 | AG14: Klik_Dr | AH14: 478 | AI14: Klik_Sat | AJ14: 456 | AK14: Klik_PEdp | AL14: - | AM14: Klik_Pe04dp | AN14: - | AO14: Klik_Pe08 | AP14: - | AQ14: Klik_Pe07 | AR14: 569 | AS14: Klik_Pe045 | AT14: 423 | AU14: Klik_Pe04 | AV14: - | AW14: Klik_PeMatt04 | AX14: - | AY14: Klik_dachPr | AZ14: - | BA14: Klik_dachSk | BC14: Klik_dachPr_k | BE14: Klik_dachPr_tw | BG14: Klik_Zn035 | BI14: Klik_Zn04 | BK14: Klik_Zn045 | BL14: 339 | BM14: Klik_Zn05 | BN14: 356 | BO14: Klik_Zn055 | BP14: 399 | BQ14: Klik_Zn07 | BR14: 467 | BS14: Klik_Zn08 | BU14: Klik_Zn09
B15: Кликфальц Mini | C15: Klik_mini_Ptdp | D15: - | E15: Klik_mini_Pt | F15: 832 | G15: Klik_mini_Sf | H15: 870 | I15: Klik_mini_Sf_a | J15: 796 | L15: - | M15: Klik_mini_QproMatt | N15: 938 | O15: Klik_mini_Q | P15: 930 | Q15: Klik_mini_Ql | R15: 834 | S15: Klik_mini_Vel | T15: 805 | U15: Klik_mini_Atl | V15: 740 | W15: Klik_mini_PurMatt | X15: - | Y15: Klik_mini_Pur | Z15: - | AA15: Klik_mini_PurLiteMatt | AB15: 627 | AC15: Klik_mini_StBarhat | AD15: 671 | AE15: Klik_mini_SatMatt | AF15: 621 | AG15: Klik_mini_Dr | AH15: 518 | AI15: Klik_mini_Sat | AJ15: 494 | AK15: Klik_mini_PEdp | AL15: - | AM15: Klik_mini_Pe04dp | AN15: - | AO15: Klik_mini_Pe08 | AP15: - | AQ15: Klik_mini_Pe07 | AR15: 617 | AS15: Klik_mini_Pe045 | AT15: 458 | AU15: Klik_mini_Pe04 | AV15: - | AW15: Klik_mini_PeMatt04 | AX15: - | AY15: Klik_mini_dachPr | AZ15: - | BA15: Klik_mini_dachSk | BC15: Klik_mini_dachPr_k | BE15: Klik_mini_dachPr_tw | BG15: Klik_mini_Zn035 | BI15: Klik_mini_Zn04 | BK15: Klik_mini_Zn045 | BL15: - | BM15: Klik_mini_Zn05 | BN15: - | BO15: Klik_mini_Zn055 | BP15: 432 | BQ15: Klik_mini_Zn07 | BR15: 506 | BS15: Klik_mini_Zn08 | BU15: Klik_mini_Zn09
B16: Профнастил С8 | C16: PnC8_Ptdp | D16: 771 | E16: PnC8_Pt | F16: 639 | G16: PnC8_Sf | H16: 670 | I16: PnC8_Sf_a | J16: 609 | K16: PnC8_PtRF | L16: 510 | M16: PnC8_QproMatt | N16: 727 | O16: PnC8_Q | P16: 720 | Q16: PnC8_Ql | R16: 640 | S16: PnC8_Vel | T16: 616 | U16: PnC8_Atl | V16: 562 | W16: PnC8_PurMatt | X16: 800 | Y16: PnC8_Pur | Z16: 800 | AA16: PnC8_PurLiteMatt | AB16: 468 | AC16: PnC8_StBarhat | AD16: 505 | AE16: PnC8_SatMatt | AF16: 463 | AG16: PnC8_Dr | AH16: 377 | AI16: PnC8_Sat | AJ16: 357 | AK16: PnC8_PEdp | AL16: 353 | AM16: PnC8_Pe04dp | AN16: 334 | AO16: PnC8_Pe08 | AP16: - | AQ16: PnC8_Pe07 | AR16: 459 | AS16: PnC8_Pe045 | AT16: 327 | AU16: PnC8_Pe04 | AV16: 252 | AW16: PnC8_PeMatt04 | AX16: 373 | AY16: PnC8_dachPr | AZ16: 237 | BA16: PnC8_dachSk | BB16: 225 | BC16: PnC8_dachPr_k | BD16: 320 | BE16: PnC8_dachPr_tw | BF16: 310 | BG16: PnC8_Zn035 | BH16: 206 | BI16: PnC8_Zn04 | BJ16: 232 | BK16: PnC8_Zn045 | BL16: 251 | BM16: PnC8_Zn05 | BN16: 266 | BO16: PnC8_Zn055 | BP16: 305 | BQ16: PnC8_Zn07 | BR16: 367 | BS16: PnC8_Zn08 | BT16: - | BU16: PnC8_Zn09 | BV16: -
B17: Профнастил С8 Фигурный | C17: PnC8f_Ptdp | D17: 826 | E17: PnC8f_Pt | F17: 694 | G17: PnC8f_Sf | H17: 725 | I17: PnC8f_Sf_a | J17: 664 | K17: PnC8f_PtRF | L17: 565 | M17: PnC8f_QproMatt | N17: 782 | O17: PnC8f_Q | P17: 775 | Q17: PnC8f_Ql | R17: 695 | S17: PnC8f_Vel | T17: 671 | U17: PnC8f_Atl | V17: 617 | W17: PnC8f_PurMatt | X17: 855 | Y17: PnC8f_Pur | Z17: 855 | AA17: PnC8f_PurLiteMatt | AB17: 523 | AC17: PnC8f_StBarhat | AD17: 560 | AE17: PnC8f_SatMatt | AF17: 518 | AG17: PnC8f_Dr | AH17: 432 | AI17: PnC8f_Sat | AJ17: 412 | AK17: PnC8f_PEdp | AL17: 408 | AM17: PnC8f_Pe04dp | AN17: 389 | AP17: - | AR17: - | AS17: PnC8f_Pe045 | AT17: 382 | AU17: PnC8f_Pe04 | AV17: 307 | AW17: PnC8f_PeMatt04 | AX17: 428 | AZ17: - | BB17: - | BD17: - | BF17: - | BH17: - | BK17: PnC8f_Zn045 | BL17: 306 | BM17: PnC8f_Zn05 | BN17: 321
B18: Профнастил С10 | C18: PnC10_Ptdp | D18: 786 | E18: PnC10_Pt | F18: 652 | G18: PnC10_Sf | H18: 683 | I18: PnC10_Sf_a | J18: 621 | K18: PnC10_PtRF | L18: 521 | M18: PnC10_QproMatt | N18: 741 | O18: PnC10_Q | P18: 734 | Q18: PnC10_Ql | R18: 653 | S18: PnC10_Vel | T18: 628 | U18: PnC10_Atl | V18: 574 | W18: PnC10_PurMatt | X18: 816 | Y18: PnC10_Pur | Z18: 816 | AA18: PnC10_PurLiteMatt | AB18: 478 | AC18: PnC10_StBarhat | AD18: 515 | AE18: PnC10_SatMatt | AF18: 473 | AG18: PnC10_Dr | AH18: 385 | AI18: PnC10_Sat | AJ18: 365 | AK18: PnC10_PEdp | AL18: 361 | AM18: PnC10_Pe04dp | AN18: 342 | AO18: PnC10_Pe08 | AP18: - | AQ18: PnC10_Pe07 | AR18: 469 | AS18: PnC10_Pe045 | AT18: 335 | AU18: PnC10_Pe04 | AV18: 258 | AW18: PnC10_PeMatt04 | AX18: 381 | AY18: PnC10_dachPr | AZ18: 243 | BA18: PnC10_dachSk | BB18: - | BC18: PnC10_dachPr_k | BD18: - | BE18: PnC10_dachPr_tw | BF18: - | BG18: PnC10_Zn035 | BH18: 211 | BI18: PnC10_Zn04 | BJ18: 238 | BK18: PnC10_Zn045 | BL18: 257 | BM18: PnC10_Zn05 | BN18: 273 | BO18: PnC10_Zn055 | BP18: 312 | BQ18: PnC10_Zn07 | BR18: 375 | BS18: PnC10_Zn08 | BT18: - | BU18: PnC10_Zn09 | BV18: -
B19: Профнастил С10 Фигурный | C19: PnC10f_Ptdp | D19: 841 | E19: PnC10f_Pt | F19: 707 | G19: PnC10f_Sf | H19: 738 | I19: PnC10f_Sf_a | J19: 676 | K19: PnC10f_PtRF | L19: 576 | M19: PnC10f_QproMatt | N19: 796 | O19: PnC10f_Q | P19: 789 | Q19: PnC10f_Ql | R19: 708 | S19: PnC10f_Vel | T19: 683 | U19: PnC10f_Atl | V19: 629 | W19: PnC10f_PurMatt | X19: 871 | Y19: PnC10f_Pur | Z19: 871 | AA19: PnC10f_PurLiteMatt | AB19: 533 | AC19: PnC10f_StBarhat | AD19: 570 | AE19: PnC10f_SatMatt | AF19: 528 | AG19: PnC10f_Dr | AH19: 440 | AI19: PnC10f_Sat | AJ19: 420 | AK19: PnC10f_PEdp | AL19: 416 | AM19: PnC10f_Pe04dp | AN19: 397 | AO19: PnC10f_Pe08 | AP19: - | AQ19: PnC10f_Pe07 | AR19: - | AS19: PnC10f_Pe045 | AT19: 390 | AU19: PnC10f_Pe04 | AV19: - | AW19: PnC10f_PeMatt04 | AX19: 436 | AY19: PnC10f_dachPr | AZ19: - | BA19: PnC10f_dachSk | BB19: - | BC19: PnC10f_dachPr_k | BD19: - | BE19: PnC10f_dachPr_tw | BF19: - | BG19: PnC10f_Zn035 | BH19: - | BI19: PnC10f_Zn04 | BJ19: - | BK19: PnC10f_Zn045 | BL19: 312 | BM19: PnC10f_Zn05 | BN19: 328 | BO19: PnC10f_Zn055 | BP19: - | BQ19: PnC10f_Zn07 | BR19: - | BS19: PnC10f_Zn08 | BT19: - | BU19: PnC10f_Zn09 | BV19: -
B20: Профнастил С20 | C20: PnC20_Ptdp | D20: 805 | E20: PnC20_Pt | F20: 667 | G20: PnC20_Sf | H20: 699 | I20: PnC20_Sf_a | J20: 635 | K20: PnC20_PtRF | L20: 532 | M20: PnC20_QproMatt | N20: 759 | O20: PnC20_Q | P20: 751 | Q20: PnC20_Ql | R20: 668 | S20: PnC20_Vel | T20: 643 | U20: PnC20_Atl | V20: 586 | W20: PnC20_PurMatt | X20: 835 | Y20: PnC20_Pur | Z20: 835 | AA20: PnC20_PurLiteMatt | AB20: 488 | AC20: PnC20_StBarhat | AD20: 527 | AE20: PnC20_SatMatt | AF20: 486 | AG20: PnC20_Dr | AH20: 393 | AI20: PnC20_Sat | AJ20: 373 | AK20: PnC20_PEdp | AL20: 371 | AM20: PnC20_Pe04dp | AN20: 349 | AO20: PnC20_Pe08 | AP20: - | AQ20: PnC20_Pe07 | AR20: 499 | AS20: PnC20_Pe045 | AT20: 341 | AU20: PnC20_Pe04 | AV20: 263 | AW20: PnC20_PeMatt04 | AX20: 389 | AY20: PnC20_dachPr | AZ20: 247 | BA20: PnC20_dachSk | BB20: 233 | BC20: PnC20_dachPr_k | BE20: PnC20_dachPr_tw | BG20: PnC20_Zn035 | BH20: 215 | BI20: PnC20_Zn04 | BJ20: 242 | BK20: PnC20_Zn045 | BL20: 262 | BM20: PnC20_Zn05 | BN20: 278 | BO20: PnC20_Zn055 | BP20: 318 | BQ20: PnC20_Zn07 | BR20: 383 | BS20: PnC20_Zn08 | BT20: - | BU20: PnC20_Zn09 | BV20: -
B21: Профнастил С20 Фигурный | D21: 773 | E21: PnC20f_Pt | F21: 652 | G21: PnC20f_Sf | H21: - | I21: PnC20f_Sf_a | J21: - | L21: - | N21: - | P21: 810 | Q21: PnC20f_Ql | R21: 725 | S21: PnC20f_Vel | T21: 710 | U21: PnC20f_Atl | V21: 651 | AB21: - | AF21: 592 | AG21: PnC20f_Dr | AH21: - | AI21: PnC20f_Sat | AJ21: - | AK21: PnC20f_PEdp | AL21: - | AM21: PnC20f_Pe04dp | AN21: - | AP21: - | AR21: - | AS21: PnC20f_Pe046 | AT21: - | AV21: - | AW21: PnC20f_Pe046 | AX21: - | AZ21: - | BH21: - | BK21: PnC20f_Zn046
B22: Профнастил С21 | C22: PnC21_Ptdp | D22: 880 | E22: PnC21_Pt | F22: 730 | G22: PnC21_Sf | H22: 765 | I22: PnC21_Sf_a | J22: 695 | K22: PnC21_PtRF | L22: 582 | M22: PnC21_QproMatt | N22: 830 | O22: PnC21_Q | P22: 822 | Q22: PnC21_Ql | R22: 731 | S22: PnC21_Vel | T22: 703 | U22: PnC21_Atl | V22: 642 | W22: PnC21_PurMatt | X22: 913 | Y22: PnC21_Pur | Z22: 913 | AA22: PnC21_PurLiteMatt | AB22: 537 | AC22: PnC21_StBarhat | AD22: 576 | AE22: PnC21_SatMatt | AF22: 531 | AG22: PnC21_Dr | AH22: 435 | AI22: PnC21_Sat | AJ22: 411 | AK22: PnC21_PEdp | AL22: 403 | AM22: PnC21_Pe04dp | AN22: 381 | AO22: PnC21_Pe08 | AP22: - | AQ22: PnC21_Pe07 | AR22: 547 | AS22: PnC21_Pe045 | AT22: 377 | AU22: PnC21_Pe04 | AV22: 288 | AW22: PnC21_PeMatt04 | AX22: 426 | AY22: PnC21_dachPr | BA22: PnC21_dachSk | BB22: - | BC22: PnC21_dachPr_k | BD22: - | BE22: PnC21_dachPr_tw | BF22: - | BG22: PnC21_Zn035 | BH22: 235 | BI22: PnC21_Zn04 | BJ22: 265 | BK22: PnC21_Zn045 | BL22: 287 | BM22: PnC21_Zn05 | BN22: 304 | BO22: PnC21_Zn055 | BP22: 348 | BQ22: PnC21_Zn07 | BR22: 419 | BS22: PnC21_Zn08 | BT22: - | BU22: PnC21_Zn09 | BV22: -
B23: Профнастил НС35 | C23: PnHC35_Ptdp | D23: 879 | E23: PnHC35_Pt | F23: 729 | G23: PnHC35_Sf | H23: 764 | I23: PnHC35_Sf_a | J23: 694 | K23: PnHC35_PtRF | L23: 581 | M23: PnHC35_QproMatt | N23: 829 | O23: PnHC35_Q | P23: 821 | Q23: PnHC35_Ql | R23: 730 | S23: PnHC35_Vel | T23: 702 | U23: PnHC35_Atl | V23: 641 | W23: PnHC35_PurMatt | X23: 912 | Y23: PnHC35_Pur | Z23: 912 | AA23: PnHC35_PurLiteMatt | AB23: 532 | AC23: PnHC35_StBarhat | AD23: 575 | AE23: PnHC35_SatMatt | AF23: 527 | AG23: PnHC35_Dr | AH23: 429 | AI23: PnHC35_Sat | AJ23: 406 | AK23: PnHC35_PEdp | AL23: 402 | AM23: PnHC35_Pe04dp | AN23: - | AO23: PnHC35_Pe08 | AP23: 628 | AQ23: PnHC35_Pe07 | AR23: 540 | AS23: PnHC35_Pe045 | AT23: 376 | AU23: PnHC35_Pe04 | AV23: - | AW23: PnHC35_PeMatt04 | AX23: 425 | AY23: PnHC35_dachPr | BA23: PnHC35_dachSk | BC23: PnHC35_dachPr_k | BE23: PnHC35_dachPr_tw | BG23: PnHC35_Zn035 | BH23: - | BI23: PnHC35_Zn04 | BJ23: - | BK23: PnHC35_Zn045 | BL23: 286 | BM23: PnHC35_Zn05 | BN23: 300 | BO23: PnHC35_Zn055 | BP23: 344 | BQ23: PnHC35_Zn07 | BR23: 416 | BS23: PnHC35_Zn08 | BT23: 482 | BU23: PnHC35_Zn09 | BV23: -
B24: Профнастил Н60 | C24: PnH60_Ptdp | D24: 1026 | E24: PnH60_Pt | F24: 850 | G24: PnH60_Sf | H24: 891 | I24: PnH60_Sf_a | J24: 810 | K24: PnH60_PtRF | L24: 678 | M24: PnH60_QproMatt | N24: 967 | O24: PnH60_Q | P24: 958 | Q24: PnH60_Ql | R24: 851 | S24: PnH60_Vel | T24: 820 | U24: PnH60_Atl | V24: 748 | W24: PnH60_PurMatt | X24: 1064 | Y24: PnH60_Pur | Z24: 1064 | AA24: PnH60_PurLiteMatt | AB24: 620 | AC24: PnH60_StBarhat | AD24: 671 | AE24: PnH60_SatMatt | AF24: 616 | AG24: PnH60_Dr | AH24: - | AI24: PnH60_Sat | AJ24: 475 | AK24: PnH60_PEdp | AL24: - | AM24: PnH60_Pe04dp | AN24: - | AO24: PnH60_Pe08 | AP24: 738 | AQ24: PnH60_Pe07 | AR24: 634 | AS24: PnH60_Pe045 | AT24: - | AU24: PnH60_Pe04 | AV24: - | AW24: PnH60_PeMatt04 | AX24: - | AY24: PnH60_dachPr | BA24: PnH60_dachSk | BC24: PnH60_dachPr_k | BE24: PnH60_dachPr_tw | BG24: PnH60_Zn035 | BH24: - | BI24: PnH60_Zn04 | BJ24: - | BK24: PnH60_Zn045 | BL24: - | BM24: PnH60_Zn05 | BN24: 354 | BO24: PnH60_Zn055 | BP24: 393 | BQ24: PnH60_Zn07 | BR24: 475 | BS24: PnH60_Zn08 | BT24: 550 | BU24: PnH60_Zn09 | BV24: 613
B25: Профнастил Н75 | C25: PnH75_Ptdp | D25: - | E25: PnH75_Pt | F25: - | G25: PnH75_Sf | H25: - | I25: PnH75_Sf_a | J25: - | L25: - | M25: PnH75_QproMatt | N25: - | O25: PnH75_Q | P25: - | Q25: PnH75_Ql | R25: - | S25: PnH75_Vel | T25: - | U25: PnH75_Atl | V25: - | W25: PnH75_PurMatt | X25: - | Y25: PnH75_Pur | Z25: - | AA25: PnH75_PurLiteMatt | AB25: - | AC25: PnH75_StBarhat | AD25: 757 | AE25: PnH75_SatMatt | AF25: - | AG25: PnH75_Dr | AH25: - | AI25: PnH75_Sat | AJ25: - | AK25: PnH75_PEdp | AL25: - | AM25: PnH75_Pe04dp | AN25: - | AO25: PnH75_Pe08 | AP25: 834 | AQ25: PnH75_Pe07 | AR25: 717 | AS25: PnH75_Pe045 | AT25: - | AU25: PnH75_Pe04 | AV25: - | AW25: PnH75_PeMatt04 | AX25: - | AY25: PnH75_dachPr | BA25: PnH75_dachSk | BC25: PnH75_dachPr_k | BE25: PnH75_dachPr_tw | BG25: PnH75_Zn035 | BH25: - | BI25: PnH75_Zn04 | BJ25: - | BK25: PnH75_Zn045 | BL25: - | BM25: PnH75_Zn05 | BN25: - | BO25: PnH75_Zn055 | BP25: - | BQ25: PnH75_Zn07 | BR25: 536 | BS25: PnH75_Zn08 | BT25: 621 | BU25: PnH75_Zn09 | BV25: 691
B26: Штрипс для фальца (625 мм) | C26: ShtripsFalz_Ptdp | D26: 781 | E26: ShtripsFalz_Pt | F26: 649 | G26: ShtripsFalz_Sf | H26: 680 | I26: ShtripsFalz_Sf_a | J26: 619 | K26: ShtripsFalz_PtRF | L26: 520 | M26: ShtripsFalz_QproMatt | N26: 752 | O26: ShtripsFalz_Q | P26: 746 | Q26: ShtripsFalz_Ql | R26: 650 | S26: ShtripsFalz_Vel | T26: 626 | U26: ShtripsFalz_Atl | V26: 572 | W26: ShtripsFalz_PurMatt | X26: 839 | Y26: ShtripsFalz_Pur | Z26: 839 | AA26: ShtripsFalz_PurLiteMatt | AB26: 478 | AC26: ShtripsFalz_StBarhat | AD26: 515 | AE26: ShtripsFalz_SatMatt | AF26: 473 | AG26: ShtripsFalz_Dr | AH26: 394 | AI26: ShtripsFalz_Sat | AJ26: 367 | AK26: ShtripsFalz_PEdp | AL26: 353 | AM26: ShtripsFalz_Pe04dp | AN26: 334 | AO26: ShtripsFalz_Pe08 | AP26: 531 | AQ26: ShtripsFalz_Pe07 | AR26: 459 | AS26: ShtripsFalz_Pe045 | AT26: 327 | AU26: ShtripsFalz_Pe04 | AV26: 252 | AW26: ShtripsFalz_PeMatt04 | AX26: 373 | AY26: ShtripsFalz_dachPr | AZ26: - | BA26: ShtripsFalz_dachSk | BC26: ShtripsFalz_dachPr_k | BE26: ShtripsFalz_dachPr_tw | BG26: ShtripsFalz_Zn035 | BH26: 199 | BI26: ShtripsFalz_Zn04 | BJ26: 223 | BK26: ShtripsFalz_Zn045 | BL26: 241 | BM26: ShtripsFalz_Zn05 | BN26: 255 | BO26: ShtripsFalz_Zn055 | BP26: 292 | BQ26: ShtripsFalz_Zn07 | BR26: 352 | BS26: ShtripsFalz_Zn08 | BT26: 408 | BU26: ShtripsFalz_Zn09 | BV26: 455
B27: Плоский лист Штрипс Отмотка | C27: List_Ptdp | D27: 776 | E27: List_Pt | F27: 644 | G27: List_Sf | H27: 675 | I27: List_Sf_a | J27: 614 | K27: List_PtRF | L27: 515 | M27: List_QproMatt | N27: 747 | O27: List_Q | P27: 741 | Q27: List_Ql | R27: 645 | S27: List_Vel | T27: 621 | U27: List_Atl | V27: 567 | W27: List_PurMatt | X27: 834 | Y27: List_Pur | Z27: 834 | AA27: List_PurLiteMatt | AB27: 473 | AC27: List_StBarhat | AD27: 510 | AE27: List_SatMatt | AF27: 468 | AG27: List_Dr | AH27: 389 | AI27: List_Sat | AJ27: 362 | AK27: List_PEdp | AL27: 353 | AM27: List_Pe04dp | AN27: 334 | AO27: List_Pe08 | AP27: 531 | AQ27: List_Pe07 | AR27: 459 | AS27: List_Pe045 | AT27: 327 | AU27: List_Pe04 | AV27: 252 | AW27: List_PeMatt04 | AX27: 373 | AY27: List_dachPr | AZ27: 237 | BA27: List_dachSk | BB27: - | BC27: List_dachPr_k | BD27: - | BE27: List_dachPr_tw | BF27: - | BG27: List_Zn035 | BH27: 199 | BI27: List_Zn04 | BJ27: 223 | BK27: List_Zn045 | BL27: 241 | BM27: List_Zn05 | BN27: 255 | BO27: List_Zn055 | BP27: 292 | BQ27: List_Zn07 | BR27: 352 | BS27: List_Zn08 | BT27: 408 | BU27: List_Zn09 | BV27: 455
B28: Корабельная Доска | C28: S_KDoska_Ptdp | D28: 852 | E28: S_KDoska_Pt | F28: 709 | G28: S_KDoska_Sf | H28: 744 | I28: S_KDoska_Sf_a | J28: 676 | K28: S_KDoska_PtRF | L28: 578 | M28: S_KDoska_QproMatt | N28: 855 | O28: S_KDoska_Q | P28: 847 | Q28: S_KDoska_Ql | R28: 711 | S28: S_KDoska_Vel | T28: 684 | U28: S_KDoska_Atl | V28: 628 | W28: S_KDoska_PurMatt | X28: 886 | Y28: S_KDoska_Pur | Z28: 886 | AA28: S_KDoska_PurLiteMatt | AB28: 530 | AC28: S_KDoska_StBarhat | AD28: 570 | AE28: S_KDoska_SatMatt | AF28: 572 | AG28: S_KDoska_Dr | AH28: 464 | AI28: S_KDoska_Sat | AJ28: 445 | AK28: S_KDoska_PEdp | AL28: - | AM28: S_KDoska_Pe04dp | AN28: - | AO28: S_KDoska_Pe08 | AP28: - | AQ28: S_KDoska_Pe07 | AR28: - | AS28: S_KDoska_Pe045 | AT28: 405 | AU28: S_KDoska_Pe04 | AV28: 297 | AW28: S_KDoska_PeMatt04 | AX28: - | AY28: S_KDoska_dachPr | BA28: S_KDoska_dachSk | BC28: S_KDoska_dachPr_k | BE28: S_KDoska_dachPr_tw
B29: Вертикаль | C29: S_Vertikal_Ptdp | D29: 918 | E29: S_Vertikal_Pt | F29: 767 | G29: S_Vertikal_Sf | H29: 802 | I29: S_Vertikal_Sf_a | J29: 729 | K29: S_Vertikal_PtRF | L29: 626 | M29: S_Vertikal_QproMatt | N29: 938 | O29: S_Vertikal_Q | P29: 914 | Q29: S_Vertikal_Ql | R29: 769 | S29: S_Vertikal_Vel | T29: 741 | U29: S_Vertikal_Atl | V29: 680 | W29: S_Vertikal_PurMatt | X29: 955 | Y29: S_Vertikal_Pur | Z29: 955 | AA29: S_Vertikal_PurLiteMatt | AB29: 573 | AC29: S_Vertikal_StBarhat | AD29: 618 | AE29: S_Vertikal_SatMatt | AF29: 607 | AG29: S_Vertikal_Dr | AH29: 522 | AI29: S_Vertikal_Sat | AJ29: 484 | AK29: S_Vertikal_PEdp | AL29: - | AM29: S_Vertikal_Pe04dp | AN29: - | AO29: S_Vertikal_Pe08 | AP29: - | AQ29: S_Vertikal_Pe07 | AR29: - | AS29: S_Vertikal_Pe045 | AT29: 437 | AU29: S_Vertikal_Pe04 | AV29: - | AW29: S_Vertikal_PeMatt04 | AX29: - | AY29: S_Vertikal_dachPr | BA29: S_Vertikal_dachSk | BC29: S_Vertikal_dachPr_k | BE29: S_Vertikal_dachPr_tw
B30: ЭкоБрус/Gofr | C30: S_EBrus_Ptdp | D30: 872 | E30: S_EBrus_Pt | F30: 725 | G30: S_EBrus_Sf | H30: 762 | I30: S_EBrus_Sf_a | J30: 693 | K30: S_EBrus_PtRF | L30: 592 | M30: S_EBrus_QproMatt | N30: 867 | O30: S_EBrus_Q | P30: 859 | Q30: S_EBrus_Ql | R30: - | S30: S_EBrus_Vel | T30: 701 | U30: S_EBrus_Atl | V30: 643 | W30: S_EBrus_PurMatt | X30: 905 | Y30: S_EBrus_Pur | Z30: 905 | AA30: S_EBrus_PurLiteMatt | AB30: 543 | AC30: S_EBrus_StBarhat | AD30: 581 | AE30: S_EBrus_SatMatt | AF30: 581 | AG30: S_EBrus_Dr | AH30: 475 | AI30: S_EBrus_Sat | AJ30: 462 | AK30: S_EBrus_PEdp | AL30: - | AM30: S_EBrus_Pe04dp | AN30: - | AO30: S_EBrus_Pe08 | AP30: - | AQ30: S_EBrus_Pe07 | AR30: - | AS30: S_EBrus_Pe045 | AT30: 418 | AU30: S_EBrus_Pe04 | AV30: - | AW30: S_EBrus_PeMatt04 | AX30: - | AY30: S_EBrus_dachPr | BA30: S_EBrus_dachSk | BC30: S_EBrus_dachPr_k | BE30: S_EBrus_dachPr_tw
B31: Блок-хаус | C31: S_BHaus_Ptdp | D31: 872 | E31: S_BHaus_Pt | F31: 725 | G31: S_BHaus_Sf | H31: 762 | I31: S_BHaus_Sf_a | J31: 693 | L31: - | M31: S_BHaus_QproMatt | N31: 867 | O31: S_BHaus_Q | P31: 859 | Q31: S_BHaus_Ql | R31: 726 | S31: S_BHaus_Vel | T31: 701 | U31: S_BHaus_Atl | V31: 643 | W31: S_BHaus_PurMatt | X31: 905 | Y31: S_BHaus_Pur | Z31: 905 | AA31: S_BHaus_PurLiteMatt | AB31: 543 | AC31: S_BHaus_StBarhat | AD31: 581 | AE31: S_BHaus_SatMatt | AF31: 581 | AG31: S_BHaus_Dr | AH31: 475 | AI31: S_BHaus_Sat | AJ31: 462 | AK31: S_BHaus_PEdp | AL31: - | AM31: S_BHaus_Pe04dp | AN31: - | AO31: S_BHaus_Pe08 | AP31: - | AQ31: S_BHaus_Pe07 | AR31: - | AS31: S_BHaus_Pe045 | AT31: 418 | AU31: S_BHaus_Pe04 | AV31: - | AW31: S_BHaus_PeMatt04 | AX31: - | AY31: S_BHaus_dachPr | BA31: S_BHaus_dachSk | BC31: S_BHaus_dachPr_k | BE31: S_BHaus_dachPr_tw
B32: Блок-хаус New | C32: S_BHausNew_Ptdp | D32: 872 | E32: S_BHausNew_Pt | F32: 725 | G32: S_BHausNew_Sf | H32: 762 | I32: S_BHausNew_Sf_a | J32: 693 | K32: S_BHausNew_PtRF | L32: 592 | M32: S_BHausNew_QproMatt | N32: 867 | O32: S_BHausNew_Q | P32: 859 | Q32: S_BHausNew_Ql | R32: 726 | S32: S_BHausNew_Vel | T32: 701 | U32: S_BHausNew_Atl | V32: 643 | W32: S_BHausNew_PurMatt | X32: 905 | Y32: S_BHausNew_Pur | Z32: 905 | AA32: S_BHausNew_PurLiteMatt | AB32: 543 | AC32: S_BHausNew_StBarhat | AD32: 581 | AE32: S_BHausNew_SatMatt | AF32: 581 | AG32: S_BHausNew_Dr | AH32: 475 | AI32: S_BHausNew_Sat | AJ32: 462 | AK32: S_BHausNew_PEdp | AL32: - | AM32: S_BHausNew_Pe04dp | AN32: - | AO32: S_BHausNew_Pe08 | AP32: - | AQ32: S_BHausNew_Pe07 | AR32: - | AS32: S_BHausNew_Pe045 | AT32: 418 | AU32: S_BHausNew_Pe04 | AV32: - | AW32: S_BHausNew_PeMatt04 | AX32: - | AY32: S_BHausNew_dachPr | BA32: S_BHausNew_dachSk | BC32: S_BHausNew_dachPr_k | BE32: S_BHausNew_dachPr_tw
B33: Стальная штукатурка | C33: S_Shtukaturka_Ptdp | D33: - | E33: S_Shtukaturka_Pt | F33: 732 | G33: S_Shtukaturka_Sf | H33: - | I33: S_Shtukaturka_Sf_a | J33: - | M33: S_Shtukaturka_QproMatt | N33: - | O33: S_Shtukaturka_Q | P33: 871 | Q33: S_Shtukaturka_Ql | R33: 736 | S33: S_Shtukaturka_Vel | T33: 710 | U33: S_Shtukaturka_Atl | V33: 653 | W33: S_Shtukaturka_PurMatt | X33: 916 | Y33: S_Shtukaturka_Pur | Z33: 916 | AA33: S_Shtukaturka_PurLiteMatt | AB33: - | AC33: S_Shtukaturka_StBarhat | AE33: S_Shtukaturka_SatMatt | AF33: - | AG33: S_Shtukaturka_Dr | AH33: - | AI33: S_Shtukaturka_Sat | AJ33: - | AS33: S_Shtukaturka_Pe045 | AT33: - | AW33: S_Shtukaturka_PeMatt04
B34: Здесь в КРР Фасадная панель | D34: - | F34: 656 | P34: 852 | R34: 715 | T34: 699 | V34: 640 | AB34: - | AF34: 585
B35: П/М-образный | C35: Shtaket_MP_Ptdp | D35: 122 | E35: Shtaket_MP_Pt | F35: 94 | G35: Shtaket_MP_Sf | H35: 120 | I35: Shtaket_MP_Sf_a | J35: 109 | K35: Shtaket_MP_PtRF | L35: 83 | M35: Shtaket_MP_QproMatt | N35: 125 | O35: Shtaket_MP_Q | P35: 123 | Q35: Shtaket_MP_Ql | R35: 120 | S35: Shtaket_MP_Vel | T35: 115 | U35: Shtaket_MP_Atl | V35: 101 | W35: Shtaket_MP_PurMatt | X35: 151 | Y35: Shtaket_MP_Pur | Z35: 151 | AA35: Shtaket_MP_PurLiteMatt | AB35: 104 | AC35: Shtaket_MP_StBarhat | AD35: 103 | AE35: Shtaket_MP_SatMatt | AF35: 94 | AG35: Shtaket_MP_Dr | AH35: 79 | AI35: Shtaket_MP_Sat | AJ35: 67 | AK35: Shtaket_MP_PEdp | AL35: 64 | AM35: Shtaket_MP_Pe04dp | AN35: 59 | AO35: Shtaket_MP_Pe08 | AP35: - | AQ35: Shtaket_MP_Pe07 | AR35: - | AS35: Shtaket_MP_Pe045 | AT35: 57 | AU35: Shtaket_MP_Pe04 | AV35: 48 | AW35: Shtaket_MP_PeMatt04 | AX35: 78 | AY35: Shtaket_MP_dachPr | BA35: Shtaket_MP_dachSk | BC35: Shtaket_MP_dachPr_k | BE35: Shtaket_MP_dachPr_tw
B36: П/М-образный Фигурный | C36: Shtaket_MPf_Ptdp | D36: 126 | E36: Shtaket_MPf_Pt | F36: 98 | G36: Shtaket_MPf_Sf | H36: 124 | I36: Shtaket_MPf_Sf_a | J36: 113 | K36: Shtaket_MPf_PtRF | L36: 87 | M36: Shtaket_MPf_QproMatt | N36: 130 | O36: Shtaket_MPf_Q | P36: 128 | Q36: Shtaket_MPf_Ql | R36: 125 | S36: Shtaket_MPf_Vel | T36: 120 | U36: Shtaket_MPf_Atl | V36: 106 | W36: Shtaket_MPf_PurMatt | X36: 155 | Y36: Shtaket_MPf_Pur | Z36: 155 | AA36: Shtaket_MPf_PurLiteMatt | AB36: 108 | AC36: Shtaket_MPf_StBarhat | AD36: 107 | AE36: Shtaket_MPf_SatMatt | AF36: 98 | AG36: Shtaket_MPf_Dr | AH36: 83 | AI36: Shtaket_MPf_Sat | AJ36: 71 | AK36: Shtaket_MPf_PEdp | AL36: 68 | AM36: Shtaket_MPf_Pe04dp | AN36: 63 | AO36: Shtaket_MPf_Pe08 | AP36: - | AQ36: Shtaket_MPf_Pe07 | AR36: - | AS36: Shtaket_MPf_Pe045 | AT36: 61 | AU36: Shtaket_MPf_Pe04 | AV36: 52 | AW36: Shtaket_MPf_PeMatt04 | AX36: 82 | AY36: Shtaket_MPf_dachPr | BA36: Shtaket_MPf_dachSk | BC36: Shtaket_MPf_dachPr_k | BE36: Shtaket_MPf_dachPr_tw
B37: Twin | C37: Shtaket_Tw_Ptdp | D37: 127 | E37: Shtaket_Tw_Pt | F37: 99 | G37: Shtaket_Tw_Sf | H37: 125 | I37: Shtaket_Tw_Sf_a | J37: 114 | K37: Shtaket_Tw_PtRF | L37: 88 | M37: Shtaket_Tw_QproMatt | N37: 131 | O37: Shtaket_Tw_Q | P37: 129 | Q37: Shtaket_Tw_Ql | R37: 126 | S37: Shtaket_Tw_Vel | T37: 121 | U37: Shtaket_Tw_Atl | V37: 107 | W37: Shtaket_Tw_PurMatt | X37: 156 | Y37: Shtaket_Tw_Pur | Z37: 156 | AA37: Shtaket_Tw_PurLiteMatt | AB37: 109 | AC37: Shtaket_Tw_StBarhat | AD37: 108 | AE37: Shtaket_Tw_SatMatt | AF37: 99 | AG37: Shtaket_Tw_Dr | AH37: 84 | AI37: Shtaket_Tw_Sat | AJ37: 72 | AK37: Shtaket_Tw_PEdp | AL37: 69 | AM37: Shtaket_Tw_Pe04dp | AN37: 64 | AO37: Shtaket_Tw_Pe08 | AQ37: Shtaket_Tw_Pe07 | AS37: Shtaket_Tw_Pe045 | AT37: 62 | AU37: Shtaket_Tw_Pe04 | AV37: - | AW37: Shtaket_Tw_PeMatt04 | AX37: 83 | AY37: Shtaket_Tw_dachPr | BA37: Shtaket_Tw_dachSk | BC37: Shtaket_Tw_dachPr_k | BE37: Shtaket_Tw_dachPr_tw
B38: Twin Фигурный | C38: Shtaket_Twf_Ptdp | D38: 131 | E38: Shtaket_Twf_Pt | F38: 103 | G38: Shtaket_Twf_Sf | H38: 129 | I38: Shtaket_Twf_Sf_a | J38: 118 | K38: Shtaket_Twf_PtRF | L38: 92 | M38: Shtaket_Twf_QproMatt | N38: 136 | O38: Shtaket_Twf_Q | P38: 134 | Q38: Shtaket_Twf_Ql | R38: 131 | S38: Shtaket_Twf_Vel | T38: 126 | U38: Shtaket_Twf_Atl | V38: 112 | W38: Shtaket_Twf_PurMatt | X38: 160 | Y38: Shtaket_Twf_Pur | Z38: 160 | AA38: Shtaket_Twf_PurLiteMatt | AB38: 113 | AC38: Shtaket_Twf_StBarhat | AD38: 112 | AE38: Shtaket_Twf_SatMatt | AF38: 103 | AG38: Shtaket_Twf_Dr | AH38: 88 | AI38: Shtaket_Twf_Sat | AJ38: 76 | AK38: Shtaket_Twf_PEdp | AL38: 73 | AM38: Shtaket_Twf_Pe04dp | AN38: 68 | AO38: Shtaket_Twf_Pe08 | AQ38: Shtaket_Twf_Pe07 | AS38: Shtaket_Twf_Pe045 | AT38: 66 | AU38: Shtaket_Twf_Pe04 | AV38: - | AW38: Shtaket_Twf_PeMatt04 | AX38: 87 | AY38: Shtaket_Twf_dachPr | BA38: Shtaket_Twf_dachSk | BC38: Shtaket_Twf_dachPr_k | BE38: Shtaket_Twf_dachPr_tw
B39: Полукруглый | C39: Shtaket_Pk_Ptdp | D39: 137 | E39: Shtaket_Pk_Pt | F39: 108 | G39: Shtaket_Pk_Sf | H39: 134 | I39: Shtaket_Pk_Sf_a | J39: 123 | K39: Shtaket_Pk_PtRF | L39: 97 | M39: Shtaket_Pk_QproMatt | N39: 146 | O39: Shtaket_Pk_Q | P39: 144 | Q39: Shtaket_Pk_Ql | R39: 141 | S39: Shtaket_Pk_Vel | T39: 138 | U39: Shtaket_Pk_Atl | V39: 122 | W39: Shtaket_Pk_PurMatt | X39: 170 | Y39: Shtaket_Pk_Pur | Z39: 170 | AA39: Shtaket_Pk_PurLiteMatt | AB39: 123 | AC39: Shtaket_Pk_StBarhat | AD39: 122 | AE39: Shtaket_Pk_SatMatt | AF39: 112 | AG39: Shtaket_Pk_Dr | AH39: 93 | AI39: Shtaket_Pk_Sat | AJ39: 81 | AK39: Shtaket_Pk_PEdp | AL39: 77 | AM39: Shtaket_Pk_Pe04dp | AN39: 69 | AO39: Shtaket_Pk_Pe08 | AQ39: Shtaket_Pk_Pe07 | AS39: Shtaket_Pk_Pe045 | AT39: 70 | AU39: Shtaket_Pk_Pe04 | AV39: 62 | AW39: Shtaket_Pk_PeMatt04 | AX39: 92 | AY39: Shtaket_Pk_dachPr | BA39: Shtaket_Pk_dachSk | BC39: Shtaket_Pk_dachPr_k | BE39: Shtaket_Pk_dachPr_tw
B40: Полукруглый Фигурный | C40: Shtaket_Pkf_Ptdp | D40: 141 | E40: Shtaket_Pkf_Pt | F40: 112 | G40: Shtaket_Pkf_Sf | H40: 138 | I40: Shtaket_Pkf_Sf_a | J40: 127 | K40: Shtaket_Pkf_PtRF | L40: 101 | M40: Shtaket_Pkf_QproMatt | N40: 150 | O40: Shtaket_Pkf_Q | P40: 148 | Q40: Shtaket_Pkf_Ql | R40: 145 | S40: Shtaket_Pkf_Vel | T40: 141 | U40: Shtaket_Pkf_Atl | V40: 126 | W40: Shtaket_Pkf_PurMatt | X40: 174 | Y40: Shtaket_Pkf_Pur | Z40: 174 | AA40: Shtaket_Pkf_PurLiteMatt | AB40: 127 | AC40: Shtaket_Pkf_StBarhat | AD40: 126 | AE40: Shtaket_Pkf_SatMatt | AF40: 116 | AG40: Shtaket_Pkf_Dr | AH40: 97 | AI40: Shtaket_Pkf_Sat | AJ40: 85 | AK40: Shtaket_Pkf_PEdp | AL40: 81 | AM40: Shtaket_Pkf_Pe04dp | AN40: 73 | AO40: Shtaket_Pkf_Pe08 | AQ40: Shtaket_Pkf_Pe07 | AS40: Shtaket_Pkf_Pe045 | AT40: 73 | AU40: Shtaket_Pkf_Pe04 | AV40: 64 | AW40: Shtaket_Pkf_PeMatt04 | AX40: 96 | AY40: Shtaket_Pkf_dachPr | BA40: Shtaket_Pkf_dachSk | BC40: Shtaket_Pkf_dachPr_k | BE40: Shtaket_Pkf_dachPr_tw
B41: Круглый | C41: Shtaket_Kr_Ptdp | D41: 137 | E41: Shtaket_Kr_Pt | F41: - | G41: Shtaket_Kr_Sf | H41: - | I41: Shtaket_Kr_Sf_a | J41: - | L41: - | M41: Shtaket_Kr_QproMatt | N41: - | O41: Shtaket_Kr_Q | P41: - | Q41: Shtaket_Kr_Ql | R41: - | S41: Shtaket_Kr_Vel | T41: 138 | U41: Shtaket_Kr_Atl | V41: - | W41: Shtaket_Kr_PurMatt | X41: - | Y41: Shtaket_Kr_Pur | Z41: - | AA41: Shtaket_Kr_PurLiteMatt | AB41: - | AC41: Shtaket_Kr_StBarhat | AD41: - | AE41: Shtaket_Kr_SatMatt | AF41: - | AG41: Shtaket_Kr_Dr | AH41: - | AI41: Shtaket_Kr_Sat | AJ41: - | AK41: Shtaket_Kr_PEdp | AL41: 77 | AM41: Shtaket_Kr_Pe04dp | AN41: - | AO41: Shtaket_Kr_Pe08 | AP41: - | AQ41: Shtaket_Kr_Pe07 | AR41: - | AS41: Shtaket_Kr_Pe045 | AT41: 70 | AU41: Shtaket_Kr_Pe04 | AV41: 62 | AW41: Shtaket_Kr_PeMatt04 | AY41: Shtaket_Kr_dachPr | BA41: Shtaket_Kr_dachSk | BC41: Shtaket_Kr_dachPr_k | BE41: Shtaket_Kr_dachPr_tw
B42: Круглый Фигурный | C42: Shtaket_Krf_Ptdp | D42: 141 | E42: Shtaket_Krf_Pt | F42: - | G42: Shtaket_Krf_Sf | H42: - | I42: Shtaket_Krf_Sf_a | J42: - | L42: - | M42: Shtaket_Krf_QproMatt | N42: - | O42: Shtaket_Krf_Q | P42: - | Q42: Shtaket_Krf_Ql | R42: - | S42: Shtaket_Krf_Vel | T42: 141 | U42: Shtaket_Krf_Atl | V42: - | W42: Shtaket_Krf_PurMatt | X42: - | Y42: Shtaket_Krf_Pur | Z42: - | AA42: Shtaket_Krf_PurLiteMatt | AB42: - | AC42: Shtaket_Krf_StBarhat | AD42: - | AE42: Shtaket_Krf_SatMatt | AF42: - | AG42: Shtaket_Krf_Dr | AH42: - | AI42: Shtaket_Krf_Sat | AJ42: - | AK42: Shtaket_Krf_PEdp | AL42: 81 | AM42: Shtaket_Krf_Pe04dp | AN42: - | AO42: Shtaket_Krf_Pe08 | AP42: - | AQ42: Shtaket_Krf_Pe07 | AR42: - | AS42: Shtaket_Krf_Pe045 | AT42: 73 | AU42: Shtaket_Krf_Pe04 | AV42: 64 | AW42: Shtaket_Krf_PeMatt04 | AY42: Shtaket_Krf_dachPr | BA42: Shtaket_Krf_dachSk | BC42: Shtaket_Krf_dachPr_k | BE42: Shtaket_Krf_dachPr_tw
B43: Прямоугольный | C43: Shtaket_Pr_Ptdp | D43: 137 | E43: Shtaket_Pr_Pt | F43: - | G43: Shtaket_Pr_Sf | H43: - | I43: Shtaket_Pr_Sf_a | J43: - | L43: - | M43: Shtaket_Pr_QproMatt | N43: - | O43: Shtaket_Pr_Q | P43: - | Q43: Shtaket_Pr_Ql | R43: - | S43: Shtaket_Pr_Vel | T43: 138 | U43: Shtaket_Pr_Atl | V43: - | W43: Shtaket_Pr_PurMatt | X43: - | Y43: Shtaket_Pr_Pur | Z43: - | AA43: Shtaket_Pr_PurLiteMatt | AB43: - | AC43: Shtaket_Pr_StBarhat | AD43: - | AE43: Shtaket_Pr_SatMatt | AF43: - | AG43: Shtaket_Pr_Dr | AH43: - | AI43: Shtaket_Pr_Sat | AJ43: - | AK43: Shtaket_Pr_PEdp | AL43: 77 | AM43: Shtaket_Pr_Pe04dp | AN43: - | AO43: Shtaket_Pr_Pe08 | AP43: - | AQ43: Shtaket_Pr_Pe07 | AR43: - | AS43: Shtaket_Pr_Pe045 | AT43: 70 | AU43: Shtaket_Pr_Pe04 | AV43: 62 | AW43: Shtaket_Pr_PeMatt04 | AY43: Shtaket_Pr_dachPr | BA43: Shtaket_Pr_dachSk | BC43: Shtaket_Pr_dachPr_k | BE43: Shtaket_Pr_dachPr_tw
B44: Прямоугольный Фигурный | C44: Shtaket_Prf_Ptdp | D44: 141 | E44: Shtaket_Prf_Pt | F44: - | G44: Shtaket_Prf_Sf | H44: - | I44: Shtaket_Prf_Sf_a | J44: - | L44: - | M44: Shtaket_Prf_QproMatt | N44: - | O44: Shtaket_Prf_Q | P44: - | Q44: Shtaket_Prf_Ql | R44: - | S44: Shtaket_Prf_Vel | T44: 141 | U44: Shtaket_Prf_Atl | V44: - | W44: Shtaket_Prf_PurMatt | X44: - | Y44: Shtaket_Prf_Pur | Z44: - | AA44: Shtaket_Prf_PurLiteMatt | AB44: - | AC44: Shtaket_Prf_StBarhat | AD44: - | AE44: Shtaket_Prf_SatMatt | AF44: - | AG44: Shtaket_Prf_Dr | AH44: - | AI44: Shtaket_Prf_Sat | AJ44: - | AK44: Shtaket_Prf_PEdp | AL44: 81 | AM44: Shtaket_Prf_Pe04dp | AN44: - | AO44: Shtaket_Prf_Pe08 | AP44: - | AQ44: Shtaket_Prf_Pe07 | AR44: - | AS44: Shtaket_Prf_Pe045 | AT44: 73 | AU44: Shtaket_Prf_Pe04 | AV44: 64 | AW44: Shtaket_Prf_PeMatt04 | AY44: Shtaket_Prf_dachPr | BA44: Shtaket_Prf_dachSk | BC44: Shtaket_Prf_dachPr_k | BE44: Shtaket_Prf_dachPr_tw
